{"text_format":"1","workbook":"xlsx","n_sheets":9,"sheets":["Instructivo","DEMANDA ANUAL","VOLUMEN DE QUEJAS","COSTO ADMINISTRACIÓN PÚBLICA","RESUMEN DE COSTOS AP","AUXILIAR COSTO ADMINISTRACIÓN","TIEMPO DE RESPUESTA","CANAL ATENCIÓN","RESUMEN"],"not_rendered":{"charts":0,"images":7,"macros":1,"external_links":1,"defined_names":0,"comments":5,"pivot_tables":0},"unopened":[],"bounds":{"document_bytes":16777216,"sheet_cells":100000,"rows_first":2000,"rows_last":500,"rows_between":2000,"halvings":0,"cell_chars":16384,"cell_head_chars":4096},"cells_cut":0,"cells_raw":0,"read":"whole","date_system":"1900"}

{"sheet":"Instructivo","index":0,"n_rows":70,"n_cols":1,"rows_kept":70,"cut":false,"hidden":false,"merged":[]}
["CRITERIO DE PRIORIZACIÓN DE TRÁMITES ADMINISTRATIVOS"]
["Instructivo"]
["Consideraciones generales"]
[]
["En las hojas “COSTO DE ADMINISTRACIÓN PÚBLICA”y “RESUMEN”  para añadir más trámites y que apliquen las fórmulas, se deberá seleccionar la primera fila y copiarla una por cada trámite de la entidad"]
[]
["Todas las hojas tienen columnas de color celeste, en las cuales NO deben ingresar valores ya que contienen fórmulas."]
["Para la carga en GOB.EC. La institución debe recordar que el peso máximo del archivo es de 2 MB."]
["Esquema de puntuación"]
["Para priorizar un trámite, se realizará un análisis de criterios básicos y adicionales basado en información que disponen las instituciones sujetas a esta norma técnica. Cada criterio será puntuado según los lineamientos presentes en esta norma."]
["a) Demanda Anual"]
["Considerará el volumen o frecuencia de las solicitudes que ingresan al año a cada institución para la gestión de un trámite en particular."]
["La identificación del volumen anual de los trámites se realizará a través de sus registros de transacciones y/o el número de visitas de consulta de información realizadas a través de páginas web institucionales."]
["Para realizar el registro realice lo siguiente:"]
["1.- Seleccione la hoja DEMANDA ANUAL"]
["2.- Ingrese los trámites de la institución registrando el identificador y nombre en las columnas respectivas.  "]
["3.- Para cada trámite debe especificar en la columna DEMANDA ANUAL el volumen o frecuencia anual, de acuerdo a lo mencionado anteriormente."]
["4.- Una vez terminado el llenado solicitado presione el botón PUNTUACIÓN, se ordenara de menor a mayor. "]
["5.- Usted visualizará el ordenamiento de los trámites ingresados de acuerdo al número de  volumen o frecuencia anual."]
["6.- Así mismo, usted visualizará el puntaje obtenido en la columna PUNTUACIÓN de acuerdo al grupo obtenido por cada trámite de acuerdo al número de volumen o frecuencia anual cosiderando lo siguiente: ** Primer grupo (trámites con menor demanda no incluye los trámites con demanda 0 ) = 3\n** Segundo grupo (trámites con demanda intermedia) = 6\n** Tercer grupo (trámites con mayor demanda) = 10"]
["Cada vez que requiera actualizar el puntaje presionando el botón puntuación, debe verificar que la celda de la columna puntaje se encuentren vacías, es decir, se debe borrar cualquier valor de puntaje obtenido previamente."]
["b) Volumen de quejas asociadas a un trámite: "]
["Considerará la cantidad de quejas recibidas en relación a un trámite durante un año. Estas quejas deberán estar documentadas en medios físicos y/o digitales."]
["Para determinar la puntuación, se colocará en una tabla todos los trámites con sus correspondientes quejas ordenándose de menor a mayor. Se dividirá en 2 partes en los que cada grupo contenga la misma cantidad de trámites."]
["Para realizar el registro realice lo siguiente:"]
["1.- Seleccione la hoja VOLUMEN DE QUEJAS"]
["2.- Ingrese los trámites de la institución registrando el identificador y nombre en las columnas respectivas.  Si usted requiere de acuerdo al número de trámites copie filas adicionales que estén dentro del cuadro"]
["3.- Para cada trámite debe especificar en la columna VOLUMEN QUEJAS el número de quejas anual, de acuerdo a lo mencionado anteriormente."]
["4.- Una vez terminado el llenado solicitado presione el botón PUNTUACIÓN."]
["5.- Usted visualizará el ordenamiento de los trámites ingresados de acuerdo al número de  volumen o frecuencia anual."]
["6.- Así mismo, usted visualizará el puntaje obtenido en la columna PUNTUACIÓN de acuerdo al grupo obtenido por cada trámite de acuerdo al número de volumen o frecuencia anual cosiderando lo siguiente: La puntuación se basará en los siguientes grupos:\n** Primer grupo (trámites con menor cantidad de quejas, no incluye los trámites con queja 0 ) = 4\n** Segundo grupo (trámites con mayor porcentaje de quejas) = 10"]
["El valor del volumen de quejas no debe ser superior al valor del volumen de la demana, no le permitirá registrar un valor."]
["c) Costo para la administración pública: "]
["En cada trámite, basado en un caso estándar, se deberá estimar el costo incurrido en el costo de personal y recursos necesarios para su atención desde que el administrado entregó todos los requisitos hasta que la institución entregue el producto, respuesta o servicio requerido en el trámite. Se considerará:"]
["• Costo de personal:"]
["Costo del personal para atender el trámite, se excluyen actividades realizadas automáticamente o que dependen del administrado. El tiempo deberá considerar únicamente el tiempo efectivo de trabajo del personal, no debe considerar el tiempo de espera o de movimiento."]
["• Costo de recursos:"]
["Se deberá considerar el costo directo en el que la institución debe incurrir para atender un trámite. Se debe considerar los insumos o materia prima necesaria u cualquier otro que la institución considere pertinente."]
["Para realizar el registro realice lo siguiente:"]
["1.- Seleccione la hoja COSTO ADMINISTRACIÓN PÚBLICA"]
["2.- Ingrese los trámites de la institución registrando el identificador y nombre en las columnas respectivas.  Si usted requiere de acuerdo al número de trámites copie filas adicionales que estén dentro del cuadro"]
["3.- Para calcular el tiempo de las actividades, utilizar la hoja AUXILIAR COSTO ADMINISTRACIÓN donde deberá listar todas las actividades que realiza la institución en un caso estándar y asignar el tiempo mínimo que toma cada actvidad (en horas). El tiempo total de las actividades, deberá ingresar en la correspondiente celda de la hoja COSTO ADMINISTRACIÓN PÚBLICA"]
["4.- En función de la información registrada en el paso 3, la matriz entregará el costo del personal"]
["5.- Completar la columna \"Costo recursos\", en la cual ingresará el costo directo en el que incurre la institución para entregar el trámite. En este valor se considerarán los valores correspondientes a insumos y/o materia prima mínimos que se invierten por cada trámite (no se considera mano de obra)"]
["6.- La columna \"Costo para la adm. pública\" mostrará el costto de este criterio para cada trámite"]
["7,- Para que la fórmula funcione debe arrastrar hacia abajo al último de los támites ingresados, no copiar"]
["7.- Una vez que disponga del Costo para la administración pública, presionar el botón \"GENERAR\"."]
["8. Visualizar la hoja “RESUMEN DE COSTO AP” en la que va a encontrar copiada las celdas necesarias para el ordenamiento y puntuación de las mismas al presionar el botón “PUNTUACIÓN”"]
[]
["d) Tiempo de respuesta: "]
["Considerará los tiempos que a las instituciones les toma dar respuesta a un trámite desde que reciben la solicitud del administrado hasta la finalización del mismo. Para la definición del tiempo se considerará un caso estándar."]
["Para determinar la puntuación, se colocará en una tabla todos los trámites con el tiempo de respuesta, ordenándose de menor a mayor. Se dividirá en 4 grupos, en los que cada uno contenga la misma cantidad de trámites."]
["Para realizar el registro realice lo siguiente:"]
["1.- Seleccione la hoja TIEMPO DE RESPUESTA"]
["2.- Ingrese los trámites de la institución registrando el identificador y nombre en las columnas respectivas.  Si usted requiere de acuerdo al número de trámites copie filas adicionales que estén dentro del cuadro"]
["3.- Para cada trámite debe especificar en la columna TIEMPO RESPUESTA el tiempo, de acuerdo a lo mencionado anteriormente."]
["4.- Una vez terminado el llenado solicitado presione el botón PUNTUACIÓN."]
["5.- Usted visualizará el ordenamiento de los trámites ingresados de acuerdo al número de  volumen o frecuencia anual."]
["6.- Así mismo, usted visualizará el puntaje obtenido en la columna PUNTUACIÓN de acuerdo al grupo obtenido por cada trámite de acuerdo al número de volumen o frecuencia anual cosiderando lo siguiente:  La puntuación considera lo siguiente:\n** Primer grupo (menor o igual a 40 horas laboralres) = 0\n** Segundo grupo mayor  40 horas laboralres) = 30"]
["e) Canal de atención: "]
["Considerará los canales de atención a través de los cuales el administrado puede iniciar el trámite."]
["Para realizar el registro realice lo siguiente:"]
["1.- Seleccione la hoja CANAL ATENCIÓN"]
["2.- Ingrese los trámites de la institución registrando el identificador y nombre en las columnas respectivas.  Si usted requiere de acuerdo al número de trámites copie filas adicionales que estén dentro del cuadro"]
["3.- Para cada trámite debe seleccionar el canal de atención del trámite en la columna CANAL ATENCIÓN, que pueden ser: \nEl trámite se puede completar totalmente en línea: Se considera trámite totalmente en línea cuando el administrado no requiere realizar ninguna interacción presencial con la institución = 0\nEl trámite no se puede completar totalmente en línea: Se considera este caso, cuando el trámite incluye al menos una actividad, incluido mecanismos de pago, en la que el administrado deba acudir presencialmente a la institución, para la realización de dicho trámite. Los trámites presenciales se consideran dentro de esta categoría = 10"]
["4.- De acuerdo a la selección usted obtendrá la puntuación del trámite que se visualizará en la columna PUNTUACIÓN."]
[]
["f) Resumen"]
["En esta hoja deberá consolidar todas las puntuaciones obtenidas para cada trámite en los criterios a) hasta e). Adicionalmente deberá analizar los criterios adicionales que dispone la norma técnica, para estos últimos solamente deberá seleccionar en la celda correspondiente y la matriz asignará la puntuación adicional. Los criterios que deberá considerar son:\n- NECESIDADES CIUDADANAS: Si la institución ha implementado mecanismos para identificar necesidades ciudadanas respecto al trámite, seleccionar \"SI\", caso contrario, seleccionar \"NO\"\n- SUSCEPTIBILIDAD A CORRUPCIÓN: Si la institución dispone de información documentada sobre presuntos actos de corrupción, seleccionar \"SI\", caso contrario, seleccionar \"NO\"\n- VOLUMEN DE DEVOLUCIONES: Si la institución posee documentación sobre devoluciones del trámite en una cantidad significativa, seleccionar \"SI\", caso contrario, seleccionar \"NO\"\nPara que funcione la lista depelgable debe arrastrar la lista y la puntuación hacia abajo al último de los támites ingresados, no copiar"]
["En la columna puntaje total se realizará la sumatoria de los valores de los criterios básicos y adicionales. Este valor deberá registrarse en la plataforma GOB.EC"]

{"sheet":"DEMANDA ANUAL","index":1,"n_rows":81,"n_cols":4,"rows_kept":81,"cut":false,"hidden":false,"merged":[[0,0,0,3],[1,0,1,3]]}
["PRIORIZACIÓN DE TRÁMITES ADMINISTRATIVOS"]
["DEMANDA ANUAL"]
[]
["IDENTIFICADOR","TRÁMITE","DEMANDA ANUAL","PUNTAJE"]
["DGRCIC-002-01-08","Inscripción de hijos de progenitoras del mismo sexo por reproducción asistida",0,0]
["DGRCIC-002-02-02","Inscripción de nacimiento por adopción en el exterior",0,0]
["DGRCIC-012-02-01","Registro de género en Consulados",0,0]
["DGRCIC-002-04-03","Registro de naturalización de hijos de padres naturalizados",0,0]
["DGRCIC-002-04-01","Registro de naturalización por carta de naturalización",0,0]
["DGRCIC-008-01-03","Validación Contra Base de Datos",0,0]
["DGRCIC-003-01-13","Solemnización de matrimonio fuera de sede de registro civil si uno de los contrayentes se encuentra privado de la libertad",4,3]
["DGRCIC-008-01-01","Web service - Demográfico",8,3]
["DGRCIC-003-01-11","Solemnización de matrimonio fuera de sede de registro civil si uno o los dos contrayentes son viudos y tienen hijo/s menor/es de edad",46,3]
["DGRCIC-002-01-07","Inscripción de nacimiento por adopción",60,3]
["DGRCIC-003-01-17","Solemnización de matrimonio fuera de sede de registro civil si uno o ambos contrayentes son extranjeros con condición migratoria de residencia temporal",73,3]
["DGRCIC-008-01-02","Sistema Nacional de Identificación Ciudadana - Consulta de Cédula de Papel",75,3]
["DGRCIC-002-01-06","Inscripción de nacimiento por informe de expósito",92,3]
["DGRCIC-012-01-01","Registro de género",111,3]
["DGRCIC-003-01-08","Solemnización de matrimonio fuera de sede de registro civil si uno o los dos contrayentes solteros tiene hijo/s menor/es de edad",116,3]
["DGRCIC-002-04-02","Registro de nacimiento por servicios relevantes",130,3]
["DGRCIC-003-01-16","Solemnización de matrimonio fuera de sede de registro civil si los contrayentes son solteros y no tuvieren hijos menores de edad",139,3]
["DGRCIC-005-02-02","Inscripción extraordinaria de defunción ocurrida en el exterior (en frontera)",151,3]
["DGRCIC-001-04-01","Emisión de Cédula de Identidad Por Registro de Género",170,3]
["DGRCIC-005-02-03","Registro de defunción ocurrido en el exterior",172,3]
["DGRCIC-002-02-01","Registro de nacimiento ocurrido en el exterior (reconocimiento de nacionalidad)",172,3]
["DGRCIC-003-02-01","Registro de matrimonio entre uno o dos ecuatorianos realizado en el exterior",260,3]
["DGRCIC-002-07-01","Registro de nacimiento en Consulados",260,3]
["DGRCIC-005-05-04","Registro de defunción en Consulados",325,3]
["DGRCIC-005-02-01","Inscripción ordinaria de defunción ocurrida en el exterior (en frontera)",346,3]
["DGRCIC-003-05-01","Registro de matrimonio en Consulados",346,3]
["DGRCIC-006-04-07","Registro de separación de la sociedad de bienes en la unión de hecho",355,3]
["DGRCIC-003-01-18","Inscripción de matrimonio por orden judicial (Inscripción de sentencia)",671,3]
["DGRCIC-001-02-01","Emisión de Cédula de Identidad Por Primera Vez Doble Nacionalidad",766,3]
["DGRCIC-001-02-02","Emisión de Cédula de Identidad Por Primera Vez Naturalización",766,3]
["DGRCIC-005-01-06","Inscripción de defunción fetal",1140,6]
["DGRCIC-006-01-01","Cambio de nombre Mayores de 18 años",2159,6]
["DGRCIC-001-02-06","Emisión de cédula de identidad por primera vez para extrajeros con protección internacional",2163,6]
["DGRCIC-002-01-05","Inscripción extraordinaria de nacimiento (mayor de 18 años) por orden judicial (inscripción de sentencia)",2239,6]
["DGRCIC-006-04-04","Registro de capitulaciones matrimoniales",2239,6]
["DGRCIC-011-01-01","Registro de unión de hecho",2262,6]
["DGRCIC-003-01-07","Solemnización de matrimonio en sede de registro civil si uno o ambos contrayentes son extranjeros con condición migratoria de residencia temporal",2630,6]
["DGRCIC-005-01-05","Inscripción de defunción por muerte presunta mediante orden judicial (Inscripción de sentencia)",3078,6]
["DGRCIC-003-01-04","Solemnización de matrimonio en sede de registro civil si uno o los dos contrayentes son viudos y tienen hijos menores de edad",3348,6]
["DGRCIC-006-01-03","Posesión notoria de apellidos",3390,6]
["DGRCIC-003-01-01","Solemnización de matrimonio en sede de registro civil si uno o los dos contrayentes solteros tiene hijo/s menor/es de edad",3586,6]
["DGRCIC-001-06-01","Emisión de duplicado de cédula de identidad",3683,6]
["DGRCIC-005-01-09","Inscripción de defunción por orden judicial (Inscripción de sentencia)",3735,6]
["DGRCIC-006-01-04","Reconocimiento voluntario de hijo/a",4368,6]
["DGRCIC-003-01-03","Solemnización de matrimonio en sede de registro civil si uno o los dos contrayentes son divorciados y tiene hijos menores de edad",4781,6]
["DGRCIC-002-01-02","Inscripción ordinaria y extraordinaria de nacimiento sin atención médica",5543,6]
["DGRCIC-005-01-04","Inscripción extraordinaria de defunción sin atención médica",6532,6]
["DGRCIC-006-04-05","Reconocimiento de Hijo/a por sentencia ejecutoriada o Acta Notarial",6716,6]
["DGRCIC-005-01-08","Inscripción de defunción por desastres, conflictos armados y epidemias",7564,6]
["DGRCIC-003-01-15","Solemnización de matrimonio en sede de registro civil si los contrayentes son solteros y no tienen hijos menores de edad",9563,6]
["DGRCIC-006-04-01","Rectificación a la información registral por sentencia ejecutoriada",10203,6]
["DGRCIC-001-05-01","Emisión de Cédula de Identidad Por Primera Vez o Renovación Para Ecuatorianos a Través de Brigada Móvil",11067,6]
["DGRCIC-002-06-01","Inscripción ordinaria y extraordinaria de nacimiento con atención médica en consulados",11083,10]
["DGRCIC-005-05-03","Inscripción de defunción extraordinaria con atención médica",11113,10]
["DGRCIC-005-01-01","Inscripción extraordinaria de defunción con atención médica",11113,10]
["DGRCIC-010-01-03","Emisión de pasaporte ordinario por primera vez menores de 18 años, en caso de ausencia de uno o de los dos padres",16572,10]
["DGRCIC-010-01-08","Emisión de pasaporte ordinario por renovación para menores de 18 años por pérdida o robo",16572,10]
["DGRCIC-009-01-02","Dispositivo Token",17051,10]
["DGRCIC-001-02-04","Emisión de Cédula de Identidad Por Primera Vez o Renovación Para Extranjeros Con Residencia Temporal o Residencia Permanente",19390,10]
["DGRCIC-005-01-03","Inscripción ordinaria de defunción sin atención médica",20139,10]
["DGRCIC-013-01-01","Inscripción ordinaria y extraordinaria de Nacimiento y Defunción.",20229,10]
["DGRCIC-009-01-01","Emisión de Certificado Digital de Firma Electrónica en Token",20615,10]
["DGRCIC-005-05-01","Inscripción de defunción ordinaria con atención médica",23492,10]
["DGRCIC-005-01-02","Inscripción ordinaria de defunción con atención médica",23492,10]
["DGRCIC-006-01-05","Rectificación de datos registrales en Actas Registrales (Resolución Administrativa)",23807,10]
["DGRCIC-010-01-07","Emisión de Pasaporte Ordinario por Pérdida o Robo",33143,10]
["DGRCIC-007-01-08","Emisión de Certificado de Identidad y Estado Civil en línea",37001,10]
["DGRCIC-009-01-03","Emisión de Certificado Digital de Firma Electrónica en Archivo",40979,10]
["DGRCIC-010-01-01","Emisión de Pasaporte Ordinario Por Primera Vez",49715,10]
["DGRCIC-010-01-04","Emisión de Pasaporte Ordinario por Renovación",49715,10]
["DGRCIC-007-02-02","Convalidación de Documentos Registrales",81144,10]
["DGRCIC-007-01-07","Emisión de Certificado de Datos Registrales: Nacimiento, Matrimonio y Unión de Hecho en Línea",116557,10]
["DGRCIC-007-01-04","Emisión de certificados de Identidad y Estado Civil",120554,10]
["DGRCIC-002-01-01","Inscripción ordinaria y extraordinaria de nacimiento con atención médica",147795,10]
["DGRCIC-007-01-06","Emisión de Copia del Acta Registral: Nacimiento, Matrimonio, Defunción, Unión de Hecho y Registro de Género / Cambio de Nombre",346535,10]
["DGRCIC-001-01-01","Emisión de Cédula de Identidad Por Primera Vez o Renovación Para Ecuatorianos",848894,10]
["DGRCIC-007-01-01","Emisión de Certificados de Datos Registrales: Nacimiento, Matrimonio, Defunción y Unión de Hecho",924510,10]

{"sheet":"VOLUMEN DE QUEJAS","index":2,"n_rows":81,"n_cols":6,"rows_kept":81,"cut":false,"hidden":false,"merged":[[0,0,0,5],[1,0,1,5]]}
["PRIORIZACIÓN DE TRÁMITES ADMINISTRATIVOS"]
["VOLUMEN DE QUEJAS"]
[]
["IDENTIFICADOR","TRÁMITE","VOLUMEN DEMANDA","VOLUMEN DE QUEJAS","PORCENTAJE","PUNTUACIÓN"]
["DGRCIC-002-01-08","Inscripción de hijos de progenitoras del mismo sexo por reproducción asistida",0,0,0,0]
["DGRCIC-002-02-02","Inscripción de nacimiento por adopción en el exterior",0,0,0,0]
["DGRCIC-012-02-01","Registro de género en Consulados",0,0,0,0]
["DGRCIC-002-04-03","Registro de naturalización de hijos de padres naturalizados",0,0,0,0]
["DGRCIC-002-04-01","Registro de naturalización por carta de naturalización",0,0,0,0]
["DGRCIC-008-01-03","Validación Contra Base de Datos",0,0,0,0]
["DGRCIC-003-01-13","Solemnización de matrimonio fuera de sede de registro civil si uno de los contrayentes se encuentra privado de la libertad",4,0,0,0]
["DGRCIC-008-01-01","Web service - Demográfico",8,0,0,0]
["DGRCIC-003-01-11","Solemnización de matrimonio fuera de sede de registro civil si uno o los dos contrayentes son viudos y tienen hijo/s menor/es de edad",46,0,0,0]
["DGRCIC-002-01-07","Inscripción de nacimiento por adopción",60,0,0,0]
["DGRCIC-003-01-17","Solemnización de matrimonio fuera de sede de registro civil si uno o ambos contrayentes son extranjeros con condición migratoria de residencia temporal",73,0,0,0]
["DGRCIC-008-01-02","Sistema Nacional de Identificación Ciudadana - Consulta de Cédula de Papel",75,0,0,0]
["DGRCIC-002-01-06","Inscripción de nacimiento por informe de expósito",92,0,0,0]
["DGRCIC-012-01-01","Registro de género",111,0,0,0]
["DGRCIC-003-01-08","Solemnización de matrimonio fuera de sede de registro civil si uno o los dos contrayentes solteros tiene hijo/s menor/es de edad",116,0,0,0]
["DGRCIC-002-04-02","Registro de nacimiento por servicios relevantes",130,0,0,0]
["DGRCIC-003-01-16","Solemnización de matrimonio fuera de sede de registro civil si los contrayentes son solteros y no tuvieren hijos menores de edad",139,0,0,0]
["DGRCIC-005-02-02","Inscripción extraordinaria de defunción ocurrida en el exterior (en frontera)",151,0,0,0]
["DGRCIC-001-04-01","Emisión de Cédula de Identidad Por Registro de Género",170,0,0,0]
["DGRCIC-005-02-03","Registro de defunción ocurrido en el exterior",172,0,0,0]
["DGRCIC-002-02-01","Registro de nacimiento ocurrido en el exterior (reconocimiento de nacionalidad)",172,0,0,0]
["DGRCIC-003-02-01","Registro de matrimonio entre uno o dos ecuatorianos realizado en el exterior",260,0,0,0]
["DGRCIC-002-07-01","Registro de nacimiento en Consulados",260,0,0,0]
["DGRCIC-005-05-04","Registro de defunción en Consulados",325,0,0,0]
["DGRCIC-005-02-01","Inscripción ordinaria de defunción ocurrida en el exterior (en frontera)",346,0,0,0]
["DGRCIC-003-05-01","Registro de matrimonio en Consulados",346,0,0,0]
["DGRCIC-006-04-07","Registro de separación de la sociedad de bienes en la unión de hecho",355,0,0,0]
["DGRCIC-003-01-18","Inscripción de matrimonio por orden judicial (Inscripción de sentencia)",671,0,0,0]
["DGRCIC-001-02-01","Emisión de Cédula de Identidad Por Primera Vez Doble Nacionalidad",766,0,0,0]
["DGRCIC-001-02-02","Emisión de Cédula de Identidad Por Primera Vez Naturalización",766,0,0,0]
["DGRCIC-005-01-06","Inscripción de defunción fetal",1140,0,0,0]
["DGRCIC-006-01-01","Cambio de nombre Mayores de 18 años",2159,0,0,0]
["DGRCIC-001-02-06","Emisión de cédula de identidad por primera vez para extrajeros con protección internacional",2163,0,0,0]
["DGRCIC-002-01-05","Inscripción extraordinaria de nacimiento (mayor de 18 años) por orden judicial (inscripción de sentencia)",2239,0,0,0]
["DGRCIC-006-04-04","Registro de capitulaciones matrimoniales",2239,0,0,0]
["DGRCIC-011-01-01","Registro de unión de hecho",2262,1,4.4208664898320073E-2,4]
["DGRCIC-003-01-07","Solemnización de matrimonio en sede de registro civil si uno o ambos contrayentes son extranjeros con condición migratoria de residencia temporal",2630,0,0,0]
["DGRCIC-005-01-05","Inscripción de defunción por muerte presunta mediante orden judicial (Inscripción de sentencia)",3078,0,0,0]
["DGRCIC-003-01-04","Solemnización de matrimonio en sede de registro civil si uno o los dos contrayentes son viudos y tienen hijos menores de edad",3348,0,0,0]
["DGRCIC-006-01-03","Posesión notoria de apellidos",3390,0,0,0]
["DGRCIC-003-01-01","Solemnización de matrimonio en sede de registro civil si uno o los dos contrayentes solteros tiene hijo/s menor/es de edad",3586,0,0,0]
["DGRCIC-001-06-01","Emisión de duplicado de cédula de identidad",3683,1,2.7151778441487917E-2,4]
["DGRCIC-005-01-09","Inscripción de defunción por orden judicial (Inscripción de sentencia)",3735,0,0,0]
["DGRCIC-006-01-04","Reconocimiento voluntario de hijo/a",4368,0,0,0]
["DGRCIC-003-01-03","Solemnización de matrimonio en sede de registro civil si uno o los dos contrayentes son divorciados y tiene hijos menores de edad",4781,231,4.8316251830161052,10]
["DGRCIC-002-01-02","Inscripción ordinaria y extraordinaria de nacimiento sin atención médica",5543,0,0,0]
["DGRCIC-005-01-04","Inscripción extraordinaria de defunción sin atención médica",6532,1,1.5309246785058175E-2,4]
["DGRCIC-006-04-05","Reconocimiento de Hijo/a por sentencia ejecutoriada o Acta Notarial",6716,0,0,0]
["DGRCIC-005-01-08","Inscripción de defunción por desastres, conflictos armados y epidemias",7564,0,0,0]
["DGRCIC-003-01-15","Solemnización de matrimonio en sede de registro civil si los contrayentes son solteros y no tienen hijos menores de edad",9563,2,2.0913939140437102E-2,4]
["DGRCIC-006-04-01","Rectificación a la información registral por sentencia ejecutoriada",10203,0,0,0]
["DGRCIC-001-05-01","Emisión de Cédula de Identidad Por Primera Vez o Renovación Para Ecuatorianos a Través de Brigada Móvil",11067,0,0,0]
["DGRCIC-002-06-01","Inscripción ordinaria y extraordinaria de nacimiento con atención médica en consulados",11083,0,0,0]
["DGRCIC-005-05-03","Inscripción de defunción extraordinaria con atención médica",11113,0,0,0]
["DGRCIC-005-01-01","Inscripción extraordinaria de defunción con atención médica",11113,0,0,0]
["DGRCIC-010-01-03","Emisión de pasaporte ordinario por primera vez menores de 18 años, en caso de ausencia de uno o de los dos padres",16572,0,0,0]
["DGRCIC-010-01-08","Emisión de pasaporte ordinario por renovación para menores de 18 años por pérdida o robo",16572,0,0,0]
["DGRCIC-009-01-02","Dispositivo Token",17051,0,0,0]
["DGRCIC-001-02-04","Emisión de Cédula de Identidad Por Primera Vez o Renovación Para Extranjeros Con Residencia Temporal o Residencia Permanente",19390,0,0,0]
["DGRCIC-005-01-03","Inscripción ordinaria de defunción sin atención médica",20139,0,0,0]
["DGRCIC-013-01-01","Inscripción ordinaria y extraordinaria de Nacimiento y Defunción.",20229,0,0,0]
["DGRCIC-009-01-01","Emisión de Certificado Digital de Firma Electrónica en Token",20615,188,0.91195731263642976,4]
["DGRCIC-005-05-01","Inscripción de defunción ordinaria con atención médica",23492,138,0.58743402009194623,4]
["DGRCIC-005-01-02","Inscripción ordinaria de defunción con atención médica",23492,13,5.5337987399965947E-2,4]
["DGRCIC-006-01-05","Rectificación de datos registrales en Actas Registrales (Resolución Administrativa)",23807,77,0.32343428403410762,4]
["DGRCIC-010-01-07","Emisión de Pasaporte Ordinario por Pérdida o Robo",33143,15,4.5258425610234437E-2,4]
["DGRCIC-007-01-08","Emisión de Certificado de Identidad y Estado Civil en línea",37001,7,1.891840761060512E-2,4]
["DGRCIC-009-01-03","Emisión de Certificado Digital de Firma Electrónica en Archivo",40979,9,2.1962468581468556E-2,4]
["DGRCIC-010-01-01","Emisión de Pasaporte Ordinario Por Primera Vez",49715,5,1.0057326762546516E-2,4]
["DGRCIC-010-01-04","Emisión de Pasaporte Ordinario por Renovación",49715,4661,9.375440008045862,10]
["DGRCIC-007-02-02","Convalidación de Documentos Registrales",81144,0,0,0]
["DGRCIC-007-01-07","Emisión de Certificado de Datos Registrales: Nacimiento, Matrimonio y Unión de Hecho en Línea",116557,13,1.1153341283663788E-2,4]
["DGRCIC-007-01-04","Emisión de certificados de Identidad y Estado Civil",120554,0,0,0]
["DGRCIC-002-01-01","Inscripción ordinaria y extraordinaria de nacimiento con atención médica",147795,3,2.0298386278290877E-3,4]
["DGRCIC-007-01-06","Emisión de Copia del Acta Registral: Nacimiento, Matrimonio, Defunción, Unión de Hecho y Registro de Género / Cambio de Nombre",346535,20,5.7714228000057717E-3,4]
["DGRCIC-001-01-01","Emisión de Cédula de Identidad Por Primera Vez o Renovación Para Ecuatorianos",848894,9049,1.0659752572170378,10]
["DGRCIC-007-01-01","Emisión de Certificados de Datos Registrales: Nacimiento, Matrimonio, Defunción y Unión de Hecho",924510,558,6.0356296849141705E-2,4]

{"sheet":"COSTO ADMINISTRACIÓN PÚBLICA","index":3,"n_rows":82,"n_cols":13,"rows_kept":82,"cut":false,"hidden":false,"merged":[[0,0,0,5],[1,0,1,5],[3,0,4,0],[3,1,4,1],[3,2,3,4],[3,5,4,5]]}
["PRIORIZACIÓN DE TRÁMITES ADMINISTRATIVOS"]
["COSTOS PARA LA ADMINISTRACIÓN PÚBLICA"]
[]
["IDENTIFICADOR","TRÁMITE","INSUMOS PARA COSTO",null,null,"COSTO PARA LA ADM. PÚBLICA",null,"SBU",400]
[null,null,"TIEMPO (HORAS)","COSTO PERSONAL","COSTO RECURSOS"]
["DGRCIC-002-01-08","Inscripción de hijos de progenitoras del mismo sexo por reproducción asistida",0.16500000000000001,{"$f":"C6*$I$4/160","v":0.41249999999999998},0,{"$f":"D6+E6","v":0.41249999999999998},null,null,null,null,null,{"$f":"VLOOKUP(A6,'[1]COSTO ADMINISTRACIÓN PÚBLICA'!$A$6:$C$82,3,0)","v":0.16500000000000001},{"$f":"VLOOKUP(A6,'[1]COSTO ADMINISTRACIÓN PÚBLICA'!$A$6:$F$82,5,0)","v":0}]
["DGRCIC-002-02-02","Inscripción de nacimiento por adopción en el exterior",0.16500000000000001,{"$f":"C7*$I$4/160","v":0.41249999999999998},0,{"$f":"D7+E7","v":0.41249999999999998},null,null,null,null,null,{"$f":"VLOOKUP(A7,'[1]COSTO ADMINISTRACIÓN PÚBLICA'!$A$6:$C$82,3,0)","v":0.16500000000000001},{"$f":"VLOOKUP(A7,'[1]COSTO ADMINISTRACIÓN PÚBLICA'!$A$6:$F$82,5,0)","v":0}]
["DGRCIC-012-02-01","Registro de género en Consulados",0,{"$f":"C8*$I$4/160","v":0},0,{"$f":"D8+E8","v":0},null,null,null,null,null,{"$f":"VLOOKUP(A8,'[1]COSTO ADMINISTRACIÓN PÚBLICA'!$A$6:$C$82,3,0)","v":0},{"$f":"VLOOKUP(A8,'[1]COSTO ADMINISTRACIÓN PÚBLICA'!$A$6:$F$82,5,0)","v":0}]
["DGRCIC-002-04-03","Registro de naturalización de hijos de padres naturalizados",0.16500000000000001,0.41249999999999998,0,0.41249999999999998,null,null,null,null,null,{"$f":"VLOOKUP(A9,'[1]COSTO ADMINISTRACIÓN PÚBLICA'!$A$6:$C$82,3,0)","v":0.16500000000000001},{"$f":"VLOOKUP(A9,'[1]COSTO ADMINISTRACIÓN PÚBLICA'!$A$6:$F$82,5,0)","v":0}]
["DGRCIC-002-04-01","Registro de naturalización por carta de naturalización",0.16500000000000001,0.41249999999999998,0,0.41249999999999998,null,null,null,null,null,{"$f":"VLOOKUP(A10,'[1]COSTO ADMINISTRACIÓN PÚBLICA'!$A$6:$C$82,3,0)","v":0.16500000000000001},{"$f":"VLOOKUP(A10,'[1]COSTO ADMINISTRACIÓN PÚBLICA'!$A$6:$F$82,5,0)","v":0}]
["DGRCIC-008-01-03","Validación Contra Base de Datos",0,0,0,0,null,null,null,null,null,{"$f":"VLOOKUP(A11,'[1]COSTO ADMINISTRACIÓN PÚBLICA'!$A$6:$C$82,3,0)","v":0},{"$f":"VLOOKUP(A11,'[1]COSTO ADMINISTRACIÓN PÚBLICA'!$A$6:$F$82,5,0)","v":0}]
["DGRCIC-003-01-13","Solemnización de matrimonio fuera de sede de registro civil si uno de los contrayentes se encuentra privado de la libertad",0.2486111111111112,0.62152777777777801,11.774698067396146,12.396225845173925,null,null,null,null,null,{"$f":"VLOOKUP(A12,'[1]COSTO ADMINISTRACIÓN PÚBLICA'!$A$6:$C$82,3,0)","v":0.2486111111111112},{"$f":"VLOOKUP(A12,'[1]COSTO ADMINISTRACIÓN PÚBLICA'!$A$6:$F$82,5,0)","v":11.774698067396146}]
["DGRCIC-008-01-01","Web service - Demográfico",0,0,0,0,null,null,null,null,null,{"$f":"VLOOKUP(A13,'[1]COSTO ADMINISTRACIÓN PÚBLICA'!$A$6:$C$82,3,0)","v":0},{"$f":"VLOOKUP(A13,'[1]COSTO ADMINISTRACIÓN PÚBLICA'!$A$6:$F$82,5,0)","v":0}]
["DGRCIC-003-01-11","Solemnización de matrimonio fuera de sede de registro civil si uno o los dos contrayentes son viudos y tienen hijo/s menor/es de edad",0.2486111111111112,0.62152777777777801,11.774698067396145,12.396225845173923,null,null,null,null,null,{"$f":"VLOOKUP(A14,'[1]COSTO ADMINISTRACIÓN PÚBLICA'!$A$6:$C$82,3,0)","v":0.2486111111111112},{"$f":"VLOOKUP(A14,'[1]COSTO ADMINISTRACIÓN PÚBLICA'!$A$6:$F$82,5,0)","v":11.774698067396145}]
["DGRCIC-002-01-07","Inscripción de nacimiento por adopción",0.16500000000000001,0.41249999999999998,8.4612597691438047,8.8737597691438044,null,null,null,null,null,{"$f":"VLOOKUP(A15,'[1]COSTO ADMINISTRACIÓN PÚBLICA'!$A$6:$C$82,3,0)","v":0.16500000000000001},{"$f":"VLOOKUP(A15,'[1]COSTO ADMINISTRACIÓN PÚBLICA'!$A$6:$F$82,5,0)","v":8.4612597691438047}]
["DGRCIC-003-01-17","Solemnización de matrimonio fuera de sede de registro civil si uno o ambos contrayentes son extranjeros con condición migratoria de residencia temporal",0.2486111111111112,0.62152777777777801,11.774698067396145,12.396225845173923,null,null,null,null,null,{"$f":"VLOOKUP(A16,'[1]COSTO ADMINISTRACIÓN PÚBLICA'!$A$6:$C$82,3,0)","v":0.2486111111111112},{"$f":"VLOOKUP(A16,'[1]COSTO ADMINISTRACIÓN PÚBLICA'!$A$6:$F$82,5,0)","v":11.774698067396145}]
["DGRCIC-008-01-02","Sistema Nacional de Identificación Ciudadana - Consulta de Cédula de Papel",0,0,0,0,null,null,null,null,null,{"$f":"VLOOKUP(A17,'[1]COSTO ADMINISTRACIÓN PÚBLICA'!$A$6:$C$82,3,0)","v":0},{"$f":"VLOOKUP(A17,'[1]COSTO ADMINISTRACIÓN PÚBLICA'!$A$6:$F$82,5,0)","v":0}]
["DGRCIC-002-01-06","Inscripción de nacimiento por informe de expósito",0.16500000000000001,0.41249999999999998,8.4612597691438047,8.8737597691438044,null,null,null,null,null,{"$f":"VLOOKUP(A18,'[1]COSTO ADMINISTRACIÓN PÚBLICA'!$A$6:$C$82,3,0)","v":0.16500000000000001},{"$f":"VLOOKUP(A18,'[1]COSTO ADMINISTRACIÓN PÚBLICA'!$A$6:$F$82,5,0)","v":8.4612597691438047}]
["DGRCIC-012-01-01","Registro de género",0.28564814814814798,0.71412037037037002,17.297095231150045,18.011215601520416,null,null,null,null,null,{"$f":"VLOOKUP(A19,'[1]COSTO ADMINISTRACIÓN PÚBLICA'!$A$6:$C$82,3,0)","v":0.28564814814814798},{"$f":"VLOOKUP(A19,'[1]COSTO ADMINISTRACIÓN PÚBLICA'!$A$6:$F$82,5,0)","v":17.297095231150045}]
["DGRCIC-003-01-08","Solemnización de matrimonio fuera de sede de registro civil si uno o los dos contrayentes solteros tiene hijo/s menor/es de edad",0.2486111111111112,0.62152777777777801,11.774698067396146,12.396225845173925,null,null,null,null,null,{"$f":"VLOOKUP(A20,'[1]COSTO ADMINISTRACIÓN PÚBLICA'!$A$6:$C$82,3,0)","v":0.2486111111111112},{"$f":"VLOOKUP(A20,'[1]COSTO ADMINISTRACIÓN PÚBLICA'!$A$6:$F$82,5,0)","v":11.774698067396146}]
["DGRCIC-002-04-02","Registro de nacimiento por servicios relevantes",0.16500000000000001,0.41249999999999998,8.4612597691438047,8.8737597691438044,null,null,null,null,null,{"$f":"VLOOKUP(A21,'[1]COSTO ADMINISTRACIÓN PÚBLICA'!$A$6:$C$82,3,0)","v":0.16500000000000001},{"$f":"VLOOKUP(A21,'[1]COSTO ADMINISTRACIÓN PÚBLICA'!$A$6:$F$82,5,0)","v":8.4612597691438047}]
["DGRCIC-003-01-16","Solemnización de matrimonio fuera de sede de registro civil si los contrayentes son solteros y no tuvieren hijos menores de edad",0.2486111111111112,0.62152777777777801,11.774698067396145,12.396225845173923,null,null,null,null,null,{"$f":"VLOOKUP(A22,'[1]COSTO ADMINISTRACIÓN PÚBLICA'!$A$6:$C$82,3,0)","v":0.2486111111111112},{"$f":"VLOOKUP(A22,'[1]COSTO ADMINISTRACIÓN PÚBLICA'!$A$6:$F$82,5,0)","v":11.774698067396145}]
["DGRCIC-005-02-02","Inscripción extraordinaria de defunción ocurrida en el exterior (en frontera)",0.20361111111111119,0.50902777777777797,11.222458351020755,11.731486128798533,null,null,null,null,null,{"$f":"VLOOKUP(A23,'[1]COSTO ADMINISTRACIÓN PÚBLICA'!$A$6:$C$82,3,0)","v":0.20361111111111119},{"$f":"VLOOKUP(A23,'[1]COSTO ADMINISTRACIÓN PÚBLICA'!$A$6:$F$82,5,0)","v":11.222458351020755}]
["DGRCIC-001-04-01","Emisión de Cédula de Identidad Por Registro de Género",0.13138888888888894,0.32847222222222239,11.311259769143803,11.639731991366025,null,null,null,null,null,{"$f":"VLOOKUP(A24,'[1]COSTO ADMINISTRACIÓN PÚBLICA'!$A$6:$C$82,3,0)","v":0.13138888888888894},{"$f":"VLOOKUP(A24,'[1]COSTO ADMINISTRACIÓN PÚBLICA'!$A$6:$F$82,5,0)","v":11.311259769143803}]
["DGRCIC-005-02-03","Registro de defunción ocurrido en el exterior",0.20361111111111119,0.50902777777777797,11.222458351020755,11.731486128798533,null,null,null,null,null,{"$f":"VLOOKUP(A25,'[1]COSTO ADMINISTRACIÓN PÚBLICA'!$A$6:$C$82,3,0)","v":0.20361111111111119},{"$f":"VLOOKUP(A25,'[1]COSTO ADMINISTRACIÓN PÚBLICA'!$A$6:$F$82,5,0)","v":11.222458351020755}]
["DGRCIC-002-02-01","Registro de nacimiento ocurrido en el exterior (reconocimiento de nacionalidad)",0.16500000000000001,0.41249999999999998,11.222458351020755,11.634958351020755,null,null,null,null,null,{"$f":"VLOOKUP(A26,'[1]COSTO ADMINISTRACIÓN PÚBLICA'!$A$6:$C$82,3,0)","v":0.16500000000000001},{"$f":"VLOOKUP(A26,'[1]COSTO ADMINISTRACIÓN PÚBLICA'!$A$6:$F$82,5,0)","v":11.222458351020755}]
["DGRCIC-003-02-01","Registro de matrimonio entre uno o dos ecuatorianos realizado en el exterior",0.2486111111111112,0.62152777777777801,11.222458351020755,11.843986128798534,null,null,null,null,null,{"$f":"VLOOKUP(A27,'[1]COSTO ADMINISTRACIÓN PÚBLICA'!$A$6:$C$82,3,0)","v":0.2486111111111112},{"$f":"VLOOKUP(A27,'[1]COSTO ADMINISTRACIÓN PÚBLICA'!$A$6:$F$82,5,0)","v":11.222458351020755}]
["DGRCIC-002-07-01","Registro de nacimiento en Consulados",0.16500000000000001,0.41249999999999998,11.222458351020755,11.634958351020755,null,null,null,null,null,{"$f":"VLOOKUP(A28,'[1]COSTO ADMINISTRACIÓN PÚBLICA'!$A$6:$C$82,3,0)","v":0.16500000000000001},{"$f":"VLOOKUP(A28,'[1]COSTO ADMINISTRACIÓN PÚBLICA'!$A$6:$F$82,5,0)","v":11.222458351020755}]
["DGRCIC-005-05-04","Registro de defunción en Consulados",0.20361111111111119,0.50902777777777797,11.222458351020755,11.731486128798533,null,null,null,null,null,{"$f":"VLOOKUP(A29,'[1]COSTO ADMINISTRACIÓN PÚBLICA'!$A$6:$C$82,3,0)","v":0.20361111111111119},{"$f":"VLOOKUP(A29,'[1]COSTO ADMINISTRACIÓN PÚBLICA'!$A$6:$F$82,5,0)","v":11.222458351020755}]
["DGRCIC-005-02-01","Inscripción ordinaria de defunción ocurrida en el exterior (en frontera)",0.20361111111111119,0.50902777777777797,11.222458351020757,11.731486128798535,null,null,null,null,null,{"$f":"VLOOKUP(A30,'[1]COSTO ADMINISTRACIÓN PÚBLICA'!$A$6:$C$82,3,0)","v":0.20361111111111119},{"$f":"VLOOKUP(A30,'[1]COSTO ADMINISTRACIÓN PÚBLICA'!$A$6:$F$82,5,0)","v":11.222458351020757}]
["DGRCIC-003-05-01","Registro de matrimonio en Consulados",0.2486111111111112,0.62152777777777801,11.222458351020757,11.843986128798536,null,null,null,null,null,{"$f":"VLOOKUP(A31,'[1]COSTO ADMINISTRACIÓN PÚBLICA'!$A$6:$C$82,3,0)","v":0.2486111111111112},{"$f":"VLOOKUP(A31,'[1]COSTO ADMINISTRACIÓN PÚBLICA'!$A$6:$F$82,5,0)","v":11.222458351020757}]
["DGRCIC-006-04-07","Registro de separación de la sociedad de bienes en la unión de hecho",0.2486111111111112,0.62152777777777801,11.774698067396145,12.396225845173923,null,null,null,null,null,{"$f":"VLOOKUP(A32,'[1]COSTO ADMINISTRACIÓN PÚBLICA'!$A$6:$C$82,3,0)","v":0.2486111111111112},{"$f":"VLOOKUP(A32,'[1]COSTO ADMINISTRACIÓN PÚBLICA'!$A$6:$F$82,5,0)","v":11.774698067396145}]
["DGRCIC-003-01-18","Inscripción de matrimonio por orden judicial (Inscripción de sentencia)",0.2486111111111112,0.62152777777777801,11.774698067396145,12.396225845173923,null,null,null,null,null,{"$f":"VLOOKUP(A33,'[1]COSTO ADMINISTRACIÓN PÚBLICA'!$A$6:$C$82,3,0)","v":0.2486111111111112},{"$f":"VLOOKUP(A33,'[1]COSTO ADMINISTRACIÓN PÚBLICA'!$A$6:$F$82,5,0)","v":11.774698067396145}]
["DGRCIC-001-02-01","Emisión de Cédula de Identidad Por Primera Vez Doble Nacionalidad",0.13138888888888894,0.32847222222222239,11.311259769143803,11.639731991366025,null,null,null,null,null,{"$f":"VLOOKUP(A34,'[1]COSTO ADMINISTRACIÓN PÚBLICA'!$A$6:$C$82,3,0)","v":0.13138888888888894},{"$f":"VLOOKUP(A34,'[1]COSTO ADMINISTRACIÓN PÚBLICA'!$A$6:$F$82,5,0)","v":11.311259769143803}]
["DGRCIC-001-02-02","Emisión de Cédula de Identidad Por Primera Vez Naturalización",0.13138888888888894,0.32847222222222239,11.311259769143803,11.639731991366025,null,null,null,null,null,{"$f":"VLOOKUP(A35,'[1]COSTO ADMINISTRACIÓN PÚBLICA'!$A$6:$C$82,3,0)","v":0.13138888888888894},{"$f":"VLOOKUP(A35,'[1]COSTO ADMINISTRACIÓN PÚBLICA'!$A$6:$F$82,5,0)","v":11.311259769143803}]
["DGRCIC-005-01-06","Inscripción de defunción fetal",0.20361111111111119,0.50902777777777797,10.670218634645366,11.179246412423144,null,null,null,null,null,{"$f":"VLOOKUP(A36,'[1]COSTO ADMINISTRACIÓN PÚBLICA'!$A$6:$C$82,3,0)","v":0.20361111111111119},{"$f":"VLOOKUP(A36,'[1]COSTO ADMINISTRACIÓN PÚBLICA'!$A$6:$F$82,5,0)","v":10.670218634645366}]
["DGRCIC-006-01-01","Cambio de nombre Mayores de 18 años",0.20361111111111119,0.50902777777777797,13.431417216522316,13.940444994300094,null,null,null,null,null,{"$f":"VLOOKUP(A37,'[1]COSTO ADMINISTRACIÓN PÚBLICA'!$A$6:$C$82,3,0)","v":0.20361111111111119},{"$f":"VLOOKUP(A37,'[1]COSTO ADMINISTRACIÓN PÚBLICA'!$A$6:$F$82,5,0)","v":13.431417216522316}]
["DGRCIC-001-02-06","Emisión de cédula de identidad por primera vez para extrajeros con protección internacional",0.13138888888888894,0.32847222222222239,11.311259769143803,11.639731991366025,null,null,null,null,null,{"$f":"VLOOKUP(A38,'[1]COSTO ADMINISTRACIÓN PÚBLICA'!$A$6:$C$82,3,0)","v":0.13138888888888894},{"$f":"VLOOKUP(A38,'[1]COSTO ADMINISTRACIÓN PÚBLICA'!$A$6:$F$82,5,0)","v":11.311259769143803}]
["DGRCIC-002-01-05","Inscripción extraordinaria de nacimiento (mayor de 18 años) por orden judicial (inscripción de sentencia)",0.16500000000000001,0.41249999999999998,8.4612597691438047,8.8737597691438044,null,null,null,null,null,{"$f":"VLOOKUP(A39,'[1]COSTO ADMINISTRACIÓN PÚBLICA'!$A$6:$C$82,3,0)","v":0.16500000000000001},{"$f":"VLOOKUP(A39,'[1]COSTO ADMINISTRACIÓN PÚBLICA'!$A$6:$F$82,5,0)","v":8.4612597691438047}]
["DGRCIC-006-04-04","Registro de capitulaciones matrimoniales",0,0,11.774698067396145,11.774698067396145,null,null,null,null,null,{"$f":"VLOOKUP(A40,'[1]COSTO ADMINISTRACIÓN PÚBLICA'!$A$6:$C$82,3,0)","v":0},{"$f":"VLOOKUP(A40,'[1]COSTO ADMINISTRACIÓN PÚBLICA'!$A$6:$F$82,5,0)","v":11.774698067396145}]
["DGRCIC-011-01-01","Registro de unión de hecho",0.24848969252271119,0.62122423130677795,11.774698067396146,12.395922298702924,null,null,null,null,null,{"$f":"VLOOKUP(A41,'[1]COSTO ADMINISTRACIÓN PÚBLICA'!$A$6:$C$82,3,0)","v":0.24848969252271119},{"$f":"VLOOKUP(A41,'[1]COSTO ADMINISTRACIÓN PÚBLICA'!$A$6:$F$82,5,0)","v":11.774698067396146}]
["DGRCIC-003-01-07","Solemnización de matrimonio en sede de registro civil si uno o ambos contrayentes son extranjeros con condición migratoria de residencia temporal",0.2486111111111112,0.62152777777777801,11.774698067396145,12.396225845173923,null,null,null,null,null,{"$f":"VLOOKUP(A42,'[1]COSTO ADMINISTRACIÓN PÚBLICA'!$A$6:$C$82,3,0)","v":0.2486111111111112},{"$f":"VLOOKUP(A42,'[1]COSTO ADMINISTRACIÓN PÚBLICA'!$A$6:$F$82,5,0)","v":11.774698067396145}]
["DGRCIC-005-01-05","Inscripción de defunción por muerte presunta mediante orden judicial (Inscripción de sentencia)",0.20361111111111119,0.50902777777777797,10.670218634645366,11.179246412423144,null,null,null,null,null,{"$f":"VLOOKUP(A43,'[1]COSTO ADMINISTRACIÓN PÚBLICA'!$A$6:$C$82,3,0)","v":0.20361111111111119},{"$f":"VLOOKUP(A43,'[1]COSTO ADMINISTRACIÓN PÚBLICA'!$A$6:$F$82,5,0)","v":10.670218634645366}]
["DGRCIC-003-01-04","Solemnización de matrimonio en sede de registro civil si uno o los dos contrayentes son viudos y tienen hijos menores de edad",0.2486111111111112,0.62152777777777801,11.774698067396145,12.396225845173923,null,null,null,null,null,{"$f":"VLOOKUP(A44,'[1]COSTO ADMINISTRACIÓN PÚBLICA'!$A$6:$C$82,3,0)","v":0.2486111111111112},{"$f":"VLOOKUP(A44,'[1]COSTO ADMINISTRACIÓN PÚBLICA'!$A$6:$F$82,5,0)","v":11.774698067396145}]
["DGRCIC-006-01-03","Posesión notoria de apellidos",0.2486111111111112,0.62152777777777801,13.431417216522316,14.052944994300095,null,null,null,null,null,{"$f":"VLOOKUP(A45,'[1]COSTO ADMINISTRACIÓN PÚBLICA'!$A$6:$C$82,3,0)","v":0.2486111111111112},{"$f":"VLOOKUP(A45,'[1]COSTO ADMINISTRACIÓN PÚBLICA'!$A$6:$F$82,5,0)","v":13.431417216522316}]
["DGRCIC-003-01-01","Solemnización de matrimonio en sede de registro civil si uno o los dos contrayentes solteros tiene hijo/s menor/es de edad",0.2486111111111112,0.62152777777777801,11.774698067396145,12.396225845173923,null,null,null,null,null,{"$f":"VLOOKUP(A46,'[1]COSTO ADMINISTRACIÓN PÚBLICA'!$A$6:$C$82,3,0)","v":0.2486111111111112},{"$f":"VLOOKUP(A46,'[1]COSTO ADMINISTRACIÓN PÚBLICA'!$A$6:$F$82,5,0)","v":11.774698067396145}]
["DGRCIC-001-06-01","Emisión de duplicado de cédula de identidad",0.13138888888888894,0.32847222222222239,6.341102321765292,6.6695745439875145,null,null,null,null,null,{"$f":"VLOOKUP(A47,'[1]COSTO ADMINISTRACIÓN PÚBLICA'!$A$6:$C$82,3,0)","v":0.13138888888888894},{"$f":"VLOOKUP(A47,'[1]COSTO ADMINISTRACIÓN PÚBLICA'!$A$6:$F$82,5,0)","v":6.341102321765292}]
["DGRCIC-005-01-09","Inscripción de defunción por orden judicial (Inscripción de sentencia)",0.20361111111111119,0.50902777777777797,10.670218634645366,11.179246412423144,null,null,null,null,null,{"$f":"VLOOKUP(A48,'[1]COSTO ADMINISTRACIÓN PÚBLICA'!$A$6:$C$82,3,0)","v":0.20361111111111119},{"$f":"VLOOKUP(A48,'[1]COSTO ADMINISTRACIÓN PÚBLICA'!$A$6:$F$82,5,0)","v":10.670218634645366}]
["DGRCIC-006-01-04","Reconocimiento voluntario de hijo/a",0,0,8.4612597691438047,8.4612597691438047,null,null,null,null,null,{"$f":"VLOOKUP(A49,'[1]COSTO ADMINISTRACIÓN PÚBLICA'!$A$6:$C$82,3,0)","v":0},{"$f":"VLOOKUP(A49,'[1]COSTO ADMINISTRACIÓN PÚBLICA'!$A$6:$F$82,5,0)","v":8.4612597691438047}]
["DGRCIC-003-01-03","Solemnización de matrimonio en sede de registro civil si uno o los dos contrayentes son divorciados y tiene hijos menores de edad",0.2486111111111112,0.62152777777777801,11.774698067396145,12.396225845173923,null,null,null,null,null,{"$f":"VLOOKUP(A50,'[1]COSTO ADMINISTRACIÓN PÚBLICA'!$A$6:$C$82,3,0)","v":0.2486111111111112},{"$f":"VLOOKUP(A50,'[1]COSTO ADMINISTRACIÓN PÚBLICA'!$A$6:$F$82,5,0)","v":11.774698067396145}]
["DGRCIC-002-01-02","Inscripción ordinaria y extraordinaria de nacimiento sin atención médica",0.16500000000000001,0.41249999999999998,8.4612597691438047,8.8737597691438044,null,null,null,null,null,{"$f":"VLOOKUP(A51,'[1]COSTO ADMINISTRACIÓN PÚBLICA'!$A$6:$C$82,3,0)","v":0.16500000000000001},{"$f":"VLOOKUP(A51,'[1]COSTO ADMINISTRACIÓN PÚBLICA'!$A$6:$F$82,5,0)","v":8.4612597691438047}]
["DGRCIC-005-01-04","Inscripción extraordinaria de defunción sin atención médica",0.20361111111111119,0.50902777777777797,10.670218634645364,11.179246412423142,null,null,null,null,null,{"$f":"VLOOKUP(A52,'[1]COSTO ADMINISTRACIÓN PÚBLICA'!$A$6:$C$82,3,0)","v":0.20361111111111119},{"$f":"VLOOKUP(A52,'[1]COSTO ADMINISTRACIÓN PÚBLICA'!$A$6:$F$82,5,0)","v":10.670218634645364}]
["DGRCIC-006-04-05","Reconocimiento de Hijo/a por sentencia ejecutoriada o Acta Notarial",0.2486111111111112,0.62152777777777801,13.431417216522316,14.052944994300095,null,null,null,null,null,{"$f":"VLOOKUP(A53,'[1]COSTO ADMINISTRACIÓN PÚBLICA'!$A$6:$C$82,3,0)","v":0.2486111111111112},{"$f":"VLOOKUP(A53,'[1]COSTO ADMINISTRACIÓN PÚBLICA'!$A$6:$F$82,5,0)","v":13.431417216522316}]
["DGRCIC-005-01-08","Inscripción de defunción por desastres, conflictos armados y epidemias",0.20361111111111119,0.50902777777777797,0,0.50902777777777797,null,null,null,null,null,{"$f":"VLOOKUP(A54,'[1]COSTO ADMINISTRACIÓN PÚBLICA'!$A$6:$C$82,3,0)","v":0.20361111111111119},{"$f":"VLOOKUP(A54,'[1]COSTO ADMINISTRACIÓN PÚBLICA'!$A$6:$F$82,5,0)","v":0}]
["DGRCIC-003-01-15","Solemnización de matrimonio en sede de registro civil si los contrayentes son solteros y no tienen hijos menores de edad",0.2486111111111112,0.62152777777777801,11.597034043883195,12.218561821660973,null,null,null,null,null,{"$f":"VLOOKUP(A55,'[1]COSTO ADMINISTRACIÓN PÚBLICA'!$A$6:$C$82,3,0)","v":0.2486111111111112},{"$f":"VLOOKUP(A55,'[1]COSTO ADMINISTRACIÓN PÚBLICA'!$A$6:$F$82,5,0)","v":11.597034043883195}]
["DGRCIC-006-04-01","Rectificación a la información registral por sentencia ejecutoriada",0.2486111111111112,0.62152777777777801,13.431417216522316,14.052944994300095,null,null,null,null,null,{"$f":"VLOOKUP(A56,'[1]COSTO ADMINISTRACIÓN PÚBLICA'!$A$6:$C$82,3,0)","v":0.2486111111111112},{"$f":"VLOOKUP(A56,'[1]COSTO ADMINISTRACIÓN PÚBLICA'!$A$6:$F$82,5,0)","v":13.431417216522316}]
["DGRCIC-001-05-01","Emisión de Cédula de Identidad Por Primera Vez o Renovación Para Ecuatorianos a Través de Brigada Móvil",0.13138888888888894,0.32847222222222239,2.85,3.1784722222222226,null,null,null,null,null,{"$f":"VLOOKUP(A57,'[1]COSTO ADMINISTRACIÓN PÚBLICA'!$A$6:$C$82,3,0)","v":0.13138888888888894},{"$f":"VLOOKUP(A57,'[1]COSTO ADMINISTRACIÓN PÚBLICA'!$A$6:$F$82,5,0)","v":2.85}]
["DGRCIC-002-06-01","Inscripción ordinaria y extraordinaria de nacimiento con atención médica en consulados",0.16500000000000001,0.41249999999999998,11.222458351020755,11.634958351020755,null,null,null,null,null,{"$f":"VLOOKUP(A58,'[1]COSTO ADMINISTRACIÓN PÚBLICA'!$A$6:$C$82,3,0)","v":0.16500000000000001},{"$f":"VLOOKUP(A58,'[1]COSTO ADMINISTRACIÓN PÚBLICA'!$A$6:$F$82,5,0)","v":11.222458351020755}]
["DGRCIC-005-05-03","Inscripción de defunción extraordinaria con atención médica",0.20361111111111119,0.50902777777777797,10.670218634645366,11.179246412423144,null,null,null,null,null,{"$f":"VLOOKUP(A59,'[1]COSTO ADMINISTRACIÓN PÚBLICA'!$A$6:$C$82,3,0)","v":0.20361111111111119},{"$f":"VLOOKUP(A59,'[1]COSTO ADMINISTRACIÓN PÚBLICA'!$A$6:$F$82,5,0)","v":10.670218634645366}]
["DGRCIC-005-01-01","Inscripción extraordinaria de defunción con atención médica",0.20361111111111119,0.50902777777777797,10.670218634645366,11.179246412423144,null,null,null,null,null,{"$f":"VLOOKUP(A60,'[1]COSTO ADMINISTRACIÓN PÚBLICA'!$A$6:$C$82,3,0)","v":0.20361111111111119},{"$f":"VLOOKUP(A60,'[1]COSTO ADMINISTRACIÓN PÚBLICA'!$A$6:$F$82,5,0)","v":10.670218634645366}]
["DGRCIC-010-01-03","Emisión de pasaporte ordinario por primera vez menores de 18 años, en caso de ausencia de uno o de los dos padres",0.14892907058001409,0.37232267645003525,17.095642941782923,17.467965618232959,null,null,null,null,null,{"$f":"VLOOKUP(A61,'[1]COSTO ADMINISTRACIÓN PÚBLICA'!$A$6:$C$82,3,0)","v":0.14892907058001409},{"$f":"VLOOKUP(A61,'[1]COSTO ADMINISTRACIÓN PÚBLICA'!$A$6:$F$82,5,0)","v":17.095642941782923}]
["DGRCIC-010-01-08","Emisión de pasaporte ordinario por renovación para menores de 18 años por pérdida o robo",0.14892907058001409,0.37232267645003525,17.095642941782923,17.467965618232959,null,null,null,null,null,{"$f":"VLOOKUP(A62,'[1]COSTO ADMINISTRACIÓN PÚBLICA'!$A$6:$C$82,3,0)","v":0.14892907058001409},{"$f":"VLOOKUP(A62,'[1]COSTO ADMINISTRACIÓN PÚBLICA'!$A$6:$F$82,5,0)","v":17.095642941782923}]
["DGRCIC-009-01-02","Dispositivo Token",0.20874749298034487,0.52186873245086218,34.757978918269977,35.279847650720839,null,null,null,null,null,{"$f":"VLOOKUP(A63,'[1]COSTO ADMINISTRACIÓN PÚBLICA'!$A$6:$C$82,3,0)","v":0.20874749298034487},{"$f":"VLOOKUP(A63,'[1]COSTO ADMINISTRACIÓN PÚBLICA'!$A$6:$F$82,5,0)","v":34.757978918269977}]
["DGRCIC-001-02-04","Emisión de Cédula de Identidad Por Primera Vez o Renovación Para Extranjeros Con Residencia Temporal o Residencia Permanente",0.13138888888888894,0.32847222222222239,11.311259769143803,11.639731991366025,null,null,null,null,null,{"$f":"VLOOKUP(A64,'[1]COSTO ADMINISTRACIÓN PÚBLICA'!$A$6:$C$82,3,0)","v":0.13138888888888894},{"$f":"VLOOKUP(A64,'[1]COSTO ADMINISTRACIÓN PÚBLICA'!$A$6:$F$82,5,0)","v":11.311259769143803}]
["DGRCIC-005-01-03","Inscripción ordinaria de defunción sin atención médica",0.20361111111111119,0.50902777777777797,10.670218634645366,11.179246412423144,null,null,null,null,null,{"$f":"VLOOKUP(A65,'[1]COSTO ADMINISTRACIÓN PÚBLICA'!$A$6:$C$82,3,0)","v":0.20361111111111119},{"$f":"VLOOKUP(A65,'[1]COSTO ADMINISTRACIÓN PÚBLICA'!$A$6:$F$82,5,0)","v":10.670218634645366}]
["DGRCIC-013-01-01","Inscripción ordinaria y extraordinaria de Nacimiento y Defunción.",0.20361111111111119,0.50902777777777797,10.670218634645366,11.179246412423144,null,null,null,null,null,{"$f":"VLOOKUP(A66,'[1]COSTO ADMINISTRACIÓN PÚBLICA'!$A$6:$C$82,3,0)","v":0.20361111111111119},{"$f":"VLOOKUP(A66,'[1]COSTO ADMINISTRACIÓN PÚBLICA'!$A$6:$F$82,5,0)","v":10.670218634645366}]
["DGRCIC-009-01-01","Emisión de Certificado Digital de Firma Electrónica en Token",0.20874749298034487,0.52186873245086218,20.657978918269976,21.179847650720838,null,null,null,null,null,{"$f":"VLOOKUP(A67,'[1]COSTO ADMINISTRACIÓN PÚBLICA'!$A$6:$C$82,3,0)","v":0.20874749298034487},{"$f":"VLOOKUP(A67,'[1]COSTO ADMINISTRACIÓN PÚBLICA'!$A$6:$F$82,5,0)","v":20.657978918269976}]
["DGRCIC-005-05-01","Inscripción de defunción ordinaria con atención médica",0.20361111111111119,0.50902777777777797,10.670218634645366,11.179246412423144,null,null,null,null,null,{"$f":"VLOOKUP(A68,'[1]COSTO ADMINISTRACIÓN PÚBLICA'!$A$6:$C$82,3,0)","v":0.20361111111111119},{"$f":"VLOOKUP(A68,'[1]COSTO ADMINISTRACIÓN PÚBLICA'!$A$6:$F$82,5,0)","v":10.670218634645366}]
["DGRCIC-005-01-02","Inscripción ordinaria de defunción con atención médica",0.20361111111111119,0.50902777777777797,10.670218634645366,11.179246412423144,null,null,null,null,null,{"$f":"VLOOKUP(A69,'[1]COSTO ADMINISTRACIÓN PÚBLICA'!$A$6:$C$82,3,0)","v":0.20361111111111119},{"$f":"VLOOKUP(A69,'[1]COSTO ADMINISTRACIÓN PÚBLICA'!$A$6:$F$82,5,0)","v":10.670218634645366}]
["DGRCIC-006-01-05","Rectificación de datos registrales en Actas Registrales (Resolución Administrativa)",0.2486111111111112,0.62152777777777801,13.431417216522316,14.052944994300095,null,null,null,null,null,{"$f":"VLOOKUP(A70,'[1]COSTO ADMINISTRACIÓN PÚBLICA'!$A$6:$C$82,3,0)","v":0.2486111111111112},{"$f":"VLOOKUP(A70,'[1]COSTO ADMINISTRACIÓN PÚBLICA'!$A$6:$F$82,5,0)","v":13.431417216522316}]
["DGRCIC-010-01-07","Emisión de Pasaporte Ordinario por Pérdida o Robo",0.14892907058001409,0.37232267645003525,17.095642941782923,17.467965618232959,null,null,null,null,null,{"$f":"VLOOKUP(A71,'[1]COSTO ADMINISTRACIÓN PÚBLICA'!$A$6:$C$82,3,0)","v":0.14892907058001409},{"$f":"VLOOKUP(A71,'[1]COSTO ADMINISTRACIÓN PÚBLICA'!$A$6:$F$82,5,0)","v":17.095642941782923}]
["DGRCIC-007-01-08","Emisión de Certificado de Identidad y Estado Civil en línea",7.300682261208577E-2,{"$f":"C72*$I$4/160","v":0.18251705653021441},0,{"$f":"D72+E72","v":0.18251705653021441},null,null,null,null,null,{"$f":"VLOOKUP(A72,'[1]COSTO ADMINISTRACIÓN PÚBLICA'!$A$6:$C$82,3,0)","v":7.300682261208577E-2},{"$f":"VLOOKUP(A72,'[1]COSTO ADMINISTRACIÓN PÚBLICA'!$A$6:$F$82,5,0)","v":0}]
["DGRCIC-009-01-03","Emisión de Certificado Digital de Firma Electrónica en Archivo",0.20874749298034487,0.52186873245086218,20.657978918269976,21.179847650720838,null,null,null,null,null,{"$f":"VLOOKUP(A73,'[1]COSTO ADMINISTRACIÓN PÚBLICA'!$A$6:$C$82,3,0)","v":0.20874749298034487},{"$f":"VLOOKUP(A73,'[1]COSTO ADMINISTRACIÓN PÚBLICA'!$A$6:$F$82,5,0)","v":20.657978918269976}]
["DGRCIC-010-01-01","Emisión de Pasaporte Ordinario Por Primera Vez",0.14892907058001409,0.37232267645003525,17.095642941782927,17.467965618232963,null,null,null,null,null,{"$f":"VLOOKUP(A74,'[1]COSTO ADMINISTRACIÓN PÚBLICA'!$A$6:$C$82,3,0)","v":0.14892907058001409},{"$f":"VLOOKUP(A74,'[1]COSTO ADMINISTRACIÓN PÚBLICA'!$A$6:$F$82,5,0)","v":17.095642941782927}]
["DGRCIC-010-01-04","Emisión de Pasaporte Ordinario por Renovación",0.14892907058001409,0.37232267645003525,17.095642941782927,17.467965618232963,null,null,null,null,null,{"$f":"VLOOKUP(A75,'[1]COSTO ADMINISTRACIÓN PÚBLICA'!$A$6:$C$82,3,0)","v":0.14892907058001409},{"$f":"VLOOKUP(A75,'[1]COSTO ADMINISTRACIÓN PÚBLICA'!$A$6:$F$82,5,0)","v":17.095642941782927}]
["DGRCIC-007-02-02","Convalidación de Documentos Registrales",7.300682261208577E-2,0.18251705653021441,0,0.18251705653021441,null,null,null,null,null,{"$f":"VLOOKUP(A76,'[1]COSTO ADMINISTRACIÓN PÚBLICA'!$A$6:$C$82,3,0)","v":7.300682261208577E-2},{"$f":"VLOOKUP(A76,'[1]COSTO ADMINISTRACIÓN PÚBLICA'!$A$6:$F$82,5,0)","v":0}]
["DGRCIC-007-01-07","Emisión de Certificado de Datos Registrales: Nacimiento, Matrimonio y Unión de Hecho en Línea",0.2486111111111112,0.62152777777777801,0,0.62152777777777801,null,null,null,null,null,{"$f":"VLOOKUP(A77,'[1]COSTO ADMINISTRACIÓN PÚBLICA'!$A$6:$C$82,3,0)","v":0.2486111111111112},{"$f":"VLOOKUP(A77,'[1]COSTO ADMINISTRACIÓN PÚBLICA'!$A$6:$F$82,5,0)","v":0}]
["DGRCIC-007-01-04","Emisión de certificados de Identidad y Estado Civil",0,0,3.4911023217652919,3.4911023217652919,null,null,null,null,null,{"$f":"VLOOKUP(A78,'[1]COSTO ADMINISTRACIÓN PÚBLICA'!$A$6:$C$82,3,0)","v":0},{"$f":"VLOOKUP(A78,'[1]COSTO ADMINISTRACIÓN PÚBLICA'!$A$6:$F$82,5,0)","v":3.4911023217652919}]
["DGRCIC-002-01-01","Inscripción ordinaria y extraordinaria de nacimiento con atención médica",0.16500000000000001,0.41249999999999998,8.4612597691438047,8.8737597691438044,null,null,null,null,null,{"$f":"VLOOKUP(A79,'[1]COSTO ADMINISTRACIÓN PÚBLICA'!$A$6:$C$82,3,0)","v":0.16500000000000001},{"$f":"VLOOKUP(A79,'[1]COSTO ADMINISTRACIÓN PÚBLICA'!$A$6:$F$82,5,0)","v":8.4612597691438047}]
["DGRCIC-007-01-06","Emisión de Copia del Acta Registral: Nacimiento, Matrimonio, Defunción, Unión de Hecho y Registro de Género / Cambio de Nombre",0.20361111111111119,0.50902777777777797,6.2523009036422428,6.7613286814200206,null,null,null,null,null,{"$f":"VLOOKUP(A80,'[1]COSTO ADMINISTRACIÓN PÚBLICA'!$A$6:$C$82,3,0)","v":0.20361111111111119},{"$f":"VLOOKUP(A80,'[1]COSTO ADMINISTRACIÓN PÚBLICA'!$A$6:$F$82,5,0)","v":6.2523009036422428}]
["DGRCIC-001-01-01","Emisión de Cédula de Identidad Por Primera Vez o Renovación Para Ecuatorianos",0.13138888888888894,0.32847222222222239,11.311259769143803,11.639731991366025,null,null,null,null,null,{"$f":"VLOOKUP(A81,'[1]COSTO ADMINISTRACIÓN PÚBLICA'!$A$6:$C$82,3,0)","v":0.13138888888888894},{"$f":"VLOOKUP(A81,'[1]COSTO ADMINISTRACIÓN PÚBLICA'!$A$6:$F$82,5,0)","v":11.311259769143803}]
["DGRCIC-007-01-01","Emisión de Certificados de Datos Registrales: Nacimiento, Matrimonio, Defunción y Unión de Hecho",0.20361111111111119,0.50902777777777797,3.4911023217652919,{"$f":"D82+E82","v":4.0001300995430702},null,null,null,null,null,{"$f":"VLOOKUP(A82,'[1]COSTO ADMINISTRACIÓN PÚBLICA'!$A$6:$C$82,3,0)","v":0.20361111111111119},{"$f":"VLOOKUP(A82,'[1]COSTO ADMINISTRACIÓN PÚBLICA'!$A$6:$F$82,5,0)","v":3.4911023217652919}]

{"sheet":"RESUMEN DE COSTOS AP","index":4,"n_rows":81,"n_cols":4,"rows_kept":81,"cut":false,"hidden":false,"merged":[[0,0,0,5],[1,0,1,5]]}
["PRIORIZACIÓN DE TRÁMITES ADMINISTRATIVOS"]
["COSTOS PARA LA ADMINISTRACIÓN PÚBLICA"]
[]
["IDENTIFICADOR","TRÁMITE","COSTO PARA LA ADM. PÚBLICA","PUNTUACIÓN"]
["DGRCIC-012-02-01","Registro de género en Consulados",0,0]
["DGRCIC-008-01-02","Sistema Nacional de Identificación Ciudadana - Consulta de Cédula de Papel",0,0]
["DGRCIC-008-01-03","Validación Contra Base de Datos",0,0]
["DGRCIC-008-01-01","Web service - Demográfico",0,0]
["DGRCIC-007-02-02","Convalidación de Documentos Registrales",0.18251705653021441,5]
["DGRCIC-007-01-08","Emisión de Certificado de Identidad y Estado Civil en línea",0.18251705653021441,5]
["DGRCIC-002-01-08","Inscripción de hijos de progenitoras del mismo sexo por reproducción asistida",0.41249999999999998,5]
["DGRCIC-002-02-02","Inscripción de nacimiento por adopción en el exterior",0.41249999999999998,5]
["DGRCIC-002-04-03","Registro de naturalización de hijos de padres naturalizados",0.41249999999999998,5]
["DGRCIC-002-04-01","Registro de naturalización por carta de naturalización",0.41249999999999998,5]
["DGRCIC-005-01-08","Inscripción de defunción por desastres, conflictos armados y epidemias",0.50902777777777797,5]
["DGRCIC-007-01-07","Emisión de Certificado de Datos Registrales: Nacimiento, Matrimonio y Unión de Hecho en Línea",0.62152777777777801,5]
["DGRCIC-001-05-01","Emisión de Cédula de Identidad Por Primera Vez o Renovación Para Ecuatorianos a Través de Brigada Móvil",3.1784722222222226,5]
["DGRCIC-007-01-04","Emisión de certificados de Identidad y Estado Civil",3.4911023217652919,5]
["DGRCIC-007-01-01","Emisión de Certificados de Datos Registrales: Nacimiento, Matrimonio, Defunción y Unión de Hecho",4.0001300995430702,5]
["DGRCIC-001-06-01","Emisión de duplicado de cédula de identidad",6.6695745439875145,5]
["DGRCIC-007-01-06","Emisión de Copia del Acta Registral: Nacimiento, Matrimonio, Defunción, Unión de Hecho y Registro de Género / Cambio de Nombre",6.7613286814200206,5]
["DGRCIC-006-01-04","Reconocimiento voluntario de hijo/a",8.4612597691438047,5]
["DGRCIC-002-01-07","Inscripción de nacimiento por adopción",8.8737597691438044,5]
["DGRCIC-002-01-06","Inscripción de nacimiento por informe de expósito",8.8737597691438044,5]
["DGRCIC-002-01-05","Inscripción extraordinaria de nacimiento (mayor de 18 años) por orden judicial (inscripción de sentencia)",8.8737597691438044,5]
["DGRCIC-002-01-01","Inscripción ordinaria y extraordinaria de nacimiento con atención médica",8.8737597691438044,5]
["DGRCIC-002-01-02","Inscripción ordinaria y extraordinaria de nacimiento sin atención médica",8.8737597691438044,5]
["DGRCIC-002-04-02","Registro de nacimiento por servicios relevantes",8.8737597691438044,5]
["DGRCIC-005-01-04","Inscripción extraordinaria de defunción sin atención médica",11.179246412423142,5]
["DGRCIC-005-05-03","Inscripción de defunción extraordinaria con atención médica",11.179246412423144,5]
["DGRCIC-005-01-06","Inscripción de defunción fetal",11.179246412423144,5]
["DGRCIC-005-05-01","Inscripción de defunción ordinaria con atención médica",11.179246412423144,5]
["DGRCIC-005-01-05","Inscripción de defunción por muerte presunta mediante orden judicial (Inscripción de sentencia)",11.179246412423144,5]
["DGRCIC-005-01-09","Inscripción de defunción por orden judicial (Inscripción de sentencia)",11.179246412423144,5]
["DGRCIC-005-01-01","Inscripción extraordinaria de defunción con atención médica",11.179246412423144,5]
["DGRCIC-005-01-02","Inscripción ordinaria de defunción con atención médica",11.179246412423144,5]
["DGRCIC-005-01-03","Inscripción ordinaria de defunción sin atención médica",11.179246412423144,5]
["DGRCIC-013-01-01","Inscripción ordinaria y extraordinaria de Nacimiento y Defunción.",11.179246412423144,5]
["DGRCIC-002-06-01","Inscripción ordinaria y extraordinaria de nacimiento con atención médica en consulados",11.634958351020755,10]
["DGRCIC-002-07-01","Registro de nacimiento en Consulados",11.634958351020755,10]
["DGRCIC-002-02-01","Registro de nacimiento ocurrido en el exterior (reconocimiento de nacionalidad)",11.634958351020755,10]
["DGRCIC-001-02-01","Emisión de Cédula de Identidad Por Primera Vez Doble Nacionalidad",11.639731991366025,10]
["DGRCIC-001-02-02","Emisión de Cédula de Identidad Por Primera Vez Naturalización",11.639731991366025,10]
["DGRCIC-001-01-01","Emisión de Cédula de Identidad Por Primera Vez o Renovación Para Ecuatorianos",11.639731991366025,10]
["DGRCIC-001-02-04","Emisión de Cédula de Identidad Por Primera Vez o Renovación Para Extranjeros Con Residencia Temporal o Residencia Permanente",11.639731991366025,10]
["DGRCIC-001-02-06","Emisión de cédula de identidad por primera vez para extrajeros con protección internacional",11.639731991366025,10]
["DGRCIC-001-04-01","Emisión de Cédula de Identidad Por Registro de Género",11.639731991366025,10]
["DGRCIC-005-02-02","Inscripción extraordinaria de defunción ocurrida en el exterior (en frontera)",11.731486128798533,10]
["DGRCIC-005-05-04","Registro de defunción en Consulados",11.731486128798533,10]
["DGRCIC-005-02-03","Registro de defunción ocurrido en el exterior",11.731486128798533,10]
["DGRCIC-005-02-01","Inscripción ordinaria de defunción ocurrida en el exterior (en frontera)",11.731486128798535,10]
["DGRCIC-006-04-04","Registro de capitulaciones matrimoniales",11.774698067396145,10]
["DGRCIC-003-02-01","Registro de matrimonio entre uno o dos ecuatorianos realizado en el exterior",11.843986128798534,10]
["DGRCIC-003-05-01","Registro de matrimonio en Consulados",11.843986128798536,10]
["DGRCIC-003-01-15","Solemnización de matrimonio en sede de registro civil si los contrayentes son solteros y no tienen hijos menores de edad",12.218561821660973,10]
["DGRCIC-011-01-01","Registro de unión de hecho",12.395922298702924,10]
["DGRCIC-003-01-18","Inscripción de matrimonio por orden judicial (Inscripción de sentencia)",12.396225845173923,20]
["DGRCIC-006-04-07","Registro de separación de la sociedad de bienes en la unión de hecho",12.396225845173923,20]
["DGRCIC-003-01-07","Solemnización de matrimonio en sede de registro civil si uno o ambos contrayentes son extranjeros con condición migratoria de residencia temporal",12.396225845173923,20]
["DGRCIC-003-01-01","Solemnización de matrimonio en sede de registro civil si uno o los dos contrayentes solteros tiene hijo/s menor/es de edad",12.396225845173923,20]
["DGRCIC-003-01-03","Solemnización de matrimonio en sede de registro civil si uno o los dos contrayentes son divorciados y tiene hijos menores de edad",12.396225845173923,20]
["DGRCIC-003-01-04","Solemnización de matrimonio en sede de registro civil si uno o los dos contrayentes son viudos y tienen hijos menores de edad",12.396225845173923,20]
["DGRCIC-003-01-16","Solemnización de matrimonio fuera de sede de registro civil si los contrayentes son solteros y no tuvieren hijos menores de edad",12.396225845173923,20]
["DGRCIC-003-01-17","Solemnización de matrimonio fuera de sede de registro civil si uno o ambos contrayentes son extranjeros con condición migratoria de residencia temporal",12.396225845173923,20]
["DGRCIC-003-01-11","Solemnización de matrimonio fuera de sede de registro civil si uno o los dos contrayentes son viudos y tienen hijo/s menor/es de edad",12.396225845173923,20]
["DGRCIC-003-01-13","Solemnización de matrimonio fuera de sede de registro civil si uno de los contrayentes se encuentra privado de la libertad",12.396225845173925,20]
["DGRCIC-003-01-08","Solemnización de matrimonio fuera de sede de registro civil si uno o los dos contrayentes solteros tiene hijo/s menor/es de edad",12.396225845173925,20]
["DGRCIC-006-01-01","Cambio de nombre Mayores de 18 años",13.940444994300094,20]
["DGRCIC-006-01-03","Posesión notoria de apellidos",14.052944994300095,20]
["DGRCIC-006-04-05","Reconocimiento de Hijo/a por sentencia ejecutoriada o Acta Notarial",14.052944994300095,20]
["DGRCIC-006-04-01","Rectificación a la información registral por sentencia ejecutoriada",14.052944994300095,20]
["DGRCIC-006-01-05","Rectificación de datos registrales en Actas Registrales (Resolución Administrativa)",14.052944994300095,20]
["DGRCIC-010-01-07","Emisión de Pasaporte Ordinario por Pérdida o Robo",17.467965618232959,20]
["DGRCIC-010-01-03","Emisión de pasaporte ordinario por primera vez menores de 18 años, en caso de ausencia de uno o de los dos padres",17.467965618232959,20]
["DGRCIC-010-01-08","Emisión de pasaporte ordinario por renovación para menores de 18 años por pérdida o robo",17.467965618232959,20]
["DGRCIC-010-01-01","Emisión de Pasaporte Ordinario Por Primera Vez",17.467965618232963,20]
["DGRCIC-010-01-04","Emisión de Pasaporte Ordinario por Renovación",17.467965618232963,20]
["DGRCIC-012-01-01","Registro de género",18.011215601520416,20]
["DGRCIC-009-01-03","Emisión de Certificado Digital de Firma Electrónica en Archivo",21.179847650720838,20]
["DGRCIC-009-01-01","Emisión de Certificado Digital de Firma Electrónica en Token",21.179847650720838,20]
["DGRCIC-009-01-02","Dispositivo Token",35.279847650720839,20]

{"sheet":"AUXILIAR COSTO ADMINISTRACIÓN","index":5,"n_rows":20,"n_cols":3,"rows_kept":20,"cut":false,"hidden":false,"merged":[[1,1,1,2]]}
[]
["TRÁMITE:"]
["NO.","ACTIVIDAD","TIEMPO (HORAS)"]
[1]
[2]
[3]
[4]
[5]
[6]
[7]
[8]
[9]
[10]
[11]
[12]
[13]
[14]
[15]
[]
[null,"SUMATORIA ACTIVIDADES",{"$f":"SUM(C4:C19)","v":0}]

{"sheet":"TIEMPO DE RESPUESTA","index":6,"n_rows":81,"n_cols":10,"rows_kept":81,"cut":false,"hidden":false,"merged":[[0,0,0,3],[1,0,1,3]]}
["PRIORIZACIÓN DE TRÁMITES ADMINISTRATIVOS"]
["TIEMPO DE RESPUESTA"]
[]
["IDENTIFICADOR","TRÁMITE","TIEMPO RESPUESTA (horas laborables)","PUNTUACIÓN"]
["DGRCIC-002-01-08","Inscripción de hijos de progenitoras del mismo sexo por reproducción asistida",0.626388888888888,0,null,null,null,null,null,{"$f":"+VLOOKUP(A5,'[1]TIEMPO DE RESPUESTA'!$A$5:$C$81,3,0)","v":0.626388888888888}]
["DGRCIC-002-02-02","Inscripción de nacimiento por adopción en el exterior",0.626388888888888,0,null,null,null,null,null,{"$f":"+VLOOKUP(A6,'[1]TIEMPO DE RESPUESTA'!$A$5:$C$81,3,0)","v":0.626388888888888}]
["DGRCIC-012-02-01","Registro de género en Consulados",1.3,0,null,null,null,null,null,{"$f":"+VLOOKUP(A7,'[1]TIEMPO DE RESPUESTA'!$A$5:$C$81,3,0)","v":1.3}]
["DGRCIC-002-04-03","Registro de naturalización de hijos de padres naturalizados",0.626388888888888,0,null,null,null,null,null,{"$f":"+VLOOKUP(A8,'[1]TIEMPO DE RESPUESTA'!$A$5:$C$81,3,0)","v":0.626388888888888}]
["DGRCIC-002-04-01","Registro de naturalización por carta de naturalización",0.626388888888888,0,null,null,null,null,null,{"$f":"+VLOOKUP(A9,'[1]TIEMPO DE RESPUESTA'!$A$5:$C$81,3,0)","v":0.626388888888888}]
["DGRCIC-008-01-03","Validación Contra Base de Datos",0,null,null,null,null,null,null,{"$f":"+VLOOKUP(A10,'[1]TIEMPO DE RESPUESTA'!$A$5:$C$81,3,0)","v":0}]
["DGRCIC-003-01-13","Solemnización de matrimonio fuera de sede de registro civil si uno de los contrayentes se encuentra privado de la libertad",0.75660901467505204,null,null,null,null,null,null,{"$f":"+VLOOKUP(A11,'[1]TIEMPO DE RESPUESTA'!$A$5:$C$81,3,0)","v":0.75660901467505204}]
["DGRCIC-008-01-01","Web service - Demográfico",0,null,null,null,null,null,null,{"$f":"+VLOOKUP(A12,'[1]TIEMPO DE RESPUESTA'!$A$5:$C$81,3,0)","v":0}]
["DGRCIC-003-01-11","Solemnización de matrimonio fuera de sede de registro civil si uno o los dos contrayentes son viudos y tienen hijo/s menor/es de edad",0.75660901467505204,null,null,null,null,null,null,{"$f":"+VLOOKUP(A13,'[1]TIEMPO DE RESPUESTA'!$A$5:$C$81,3,0)","v":0.75660901467505204}]
["DGRCIC-002-01-07","Inscripción de nacimiento por adopción",0.626388888888888,null,null,null,null,null,null,{"$f":"+VLOOKUP(A14,'[1]TIEMPO DE RESPUESTA'!$A$5:$C$81,3,0)","v":0.626388888888888}]
["DGRCIC-003-01-17","Solemnización de matrimonio fuera de sede de registro civil si uno o ambos contrayentes son extranjeros con condición migratoria de residencia temporal",0.75660901467505204,null,null,null,null,null,null,{"$f":"+VLOOKUP(A15,'[1]TIEMPO DE RESPUESTA'!$A$5:$C$81,3,0)","v":0.75660901467505204}]
["DGRCIC-008-01-02","Sistema Nacional de Identificación Ciudadana - Consulta de Cédula de Papel",0,null,null,null,null,null,null,{"$f":"+VLOOKUP(A16,'[1]TIEMPO DE RESPUESTA'!$A$5:$C$81,3,0)","v":0}]
["DGRCIC-002-01-06","Inscripción de nacimiento por informe de expósito",0.626388888888888,null,null,null,null,null,null,{"$f":"+VLOOKUP(A17,'[1]TIEMPO DE RESPUESTA'!$A$5:$C$81,3,0)","v":0.626388888888888}]
["DGRCIC-012-01-01","Registro de género",1.2962962962962952,null,null,null,null,null,null,{"$f":"+VLOOKUP(A18,'[1]TIEMPO DE RESPUESTA'!$A$5:$C$81,3,0)","v":1.2962962962962952}]
["DGRCIC-003-01-08","Solemnización de matrimonio fuera de sede de registro civil si uno o los dos contrayentes solteros tiene hijo/s menor/es de edad",0.75660901467505204,null,null,null,null,null,null,{"$f":"+VLOOKUP(A19,'[1]TIEMPO DE RESPUESTA'!$A$5:$C$81,3,0)","v":0.75660901467505204}]
["DGRCIC-002-04-02","Registro de nacimiento por servicios relevantes",0.626388888888888,null,null,null,null,null,null,{"$f":"+VLOOKUP(A20,'[1]TIEMPO DE RESPUESTA'!$A$5:$C$81,3,0)","v":0.626388888888888}]
["DGRCIC-003-01-16","Solemnización de matrimonio fuera de sede de registro civil si los contrayentes son solteros y no tuvieren hijos menores de edad",0.75660901467505204,null,null,null,null,null,null,{"$f":"+VLOOKUP(A21,'[1]TIEMPO DE RESPUESTA'!$A$5:$C$81,3,0)","v":0.75660901467505204}]
["DGRCIC-005-02-02","Inscripción extraordinaria de defunción ocurrida en el exterior (en frontera)",0.65536183157220718,null,null,null,null,null,null,{"$f":"+VLOOKUP(A22,'[1]TIEMPO DE RESPUESTA'!$A$5:$C$81,3,0)","v":0.65536183157220718}]
["DGRCIC-001-04-01","Emisión de Cédula de Identidad Por Registro de Género",1.1427777777777768,null,null,null,null,null,null,{"$f":"+VLOOKUP(A23,'[1]TIEMPO DE RESPUESTA'!$A$5:$C$81,3,0)","v":1.1427777777777768}]
["DGRCIC-005-02-03","Registro de defunción ocurrido en el exterior",0.65536183157220718,null,null,null,null,null,null,{"$f":"+VLOOKUP(A24,'[1]TIEMPO DE RESPUESTA'!$A$5:$C$81,3,0)","v":0.65536183157220718}]
["DGRCIC-002-02-01","Registro de nacimiento ocurrido en el exterior (reconocimiento de nacionalidad)",0.626388888888888,null,null,null,null,null,null,{"$f":"+VLOOKUP(A25,'[1]TIEMPO DE RESPUESTA'!$A$5:$C$81,3,0)","v":0.626388888888888}]
["DGRCIC-003-02-01","Registro de matrimonio entre uno o dos ecuatorianos realizado en el exterior",0.75660901467505204,null,null,null,null,null,null,{"$f":"+VLOOKUP(A26,'[1]TIEMPO DE RESPUESTA'!$A$5:$C$81,3,0)","v":0.75660901467505204}]
["DGRCIC-002-07-01","Registro de nacimiento en Consulados",0.626388888888888,null,null,null,null,null,null,{"$f":"+VLOOKUP(A27,'[1]TIEMPO DE RESPUESTA'!$A$5:$C$81,3,0)","v":0.626388888888888}]
["DGRCIC-005-05-04","Registro de defunción en Consulados",0.65536183157220718,null,null,null,null,null,null,{"$f":"+VLOOKUP(A28,'[1]TIEMPO DE RESPUESTA'!$A$5:$C$81,3,0)","v":0.65536183157220718}]
["DGRCIC-005-02-01","Inscripción ordinaria de defunción ocurrida en el exterior (en frontera)",0.65536183157220718,null,null,null,null,null,null,{"$f":"+VLOOKUP(A29,'[1]TIEMPO DE RESPUESTA'!$A$5:$C$81,3,0)","v":0.65536183157220718}]
["DGRCIC-003-05-01","Registro de matrimonio en Consulados",0.75660901467505204,null,null,null,null,null,null,{"$f":"+VLOOKUP(A30,'[1]TIEMPO DE RESPUESTA'!$A$5:$C$81,3,0)","v":0.75660901467505204}]
["DGRCIC-006-04-07","Registro de separación de la sociedad de bienes en la unión de hecho",0.9249512235449735,null,null,null,null,null,null,{"$f":"+VLOOKUP(A31,'[1]TIEMPO DE RESPUESTA'!$A$5:$C$81,3,0)","v":0.9249512235449735}]
["DGRCIC-003-01-18","Inscripción de matrimonio por orden judicial (Inscripción de sentencia)",0.75660901467505204,null,null,null,null,null,null,{"$f":"+VLOOKUP(A32,'[1]TIEMPO DE RESPUESTA'!$A$5:$C$81,3,0)","v":0.75660901467505204}]
["DGRCIC-001-02-01","Emisión de Cédula de Identidad Por Primera Vez Doble Nacionalidad",1.1427777777777768,null,null,null,null,null,null,{"$f":"+VLOOKUP(A33,'[1]TIEMPO DE RESPUESTA'!$A$5:$C$81,3,0)","v":1.1427777777777768}]
["DGRCIC-001-02-02","Emisión de Cédula de Identidad Por Primera Vez Naturalización",1.1427777777777768,null,null,null,null,null,null,{"$f":"+VLOOKUP(A34,'[1]TIEMPO DE RESPUESTA'!$A$5:$C$81,3,0)","v":1.1427777777777768}]
["DGRCIC-005-01-06","Inscripción de defunción fetal",0.65536183157220718,null,null,null,null,null,null,{"$f":"+VLOOKUP(A35,'[1]TIEMPO DE RESPUESTA'!$A$5:$C$81,3,0)","v":0.65536183157220718}]
["DGRCIC-006-01-01","Cambio de nombre Mayores de 18 años",0.66475386779184231,null,null,null,null,null,null,{"$f":"+VLOOKUP(A36,'[1]TIEMPO DE RESPUESTA'!$A$5:$C$81,3,0)","v":0.66475386779184231}]
["DGRCIC-001-02-06","Emisión de cédula de identidad por primera vez para extrajeros con protección internacional",1.1427777777777768,null,null,null,null,null,null,{"$f":"+VLOOKUP(A37,'[1]TIEMPO DE RESPUESTA'!$A$5:$C$81,3,0)","v":1.1427777777777768}]
["DGRCIC-002-01-05","Inscripción extraordinaria de nacimiento (mayor de 18 años) por orden judicial (inscripción de sentencia)",0.626388888888888,null,null,null,null,null,null,{"$f":"+VLOOKUP(A38,'[1]TIEMPO DE RESPUESTA'!$A$5:$C$81,3,0)","v":0.626388888888888}]
["DGRCIC-006-04-04","Registro de capitulaciones matrimoniales",0.75660901467505204,null,null,null,null,null,null,{"$f":"+VLOOKUP(A39,'[1]TIEMPO DE RESPUESTA'!$A$5:$C$81,3,0)","v":0.75660901467505204}]
["DGRCIC-011-01-01","Registro de unión de hecho",0.75660901467505204,null,null,null,null,null,null,{"$f":"+VLOOKUP(A40,'[1]TIEMPO DE RESPUESTA'!$A$5:$C$81,3,0)","v":0.75660901467505204}]
["DGRCIC-003-01-07","Solemnización de matrimonio en sede de registro civil si uno o ambos contrayentes son extranjeros con condición migratoria de residencia temporal",0.75660901467505204,null,null,null,null,null,null,{"$f":"+VLOOKUP(A41,'[1]TIEMPO DE RESPUESTA'!$A$5:$C$81,3,0)","v":0.75660901467505204}]
["DGRCIC-005-01-05","Inscripción de defunción por muerte presunta mediante orden judicial (Inscripción de sentencia)",0.65536183157220718,null,null,null,null,null,null,{"$f":"+VLOOKUP(A42,'[1]TIEMPO DE RESPUESTA'!$A$5:$C$81,3,0)","v":0.65536183157220718}]
["DGRCIC-003-01-04","Solemnización de matrimonio en sede de registro civil si uno o los dos contrayentes son viudos y tienen hijos menores de edad",0.75660901467505204,null,null,null,null,null,null,{"$f":"+VLOOKUP(A43,'[1]TIEMPO DE RESPUESTA'!$A$5:$C$81,3,0)","v":0.75660901467505204}]
["DGRCIC-006-01-03","Posesión notoria de apellidos",0.9249512235449735,null,null,null,null,null,null,{"$f":"+VLOOKUP(A44,'[1]TIEMPO DE RESPUESTA'!$A$5:$C$81,3,0)","v":0.9249512235449735}]
["DGRCIC-003-01-01","Solemnización de matrimonio en sede de registro civil si uno o los dos contrayentes solteros tiene hijo/s menor/es de edad",0.75660901467505204,null,null,null,null,null,null,{"$f":"+VLOOKUP(A45,'[1]TIEMPO DE RESPUESTA'!$A$5:$C$81,3,0)","v":0.75660901467505204}]
["DGRCIC-001-06-01","Emisión de duplicado de cédula de identidad",0.25,null,null,null,null,null,null,{"$f":"+VLOOKUP(A46,'[1]TIEMPO DE RESPUESTA'!$A$5:$C$81,3,0)","v":0.25}]
["DGRCIC-005-01-09","Inscripción de defunción por orden judicial (Inscripción de sentencia)",0.65536183157220718,null,null,null,null,null,null,{"$f":"+VLOOKUP(A47,'[1]TIEMPO DE RESPUESTA'!$A$5:$C$81,3,0)","v":0.65536183157220718}]
["DGRCIC-006-01-04","Reconocimiento voluntario de hijo/a",0.62650837988826713,null,null,null,null,null,null,{"$f":"+VLOOKUP(A48,'[1]TIEMPO DE RESPUESTA'!$A$5:$C$81,3,0)","v":0.62650837988826713}]
["DGRCIC-003-01-03","Solemnización de matrimonio en sede de registro civil si uno o los dos contrayentes son divorciados y tiene hijos menores de edad",0.75660901467505204,null,null,null,null,null,null,{"$f":"+VLOOKUP(A49,'[1]TIEMPO DE RESPUESTA'!$A$5:$C$81,3,0)","v":0.75660901467505204}]
["DGRCIC-002-01-02","Inscripción ordinaria y extraordinaria de nacimiento sin atención médica",0.626388888888888,null,null,null,null,null,null,{"$f":"+VLOOKUP(A50,'[1]TIEMPO DE RESPUESTA'!$A$5:$C$81,3,0)","v":0.626388888888888}]
["DGRCIC-005-01-04","Inscripción extraordinaria de defunción sin atención médica",0.65536183157220718,null,null,null,null,null,null,{"$f":"+VLOOKUP(A51,'[1]TIEMPO DE RESPUESTA'!$A$5:$C$81,3,0)","v":0.65536183157220718}]
["DGRCIC-006-04-05","Reconocimiento de Hijo/a por sentencia ejecutoriada o Acta Notarial",0.9249512235449735,null,null,null,null,null,null,{"$f":"+VLOOKUP(A52,'[1]TIEMPO DE RESPUESTA'!$A$5:$C$81,3,0)","v":0.9249512235449735}]
["DGRCIC-005-01-08","Inscripción de defunción por desastres, conflictos armados y epidemias",0.65536183157220718,null,null,null,null,null,null,{"$f":"+VLOOKUP(A53,'[1]TIEMPO DE RESPUESTA'!$A$5:$C$81,3,0)","v":0.65536183157220718}]
["DGRCIC-003-01-15","Solemnización de matrimonio en sede de registro civil si los contrayentes son solteros y no tienen hijos menores de edad",0.75660901467505204,null,null,null,null,null,null,{"$f":"+VLOOKUP(A54,'[1]TIEMPO DE RESPUESTA'!$A$5:$C$81,3,0)","v":0.75660901467505204}]
["DGRCIC-006-04-01","Rectificación a la información registral por sentencia ejecutoriada",0.9249512235449735,null,null,null,null,null,null,{"$f":"+VLOOKUP(A55,'[1]TIEMPO DE RESPUESTA'!$A$5:$C$81,3,0)","v":0.9249512235449735}]
["DGRCIC-001-05-01","Emisión de Cédula de Identidad Por Primera Vez o Renovación Para Ecuatorianos a Través de Brigada Móvil",1.1427777777777768,null,null,null,null,null,null,{"$f":"+VLOOKUP(A56,'[1]TIEMPO DE RESPUESTA'!$A$5:$C$81,3,0)","v":1.1427777777777768}]
["DGRCIC-002-06-01","Inscripción ordinaria y extraordinaria de nacimiento con atención médica en consulados",0.626388888888888,null,null,null,null,null,null,{"$f":"+VLOOKUP(A57,'[1]TIEMPO DE RESPUESTA'!$A$5:$C$81,3,0)","v":0.626388888888888}]
["DGRCIC-005-05-03","Inscripción de defunción extraordinaria con atención médica",0.65536183157220718,null,null,null,null,null,null,{"$f":"+VLOOKUP(A58,'[1]TIEMPO DE RESPUESTA'!$A$5:$C$81,3,0)","v":0.65536183157220718}]
["DGRCIC-005-01-01","Inscripción extraordinaria de defunción con atención médica",0.65536183157220718,null,null,null,null,null,null,{"$f":"+VLOOKUP(A59,'[1]TIEMPO DE RESPUESTA'!$A$5:$C$81,3,0)","v":0.65536183157220718}]
["DGRCIC-010-01-03","Emisión de pasaporte ordinario por primera vez menores de 18 años, en caso de ausencia de uno o de los dos padres",1.0355363382250176,null,null,null,null,null,null,{"$f":"+VLOOKUP(A60,'[1]TIEMPO DE RESPUESTA'!$A$5:$C$81,3,0)","v":1.0355363382250176}]
["DGRCIC-010-01-08","Emisión de pasaporte ordinario por renovación para menores de 18 años por pérdida o robo",1.0355363382250176,null,null,null,null,null,null,{"$f":"+VLOOKUP(A61,'[1]TIEMPO DE RESPUESTA'!$A$5:$C$81,3,0)","v":1.0355363382250176}]
["DGRCIC-009-01-02","Dispositivo Token",0.71571901323706322,null,null,null,null,null,null,{"$f":"+VLOOKUP(A62,'[1]TIEMPO DE RESPUESTA'!$A$5:$C$81,3,0)","v":0.71571901323706322}]
["DGRCIC-001-02-04","Emisión de Cédula de Identidad Por Primera Vez o Renovación Para Extranjeros Con Residencia Temporal o Residencia Permanente",1.1427777777777768,null,null,null,null,null,null,{"$f":"+VLOOKUP(A63,'[1]TIEMPO DE RESPUESTA'!$A$5:$C$81,3,0)","v":1.1427777777777768}]
["DGRCIC-005-01-03","Inscripción ordinaria de defunción sin atención médica",0.65536183157220718,null,null,null,null,null,null,{"$f":"+VLOOKUP(A64,'[1]TIEMPO DE RESPUESTA'!$A$5:$C$81,3,0)","v":0.65536183157220718}]
["DGRCIC-013-01-01","Inscripción ordinaria y extraordinaria de Nacimiento y Defunción.",0.65536183157220718,null,null,null,null,null,null,{"$f":"+VLOOKUP(A65,'[1]TIEMPO DE RESPUESTA'!$A$5:$C$81,3,0)","v":0.65536183157220718}]
["DGRCIC-009-01-01","Emisión de Certificado Digital de Firma Electrónica en Token",0.71571901323706322,null,null,null,null,null,null,{"$f":"+VLOOKUP(A66,'[1]TIEMPO DE RESPUESTA'!$A$5:$C$81,3,0)","v":0.71571901323706322}]
["DGRCIC-005-05-01","Inscripción de defunción ordinaria con atención médica",0.65536183157220718,null,null,null,null,null,null,{"$f":"+VLOOKUP(A67,'[1]TIEMPO DE RESPUESTA'!$A$5:$C$81,3,0)","v":0.65536183157220718}]
["DGRCIC-005-01-02","Inscripción ordinaria de defunción con atención médica",0.65536183157220718,null,null,null,null,null,null,{"$f":"+VLOOKUP(A68,'[1]TIEMPO DE RESPUESTA'!$A$5:$C$81,3,0)","v":0.65536183157220718}]
["DGRCIC-006-01-05","Rectificación de datos registrales en Actas Registrales (Resolución Administrativa)",0.9249512235449735,null,null,null,null,null,null,{"$f":"+VLOOKUP(A69,'[1]TIEMPO DE RESPUESTA'!$A$5:$C$81,3,0)","v":0.9249512235449735}]
["DGRCIC-010-01-07","Emisión de Pasaporte Ordinario por Pérdida o Robo",1.0355363382250176,null,null,null,null,null,null,{"$f":"+VLOOKUP(A70,'[1]TIEMPO DE RESPUESTA'!$A$5:$C$81,3,0)","v":1.0355363382250176}]
["DGRCIC-007-01-08","Emisión de Certificado de Identidad y Estado Civil en línea",0,null,null,null,null,null,null,{"$f":"+VLOOKUP(A71,'[1]TIEMPO DE RESPUESTA'!$A$5:$C$81,3,0)","v":0}]
["DGRCIC-009-01-03","Emisión de Certificado Digital de Firma Electrónica en Archivo",0.71571901323706322,null,null,null,null,null,null,{"$f":"+VLOOKUP(A72,'[1]TIEMPO DE RESPUESTA'!$A$5:$C$81,3,0)","v":0.71571901323706322}]
["DGRCIC-010-01-01","Emisión de Pasaporte Ordinario Por Primera Vez",1.0355363382250176,null,null,null,null,null,null,{"$f":"+VLOOKUP(A73,'[1]TIEMPO DE RESPUESTA'!$A$5:$C$81,3,0)","v":1.0355363382250176}]
["DGRCIC-010-01-04","Emisión de Pasaporte Ordinario por Renovación",1.0355363382250176,null,null,null,null,null,null,{"$f":"+VLOOKUP(A74,'[1]TIEMPO DE RESPUESTA'!$A$5:$C$81,3,0)","v":1.0355363382250176}]
["DGRCIC-007-02-02","Convalidación de Documentos Registrales",0.47880360623781842,null,null,null,null,null,null,{"$f":"+VLOOKUP(A75,'[1]TIEMPO DE RESPUESTA'!$A$5:$C$81,3,0)","v":0.47880360623781842}]
["DGRCIC-007-01-07","Emisión de Certificado de Datos Registrales: Nacimiento, Matrimonio y Unión de Hecho en Línea",0,null,null,null,null,null,null,{"$f":"+VLOOKUP(A76,'[1]TIEMPO DE RESPUESTA'!$A$5:$C$81,3,0)","v":0}]
["DGRCIC-007-01-04","Emisión de certificados de Identidad y Estado Civil",0.65536183157220718,null,null,null,null,null,null,{"$f":"+VLOOKUP(A77,'[1]TIEMPO DE RESPUESTA'!$A$5:$C$81,3,0)","v":0.65536183157220718}]
["DGRCIC-002-01-01","Inscripción ordinaria y extraordinaria de nacimiento con atención médica",0.626388888888888,null,null,null,null,null,null,{"$f":"+VLOOKUP(A78,'[1]TIEMPO DE RESPUESTA'!$A$5:$C$81,3,0)","v":0.626388888888888}]
["DGRCIC-007-01-06","Emisión de Copia del Acta Registral: Nacimiento, Matrimonio, Defunción, Unión de Hecho y Registro de Género / Cambio de Nombre",0.65536183157220718,null,null,null,null,null,null,{"$f":"+VLOOKUP(A79,'[1]TIEMPO DE RESPUESTA'!$A$5:$C$81,3,0)","v":0.65536183157220718}]
["DGRCIC-001-01-01","Emisión de Cédula de Identidad Por Primera Vez o Renovación Para Ecuatorianos",1.1427777777777779,null,null,null,null,null,null,{"$f":"+VLOOKUP(A80,'[1]TIEMPO DE RESPUESTA'!$A$5:$C$81,3,0)","v":1.1427777777777779}]
["DGRCIC-007-01-01","Emisión de Certificados de Datos Registrales: Nacimiento, Matrimonio, Defunción y Unión de Hecho",0.65536183157220718,null,null,null,null,null,null,{"$f":"+VLOOKUP(A81,'[1]TIEMPO DE RESPUESTA'!$A$5:$C$81,3,0)","v":0.65536183157220718}]

{"sheet":"CANAL ATENCIÓN","index":7,"n_rows":81,"n_cols":13,"rows_kept":81,"cut":false,"hidden":false,"merged":[[0,0,0,3],[1,0,1,3]]}
["PRIORIZACIÓN DE TRÁMITES ADMINISTRATIVOS"]
["CANAL DE ATENCIÓN"]
[null,null,null,null,null,null,null,null,"Totalmente en Línea",null,null,0]
["IDENTIFICADOR","TRÁMITE","CANAL ATENCIÓN","PUNTUACIÓN",null,null,null,null,"No se completa totalmente en línea.",null,null,10]
["DGRCIC-002-01-08","Inscripción de hijos de progenitoras del mismo sexo por reproducción asistida","Presencial",{"$f":"IF(ISBLANK(C5),\"\",IF(C5=\"Totalmente en línea\",0,IF(C5=\"Inicia en línea\",6,10)))","v":10},null,null,null,null,null,null,null,null,{"$f":"VLOOKUP(A5,'[1]CANAL ATENCIÓN'!$A$5:$D$81,3,0)","v":"Presencial"}]
["DGRCIC-002-02-02","Inscripción de nacimiento por adopción en el exterior","Inicia en Línea",{"$f":"IF(ISBLANK(C6),\"\",IF(C6=\"Totalmente en línea\",0,IF(C6=\"Inicia en línea\",6,10)))","v":6},null,null,null,null,null,null,null,null,{"$f":"VLOOKUP(A6,'[1]CANAL ATENCIÓN'!$A$5:$D$81,3,0)","v":"Inicia en Línea"}]
["DGRCIC-012-02-01","Registro de género en Consulados","Presencial",10,null,null,null,null,null,null,null,null,{"$f":"VLOOKUP(A7,'[1]CANAL ATENCIÓN'!$A$5:$D$81,3,0)","v":"Presencial"}]
["DGRCIC-002-04-03","Registro de naturalización de hijos de padres naturalizados","Presencial",10,null,null,null,null,null,null,null,null,{"$f":"VLOOKUP(A8,'[1]CANAL ATENCIÓN'!$A$5:$D$81,3,0)","v":"Presencial"}]
["DGRCIC-002-04-01","Registro de naturalización por carta de naturalización","Presencial",10,null,null,null,null,null,null,null,null,{"$f":"VLOOKUP(A9,'[1]CANAL ATENCIÓN'!$A$5:$D$81,3,0)","v":"Presencial"}]
["DGRCIC-008-01-03","Validación Contra Base de Datos","Totalmente en Línea",0,null,null,null,null,null,null,null,null,{"$f":"VLOOKUP(A10,'[1]CANAL ATENCIÓN'!$A$5:$D$81,3,0)","v":"Totalmente en Línea"}]
["DGRCIC-003-01-13","Solemnización de matrimonio fuera de sede de registro civil si uno de los contrayentes se encuentra privado de la libertad","Inicia en Línea",6,null,null,null,null,null,null,null,null,{"$f":"VLOOKUP(A11,'[1]CANAL ATENCIÓN'!$A$5:$D$81,3,0)","v":"Inicia en Línea"}]
["DGRCIC-008-01-01","Web service - Demográfico","Totalmente en Línea",0,null,null,null,null,null,null,null,null,{"$f":"VLOOKUP(A12,'[1]CANAL ATENCIÓN'!$A$5:$D$81,3,0)","v":"Totalmente en Línea"}]
["DGRCIC-003-01-11","Solemnización de matrimonio fuera de sede de registro civil si uno o los dos contrayentes son viudos y tienen hijo/s menor/es de edad","Inicia en Línea",6,null,null,null,null,null,null,null,null,{"$f":"VLOOKUP(A13,'[1]CANAL ATENCIÓN'!$A$5:$D$81,3,0)","v":"Inicia en Línea"}]
["DGRCIC-002-01-07","Inscripción de nacimiento por adopción","Presencial",10,null,null,null,null,null,null,null,null,{"$f":"VLOOKUP(A14,'[1]CANAL ATENCIÓN'!$A$5:$D$81,3,0)","v":"Presencial"}]
["DGRCIC-003-01-17","Solemnización de matrimonio fuera de sede de registro civil si uno o ambos contrayentes son extranjeros con condición migratoria de residencia temporal","Inicia en Línea",6,null,null,null,null,null,null,null,null,{"$f":"VLOOKUP(A15,'[1]CANAL ATENCIÓN'!$A$5:$D$81,3,0)","v":"Inicia en Línea"}]
["DGRCIC-008-01-02","Sistema Nacional de Identificación Ciudadana - Consulta de Cédula de Papel","Totalmente en Línea",0,null,null,null,null,null,null,null,null,{"$f":"VLOOKUP(A16,'[1]CANAL ATENCIÓN'!$A$5:$D$81,3,0)","v":"Totalmente en Línea"}]
["DGRCIC-002-01-06","Inscripción de nacimiento por informe de expósito","Presencial",10,null,null,null,null,null,null,null,null,{"$f":"VLOOKUP(A17,'[1]CANAL ATENCIÓN'!$A$5:$D$81,3,0)","v":"Presencial"}]
["DGRCIC-012-01-01","Registro de género","Presencial",10,null,null,null,null,null,null,null,null,{"$f":"VLOOKUP(A18,'[1]CANAL ATENCIÓN'!$A$5:$D$81,3,0)","v":"Presencial"}]
["DGRCIC-003-01-08","Solemnización de matrimonio fuera de sede de registro civil si uno o los dos contrayentes solteros tiene hijo/s menor/es de edad","Inicia en Línea",6,null,null,null,null,null,null,null,null,{"$f":"VLOOKUP(A19,'[1]CANAL ATENCIÓN'!$A$5:$D$81,3,0)","v":"Inicia en Línea"}]
["DGRCIC-002-04-02","Registro de nacimiento por servicios relevantes","Presencial",10,null,null,null,null,null,null,null,null,{"$f":"VLOOKUP(A20,'[1]CANAL ATENCIÓN'!$A$5:$D$81,3,0)","v":"Presencial"}]
["DGRCIC-003-01-16","Solemnización de matrimonio fuera de sede de registro civil si los contrayentes son solteros y no tuvieren hijos menores de edad","Inicia en Línea",6,null,null,null,null,null,null,null,null,{"$f":"VLOOKUP(A21,'[1]CANAL ATENCIÓN'!$A$5:$D$81,3,0)","v":"Inicia en Línea"}]
["DGRCIC-005-02-02","Inscripción extraordinaria de defunción ocurrida en el exterior (en frontera)","Inicia en Línea",6,null,null,null,null,null,null,null,null,{"$f":"VLOOKUP(A22,'[1]CANAL ATENCIÓN'!$A$5:$D$81,3,0)","v":"Inicia en Línea"}]
["DGRCIC-001-04-01","Emisión de Cédula de Identidad Por Registro de Género","Presencial",10,null,null,null,null,null,null,null,null,{"$f":"VLOOKUP(A23,'[1]CANAL ATENCIÓN'!$A$5:$D$81,3,0)","v":"Presencial"}]
["DGRCIC-005-02-03","Registro de defunción ocurrido en el exterior","Inicia en Línea",6,null,null,null,null,null,null,null,null,{"$f":"VLOOKUP(A24,'[1]CANAL ATENCIÓN'!$A$5:$D$81,3,0)","v":"Inicia en Línea"}]
["DGRCIC-002-02-01","Registro de nacimiento ocurrido en el exterior (reconocimiento de nacionalidad)","Inicia en Línea",6,null,null,null,null,null,null,null,null,{"$f":"VLOOKUP(A25,'[1]CANAL ATENCIÓN'!$A$5:$D$81,3,0)","v":"Inicia en Línea"}]
["DGRCIC-003-02-01","Registro de matrimonio entre uno o dos ecuatorianos realizado en el exterior","Inicia en Línea",6,null,null,null,null,null,null,null,null,{"$f":"VLOOKUP(A26,'[1]CANAL ATENCIÓN'!$A$5:$D$81,3,0)","v":"Inicia en Línea"}]
["DGRCIC-002-07-01","Registro de nacimiento en Consulados","Presencial",10,null,null,null,null,null,null,null,null,{"$f":"VLOOKUP(A27,'[1]CANAL ATENCIÓN'!$A$5:$D$81,3,0)","v":"Presencial"}]
["DGRCIC-005-05-04","Registro de defunción en Consulados","Presencial",10,null,null,null,null,null,null,null,null,{"$f":"VLOOKUP(A28,'[1]CANAL ATENCIÓN'!$A$5:$D$81,3,0)","v":"Presencial"}]
["DGRCIC-005-02-01","Inscripción ordinaria de defunción ocurrida en el exterior (en frontera)","Inicia en Línea",6,null,null,null,null,null,null,null,null,{"$f":"VLOOKUP(A29,'[1]CANAL ATENCIÓN'!$A$5:$D$81,3,0)","v":"Inicia en Línea"}]
["DGRCIC-003-05-01","Registro de matrimonio en Consulados","Presencial",10,null,null,null,null,null,null,null,null,{"$f":"VLOOKUP(A30,'[1]CANAL ATENCIÓN'!$A$5:$D$81,3,0)","v":"Presencial"}]
["DGRCIC-006-04-07","Registro de separación de la sociedad de bienes en la unión de hecho","Presencial",10,null,null,null,null,null,null,null,null,{"$f":"VLOOKUP(A31,'[1]CANAL ATENCIÓN'!$A$5:$D$81,3,0)","v":"Presencial"}]
["DGRCIC-003-01-18","Inscripción de matrimonio por orden judicial (Inscripción de sentencia)","Presencial",10,null,null,null,null,null,null,null,null,{"$f":"VLOOKUP(A32,'[1]CANAL ATENCIÓN'!$A$5:$D$81,3,0)","v":"Presencial"}]
["DGRCIC-001-02-01","Emisión de Cédula de Identidad Por Primera Vez Doble Nacionalidad","Presencial",10,null,null,null,null,null,null,null,null,{"$f":"VLOOKUP(A33,'[1]CANAL ATENCIÓN'!$A$5:$D$81,3,0)","v":"Presencial"}]
["DGRCIC-001-02-02","Emisión de Cédula de Identidad Por Primera Vez Naturalización","Presencial",10,null,null,null,null,null,null,null,null,{"$f":"VLOOKUP(A34,'[1]CANAL ATENCIÓN'!$A$5:$D$81,3,0)","v":"Presencial"}]
["DGRCIC-005-01-06","Inscripción de defunción fetal","Presencial",10,null,null,null,null,null,null,null,null,{"$f":"VLOOKUP(A35,'[1]CANAL ATENCIÓN'!$A$5:$D$81,3,0)","v":"Presencial"}]
["DGRCIC-006-01-01","Cambio de nombre Mayores de 18 años","Presencial",10,null,null,null,null,null,null,null,null,{"$f":"VLOOKUP(A36,'[1]CANAL ATENCIÓN'!$A$5:$D$81,3,0)","v":"Presencial"}]
["DGRCIC-001-02-06","Emisión de cédula de identidad por primera vez para extrajeros con protección internacional","Presencial",10,null,null,null,null,null,null,null,null,{"$f":"VLOOKUP(A37,'[1]CANAL ATENCIÓN'!$A$5:$D$81,3,0)","v":"Presencial"}]
["DGRCIC-002-01-05","Inscripción extraordinaria de nacimiento (mayor de 18 años) por orden judicial (inscripción de sentencia)","Presencial",10,null,null,null,null,null,null,null,null,{"$f":"VLOOKUP(A38,'[1]CANAL ATENCIÓN'!$A$5:$D$81,3,0)","v":"Presencial"}]
["DGRCIC-006-04-04","Registro de capitulaciones matrimoniales","Presencial",10,null,null,null,null,null,null,null,null,{"$f":"VLOOKUP(A39,'[1]CANAL ATENCIÓN'!$A$5:$D$81,3,0)","v":"Presencial"}]
["DGRCIC-011-01-01","Registro de unión de hecho","Presencial",10,null,null,null,null,null,null,null,null,{"$f":"VLOOKUP(A40,'[1]CANAL ATENCIÓN'!$A$5:$D$81,3,0)","v":"Presencial"}]
["DGRCIC-003-01-07","Solemnización de matrimonio en sede de registro civil si uno o ambos contrayentes son extranjeros con condición migratoria de residencia temporal","Inicia en Línea",6,null,null,null,null,null,null,null,null,{"$f":"VLOOKUP(A41,'[1]CANAL ATENCIÓN'!$A$5:$D$81,3,0)","v":"Inicia en Línea"}]
["DGRCIC-005-01-05","Inscripción de defunción por muerte presunta mediante orden judicial (Inscripción de sentencia)","Presencial",10,null,null,null,null,null,null,null,null,{"$f":"VLOOKUP(A42,'[1]CANAL ATENCIÓN'!$A$5:$D$81,3,0)","v":"Presencial"}]
["DGRCIC-003-01-04","Solemnización de matrimonio en sede de registro civil si uno o los dos contrayentes son viudos y tienen hijos menores de edad","Inicia en Línea",6,null,null,null,null,null,null,null,null,{"$f":"VLOOKUP(A43,'[1]CANAL ATENCIÓN'!$A$5:$D$81,3,0)","v":"Inicia en Línea"}]
["DGRCIC-006-01-03","Posesión notoria de apellidos","Presencial",10,null,null,null,null,null,null,null,null,{"$f":"VLOOKUP(A44,'[1]CANAL ATENCIÓN'!$A$5:$D$81,3,0)","v":"Presencial"}]
["DGRCIC-003-01-01","Solemnización de matrimonio en sede de registro civil si uno o los dos contrayentes solteros tiene hijo/s menor/es de edad","Inicia en Línea",6,null,null,null,null,null,null,null,null,{"$f":"VLOOKUP(A45,'[1]CANAL ATENCIÓN'!$A$5:$D$81,3,0)","v":"Inicia en Línea"}]
["DGRCIC-001-06-01","Emisión de duplicado de cédula de identidad","Totalmente en Línea",0,null,null,null,null,null,null,null,null,{"$f":"VLOOKUP(A46,'[1]CANAL ATENCIÓN'!$A$5:$D$81,3,0)","v":"Totalmente en Línea"}]
["DGRCIC-005-01-09","Inscripción de defunción por orden judicial (Inscripción de sentencia)","Presencial",10,null,null,null,null,null,null,null,null,{"$f":"VLOOKUP(A47,'[1]CANAL ATENCIÓN'!$A$5:$D$81,3,0)","v":"Presencial"}]
["DGRCIC-006-01-04","Reconocimiento voluntario de hijo/a","Presencial",10,null,null,null,null,null,null,null,null,{"$f":"VLOOKUP(A48,'[1]CANAL ATENCIÓN'!$A$5:$D$81,3,0)","v":"Presencial"}]
["DGRCIC-003-01-03","Solemnización de matrimonio en sede de registro civil si uno o los dos contrayentes son divorciados y tiene hijos menores de edad","Inicia en Línea",6,null,null,null,null,null,null,null,null,{"$f":"VLOOKUP(A49,'[1]CANAL ATENCIÓN'!$A$5:$D$81,3,0)","v":"Inicia en Línea"}]
["DGRCIC-002-01-02","Inscripción ordinaria y extraordinaria de nacimiento sin atención médica","Presencial",10,null,null,null,null,null,null,null,null,{"$f":"VLOOKUP(A50,'[1]CANAL ATENCIÓN'!$A$5:$D$81,3,0)","v":"Presencial"}]
["DGRCIC-005-01-04","Inscripción extraordinaria de defunción sin atención médica","Presencial",10,null,null,null,null,null,null,null,null,{"$f":"VLOOKUP(A51,'[1]CANAL ATENCIÓN'!$A$5:$D$81,3,0)","v":"Presencial"}]
["DGRCIC-006-04-05","Reconocimiento de Hijo/a por sentencia ejecutoriada o Acta Notarial","Presencial",10,null,null,null,null,null,null,null,null,{"$f":"VLOOKUP(A52,'[1]CANAL ATENCIÓN'!$A$5:$D$81,3,0)","v":"Presencial"}]
["DGRCIC-005-01-08","Inscripción de defunción por desastres, conflictos armados y epidemias","Presencial",10,null,null,null,null,null,null,null,null,{"$f":"VLOOKUP(A53,'[1]CANAL ATENCIÓN'!$A$5:$D$81,3,0)","v":"Presencial"}]
["DGRCIC-003-01-15","Solemnización de matrimonio en sede de registro civil si los contrayentes son solteros y no tienen hijos menores de edad","Inicia en Línea",6,null,null,null,null,null,null,null,null,{"$f":"VLOOKUP(A54,'[1]CANAL ATENCIÓN'!$A$5:$D$81,3,0)","v":"Inicia en Línea"}]
["DGRCIC-006-04-01","Rectificación a la información registral por sentencia ejecutoriada","Presencial",10,null,null,null,null,null,null,null,null,{"$f":"VLOOKUP(A55,'[1]CANAL ATENCIÓN'!$A$5:$D$81,3,0)","v":"Presencial"}]
["DGRCIC-001-05-01","Emisión de Cédula de Identidad Por Primera Vez o Renovación Para Ecuatorianos a Través de Brigada Móvil","Inicia en Línea",6,null,null,null,null,null,null,null,null,{"$f":"VLOOKUP(A56,'[1]CANAL ATENCIÓN'!$A$5:$D$81,3,0)","v":"Inicia en Línea"}]
["DGRCIC-002-06-01","Inscripción ordinaria y extraordinaria de nacimiento con atención médica en consulados","Presencial",10,null,null,null,null,null,null,null,null,{"$f":"VLOOKUP(A57,'[1]CANAL ATENCIÓN'!$A$5:$D$81,3,0)","v":"Presencial"}]
["DGRCIC-005-05-03","Inscripción de defunción extraordinaria con atención médica","Presencial",10,null,null,null,null,null,null,null,null,{"$f":"VLOOKUP(A58,'[1]CANAL ATENCIÓN'!$A$5:$D$81,3,0)","v":"Presencial"}]
["DGRCIC-005-01-01","Inscripción extraordinaria de defunción con atención médica","Presencial",10,null,null,null,null,null,null,null,null,{"$f":"VLOOKUP(A59,'[1]CANAL ATENCIÓN'!$A$5:$D$81,3,0)","v":"Presencial"}]
["DGRCIC-010-01-03","Emisión de pasaporte ordinario por primera vez menores de 18 años, en caso de ausencia de uno o de los dos padres","Inicia en Línea",6,null,null,null,null,null,null,null,null,{"$f":"VLOOKUP(A60,'[1]CANAL ATENCIÓN'!$A$5:$D$81,3,0)","v":"Inicia en Línea"}]
["DGRCIC-010-01-08","Emisión de pasaporte ordinario por renovación para menores de 18 años por pérdida o robo","Inicia en Línea",6,null,null,null,null,null,null,null,null,{"$f":"VLOOKUP(A61,'[1]CANAL ATENCIÓN'!$A$5:$D$81,3,0)","v":"Inicia en Línea"}]
["DGRCIC-009-01-02","Dispositivo Token","Presencial",10,null,null,null,null,null,null,null,null,{"$f":"VLOOKUP(A62,'[1]CANAL ATENCIÓN'!$A$5:$D$81,3,0)","v":"Presencial"}]
["DGRCIC-001-02-04","Emisión de Cédula de Identidad Por Primera Vez o Renovación Para Extranjeros Con Residencia Temporal o Residencia Permanente","Presencial",10,null,null,null,null,null,null,null,null,{"$f":"VLOOKUP(A63,'[1]CANAL ATENCIÓN'!$A$5:$D$81,3,0)","v":"Presencial"}]
["DGRCIC-005-01-03","Inscripción ordinaria de defunción sin atención médica","Presencial",10,null,null,null,null,null,null,null,null,{"$f":"VLOOKUP(A64,'[1]CANAL ATENCIÓN'!$A$5:$D$81,3,0)","v":"Presencial"}]
["DGRCIC-013-01-01","Inscripción ordinaria y extraordinaria de Nacimiento y Defunción.","Presencial",10,null,null,null,null,null,null,null,null,{"$f":"VLOOKUP(A65,'[1]CANAL ATENCIÓN'!$A$5:$D$81,3,0)","v":"Presencial"}]
["DGRCIC-009-01-01","Emisión de Certificado Digital de Firma Electrónica en Token","Presencial",10,null,null,null,null,null,null,null,null,{"$f":"VLOOKUP(A66,'[1]CANAL ATENCIÓN'!$A$5:$D$81,3,0)","v":"Presencial"}]
["DGRCIC-005-05-01","Inscripción de defunción ordinaria con atención médica","Presencial",10,null,null,null,null,null,null,null,null,{"$f":"VLOOKUP(A67,'[1]CANAL ATENCIÓN'!$A$5:$D$81,3,0)","v":"Presencial"}]
["DGRCIC-005-01-02","Inscripción ordinaria de defunción con atención médica","Inicia en Línea",6,null,null,null,null,null,null,null,null,{"$f":"VLOOKUP(A68,'[1]CANAL ATENCIÓN'!$A$5:$D$81,3,0)","v":"Inicia en Línea"}]
["DGRCIC-006-01-05","Rectificación de datos registrales en Actas Registrales (Resolución Administrativa)","Presencial",10,null,null,null,null,null,null,null,null,{"$f":"VLOOKUP(A69,'[1]CANAL ATENCIÓN'!$A$5:$D$81,3,0)","v":"Presencial"}]
["DGRCIC-010-01-07","Emisión de Pasaporte Ordinario por Pérdida o Robo","Inicia en Línea",{"$f":"IF(ISBLANK(C70),\"\",IF(C70=\"Totalmente en línea\",0,IF(C70=\"Inicia en línea\",6,10)))","v":6},null,null,null,null,null,null,null,null,{"$f":"VLOOKUP(A70,'[1]CANAL ATENCIÓN'!$A$5:$D$81,3,0)","v":"Inicia en Línea"}]
["DGRCIC-007-01-08","Emisión de Certificado de Identidad y Estado Civil en línea","Totalmente en Línea",0,null,null,null,null,null,null,null,null,{"$f":"VLOOKUP(A71,'[1]CANAL ATENCIÓN'!$A$5:$D$81,3,0)","v":"Totalmente en Línea"}]
["DGRCIC-009-01-03","Emisión de Certificado Digital de Firma Electrónica en Archivo","Presencial",10,null,null,null,null,null,null,null,null,{"$f":"VLOOKUP(A72,'[1]CANAL ATENCIÓN'!$A$5:$D$81,3,0)","v":"Presencial"}]
["DGRCIC-010-01-01","Emisión de Pasaporte Ordinario Por Primera Vez","Inicia en Línea",6,null,null,null,null,null,null,null,null,{"$f":"VLOOKUP(A73,'[1]CANAL ATENCIÓN'!$A$5:$D$81,3,0)","v":"Inicia en Línea"}]
["DGRCIC-010-01-04","Emisión de Pasaporte Ordinario por Renovación","Inicia en Línea",6,null,null,null,null,null,null,null,null,{"$f":"VLOOKUP(A74,'[1]CANAL ATENCIÓN'!$A$5:$D$81,3,0)","v":"Inicia en Línea"}]
["DGRCIC-007-02-02","Convalidación de Documentos Registrales","Presencial",10,null,null,null,null,null,null,null,null,{"$f":"VLOOKUP(A75,'[1]CANAL ATENCIÓN'!$A$5:$D$81,3,0)","v":"Presencial"}]
["DGRCIC-007-01-07","Emisión de Certificado de Datos Registrales: Nacimiento, Matrimonio y Unión de Hecho en Línea","Totalmente en Línea",0,null,null,null,null,null,null,null,null,{"$f":"VLOOKUP(A76,'[1]CANAL ATENCIÓN'!$A$5:$D$81,3,0)","v":"Totalmente en Línea"}]
["DGRCIC-007-01-04","Emisión de certificados de Identidad y Estado Civil","Presencial",10,null,null,null,null,null,null,null,null,{"$f":"VLOOKUP(A77,'[1]CANAL ATENCIÓN'!$A$5:$D$81,3,0)","v":"Presencial"}]
["DGRCIC-002-01-01","Inscripción ordinaria y extraordinaria de nacimiento con atención médica","Inicia en Línea",6,null,null,null,null,null,null,null,null,{"$f":"VLOOKUP(A78,'[1]CANAL ATENCIÓN'!$A$5:$D$81,3,0)","v":"Inicia en Línea"}]
["DGRCIC-007-01-06","Emisión de Copia del Acta Registral: Nacimiento, Matrimonio, Defunción, Unión de Hecho y Registro de Género / Cambio de Nombre","Presencial",10,null,null,null,null,null,null,null,null,{"$f":"VLOOKUP(A79,'[1]CANAL ATENCIÓN'!$A$5:$D$81,3,0)","v":"Presencial"}]
["DGRCIC-001-01-01","Emisión de Cédula de Identidad Por Primera Vez o Renovación Para Ecuatorianos","Inicia en Línea",6,null,null,null,null,null,null,null,null,{"$f":"VLOOKUP(A80,'[1]CANAL ATENCIÓN'!$A$5:$D$81,3,0)","v":"Inicia en Línea"}]
["DGRCIC-007-01-01","Emisión de Certificados de Datos Registrales: Nacimiento, Matrimonio, Defunción y Unión de Hecho","Presencial",10,null,null,null,null,null,null,null,null,{"$f":"VLOOKUP(A81,'[1]CANAL ATENCIÓN'!$A$5:$D$81,3,0)","v":"Presencial"}]

{"sheet":"RESUMEN","index":8,"n_rows":80,"n_cols":36,"rows_kept":80,"cut":false,"hidden":false,"merged":[[1,9,1,10],[1,11,1,12],[1,13,2,13],[0,2,0,6],[0,7,0,12],[1,5,2,5],[1,6,2,6],[1,7,1,8],[1,0,2,0],[1,1,2,1],[1,2,2,2],[1,3,2,3],[1,4,2,4],[1,25,2,25],[1,16,2,16],[1,17,2,17],[1,18,2,18],[1,19,2,19],[1,20,2,20]]}
[null,null,"BÁSICOS",null,null,null,null,"ADICIONALES"]
["ID trámite","Nombre del trámite","Demanda","Quejas","Costo para administración","Tiempo de respuesta","Canal de atención","Necesidades ciudadanas",null,"Susceptibilidad a corrupción",null,"Volumen de devoluciones",null,"PUNTAJE TOTAL",null,null,"Demanda","Quejas","Costo para administración","Tiempo de respuesta","Canal de atención",null,null,null,null,"Canal de atención"]
[null,null,null,null,null,null,null,"Criterio","Puntuación","Criterio","Puntuación","Criterio","Puntuación",null,null,null,null,null,null,null,null,0,3,6,10,null,null,null,"ID trámite","Nombre del trámite","Demanda","Quejas","Costo para administración","Tiempo de respuesta","Canal de atención","PUNTAJE TOTAL"]
["DGRCIC-002-01-08","Inscripción de hijos de progenitoras del mismo sexo por reproducción asistida",0,0,0.41249999999999998,0,10,"NO",{"$f":"IF(H4=\"SI\",5,0)","v":0},"NO",{"$f":"IF(J4=\"SI\",10,0)","v":0},"NO",{"$f":"IF(L4=\"SI\",5,0)","v":0},{"$f":"SUM(C4:G4,I4,K4,M4)","v":10.4125},null,null,{"$f":"VLOOKUP(A4,'DEMANDA ANUAL'!$A$5:$D$81,4,0)","v":0},{"$f":"VLOOKUP(A4,'VOLUMEN DE QUEJAS'!$A$5:$F$81,6,0)","v":0},{"$f":"VLOOKUP(A4,'COSTO ADMINISTRACIÓN PÚBLICA'!$A$6:$F$82,6,0)","v":0.41249999999999998},{"$f":"VLOOKUP(A4,'TIEMPO DE RESPUESTA'!$A$5:$D$81,4,0)","v":0},"quejas",0,4,10,null,{"$f":"VLOOKUP(A4,'CANAL ATENCIÓN'!$A$5:$D$81,4,0)","v":10},null,null,"DGRCIC-002-01-08","Inscripción de hijos de progenitoras del mismo sexo por reproducción asistida",0,0,0.41249999999999998,0,10,10.4125]
["DGRCIC-002-02-02","Inscripción de nacimiento por adopción en el exterior",0,0,0.41249999999999998,0,6,"NO",{"$f":"IF(H5=\"SI\",5,0)","v":0},"NO",{"$f":"IF(J5=\"SI\",10,0)","v":0},"NO",{"$f":"IF(L5=\"SI\",5,0)","v":0},{"$f":"SUM(C5:G5,I5,K5,M5)","v":6.4124999999999996},null,null,{"$f":"VLOOKUP(A5,'DEMANDA ANUAL'!$A$5:$D$81,4,0)","v":0},{"$f":"VLOOKUP(A5,'VOLUMEN DE QUEJAS'!$A$5:$F$81,6,0)","v":0},{"$f":"VLOOKUP(A5,'COSTO ADMINISTRACIÓN PÚBLICA'!$A$6:$F$82,6,0)","v":0.41249999999999998},{"$f":"VLOOKUP(A5,'TIEMPO DE RESPUESTA'!$A$5:$D$81,4,0)","v":0},"cpa",5,10,20,null,{"$f":"VLOOKUP(A5,'CANAL ATENCIÓN'!$A$5:$D$81,4,0)","v":6},null,null,"DGRCIC-002-02-02","Inscripción de nacimiento por adopción en el exterior",0,0,0.41249999999999998,0,6,6.4124999999999996]
["DGRCIC-012-02-01","Registro de género en Consulados",0,0,0,0,10,"NO",0,"NO",0,"NO",0,10,null,null,{"$f":"VLOOKUP(A6,'DEMANDA ANUAL'!$A$5:$D$81,4,0)","v":0},{"$f":"VLOOKUP(A6,'VOLUMEN DE QUEJAS'!$A$5:$F$81,6,0)","v":0},{"$f":"VLOOKUP(A6,'COSTO ADMINISTRACIÓN PÚBLICA'!$A$6:$F$82,6,0)","v":0},{"$f":"VLOOKUP(A6,'TIEMPO DE RESPUESTA'!$A$5:$D$81,4,0)","v":0},"tr",0,30,null,null,{"$f":"VLOOKUP(A6,'CANAL ATENCIÓN'!$A$5:$D$81,4,0)","v":10},null,null,"DGRCIC-012-02-01","Registro de género en Consulados",0,0,0,0,10,10]
["DGRCIC-002-04-03","Registro de naturalización de hijos de padres naturalizados",0,0,0.41249999999999998,0,10,"NO",0,"NO",0,"NO",0,10.4125,null,null,{"$f":"VLOOKUP(A7,'DEMANDA ANUAL'!$A$5:$D$81,4,0)","v":0},{"$f":"VLOOKUP(A7,'VOLUMEN DE QUEJAS'!$A$5:$F$81,6,0)","v":0},{"$f":"VLOOKUP(A7,'COSTO ADMINISTRACIÓN PÚBLICA'!$A$6:$F$82,6,0)","v":0.41249999999999998},{"$f":"VLOOKUP(A7,'TIEMPO DE RESPUESTA'!$A$5:$D$81,4,0)","v":0},"ca",0,10,null,null,{"$f":"VLOOKUP(A7,'CANAL ATENCIÓN'!$A$5:$D$81,4,0)","v":10},null,null,"DGRCIC-002-04-03","Registro de naturalización de hijos de padres naturalizados",0,0,0.41249999999999998,0,10,10.4125]
["DGRCIC-002-04-01","Registro de naturalización por carta de naturalización",0,0,0.41249999999999998,0,10,"NO",0,"NO",0,"NO",0,10.4125,null,null,{"$f":"VLOOKUP(A8,'DEMANDA ANUAL'!$A$5:$D$81,4,0)","v":0},{"$f":"VLOOKUP(A8,'VOLUMEN DE QUEJAS'!$A$5:$F$81,6,0)","v":0},{"$f":"VLOOKUP(A8,'COSTO ADMINISTRACIÓN PÚBLICA'!$A$6:$F$82,6,0)","v":0.41249999999999998},{"$f":"VLOOKUP(A8,'TIEMPO DE RESPUESTA'!$A$5:$D$81,4,0)","v":0},null,"SI","NO",null,null,{"$f":"VLOOKUP(A8,'CANAL ATENCIÓN'!$A$5:$D$81,4,0)","v":10},null,null,"DGRCIC-002-04-01","Registro de naturalización por carta de naturalización",0,0,0.41249999999999998,0,10,10.4125]
["DGRCIC-008-01-03","Validación Contra Base de Datos",0,0,0,0,0,"NO",0,"NO",0,"NO",0,0,null,null,{"$f":"VLOOKUP(A9,'DEMANDA ANUAL'!$A$5:$D$81,4,0)","v":0},{"$f":"VLOOKUP(A9,'VOLUMEN DE QUEJAS'!$A$5:$F$81,6,0)","v":0},{"$f":"VLOOKUP(A9,'COSTO ADMINISTRACIÓN PÚBLICA'!$A$6:$F$82,6,0)","v":0},{"$f":"VLOOKUP(A9,'TIEMPO DE RESPUESTA'!$A$5:$D$81,4,0)","v":0},null,null,null,null,null,{"$f":"VLOOKUP(A9,'CANAL ATENCIÓN'!$A$5:$D$81,4,0)","v":0},null,null,"DGRCIC-008-01-03","Validación Contra Base de Datos",0,0,0,0,0,0]
["DGRCIC-003-01-13","Solemnización de matrimonio fuera de sede de registro civil si uno de los contrayentes se encuentra privado de la libertad",3,0,12.396225845173925,0,6,"NO",0,"NO",0,"NO",0,21.396225845173923,null,null,{"$f":"VLOOKUP(A10,'DEMANDA ANUAL'!$A$5:$D$81,4,0)","v":3},{"$f":"VLOOKUP(A10,'VOLUMEN DE QUEJAS'!$A$5:$F$81,6,0)","v":0},{"$f":"VLOOKUP(A10,'COSTO ADMINISTRACIÓN PÚBLICA'!$A$6:$F$82,6,0)","v":12.396225845173925},{"$f":"VLOOKUP(A10,'TIEMPO DE RESPUESTA'!$A$5:$D$81,4,0)","v":0},null,null,null,null,null,{"$f":"VLOOKUP(A10,'CANAL ATENCIÓN'!$A$5:$D$81,4,0)","v":6},null,null,"DGRCIC-003-01-13","Solemnización de matrimonio fuera de sede de registro civil si uno de los contrayentes se encuentra privado de la libertad",3,0,12.396225845173925,0,6,21.396225845173923]
["DGRCIC-008-01-01","Web service - Demográfico",3,0,0,0,0,"NO",0,"NO",0,"NO",0,3,null,null,{"$f":"VLOOKUP(A11,'DEMANDA ANUAL'!$A$5:$D$81,4,0)","v":3},{"$f":"VLOOKUP(A11,'VOLUMEN DE QUEJAS'!$A$5:$F$81,6,0)","v":0},{"$f":"VLOOKUP(A11,'COSTO ADMINISTRACIÓN PÚBLICA'!$A$6:$F$82,6,0)","v":0},{"$f":"VLOOKUP(A11,'TIEMPO DE RESPUESTA'!$A$5:$D$81,4,0)","v":0},null,null,null,null,null,{"$f":"VLOOKUP(A11,'CANAL ATENCIÓN'!$A$5:$D$81,4,0)","v":0},null,null,"DGRCIC-008-01-01","Web service - Demográfico",3,0,0,0,0,3]
["DGRCIC-003-01-11","Solemnización de matrimonio fuera de sede de registro civil si uno o los dos contrayentes son viudos y tienen hijo/s menor/es de edad",3,0,12.396225845173923,0,6,"NO",0,"NO",0,"NO",0,21.396225845173923,null,null,{"$f":"VLOOKUP(A12,'DEMANDA ANUAL'!$A$5:$D$81,4,0)","v":3},{"$f":"VLOOKUP(A12,'VOLUMEN DE QUEJAS'!$A$5:$F$81,6,0)","v":0},{"$f":"VLOOKUP(A12,'COSTO ADMINISTRACIÓN PÚBLICA'!$A$6:$F$82,6,0)","v":12.396225845173923},{"$f":"VLOOKUP(A12,'TIEMPO DE RESPUESTA'!$A$5:$D$81,4,0)","v":0},null,null,null,null,null,{"$f":"VLOOKUP(A12,'CANAL ATENCIÓN'!$A$5:$D$81,4,0)","v":6},null,null,"DGRCIC-003-01-11","Solemnización de matrimonio fuera de sede de registro civil si uno o los dos contrayentes son viudos y tienen hijo/s menor/es de edad",3,0,12.396225845173923,0,6,21.396225845173923]
["DGRCIC-002-01-07","Inscripción de nacimiento por adopción",3,0,8.8737597691438044,0,10,"NO",0,"NO",0,"NO",0,21.873759769143803,null,null,{"$f":"VLOOKUP(A13,'DEMANDA ANUAL'!$A$5:$D$81,4,0)","v":3},{"$f":"VLOOKUP(A13,'VOLUMEN DE QUEJAS'!$A$5:$F$81,6,0)","v":0},{"$f":"VLOOKUP(A13,'COSTO ADMINISTRACIÓN PÚBLICA'!$A$6:$F$82,6,0)","v":8.8737597691438044},{"$f":"VLOOKUP(A13,'TIEMPO DE RESPUESTA'!$A$5:$D$81,4,0)","v":0},null,null,null,null,null,{"$f":"VLOOKUP(A13,'CANAL ATENCIÓN'!$A$5:$D$81,4,0)","v":10},null,null,"DGRCIC-002-01-07","Inscripción de nacimiento por adopción",3,0,8.8737597691438044,0,10,21.873759769143803]
["DGRCIC-003-01-17","Solemnización de matrimonio fuera de sede de registro civil si uno o ambos contrayentes son extranjeros con condición migratoria de residencia temporal",3,0,12.396225845173923,0,6,"NO",0,"NO",0,"NO",0,21.396225845173923,null,null,{"$f":"VLOOKUP(A14,'DEMANDA ANUAL'!$A$5:$D$81,4,0)","v":3},{"$f":"VLOOKUP(A14,'VOLUMEN DE QUEJAS'!$A$5:$F$81,6,0)","v":0},{"$f":"VLOOKUP(A14,'COSTO ADMINISTRACIÓN PÚBLICA'!$A$6:$F$82,6,0)","v":12.396225845173923},{"$f":"VLOOKUP(A14,'TIEMPO DE RESPUESTA'!$A$5:$D$81,4,0)","v":0},null,null,null,null,null,{"$f":"VLOOKUP(A14,'CANAL ATENCIÓN'!$A$5:$D$81,4,0)","v":6},null,null,"DGRCIC-003-01-17","Solemnización de matrimonio fuera de sede de registro civil si uno o ambos contrayentes son extranjeros con condición migratoria de residencia temporal",3,0,12.396225845173923,0,6,21.396225845173923]
["DGRCIC-008-01-02","Sistema Nacional de Identificación Ciudadana - Consulta de Cédula de Papel",3,0,0,0,0,"NO",0,"NO",0,"NO",0,3,null,null,{"$f":"VLOOKUP(A15,'DEMANDA ANUAL'!$A$5:$D$81,4,0)","v":3},{"$f":"VLOOKUP(A15,'VOLUMEN DE QUEJAS'!$A$5:$F$81,6,0)","v":0},{"$f":"VLOOKUP(A15,'COSTO ADMINISTRACIÓN PÚBLICA'!$A$6:$F$82,6,0)","v":0},{"$f":"VLOOKUP(A15,'TIEMPO DE RESPUESTA'!$A$5:$D$81,4,0)","v":0},null,null,null,null,null,{"$f":"VLOOKUP(A15,'CANAL ATENCIÓN'!$A$5:$D$81,4,0)","v":0},null,null,"DGRCIC-008-01-02","Sistema Nacional de Identificación Ciudadana - Consulta de Cédula de Papel",3,0,0,0,0,3]
["DGRCIC-002-01-06","Inscripción de nacimiento por informe de expósito",3,0,8.8737597691438044,0,10,"NO",0,"NO",0,"NO",0,21.873759769143803,null,null,{"$f":"VLOOKUP(A16,'DEMANDA ANUAL'!$A$5:$D$81,4,0)","v":3},{"$f":"VLOOKUP(A16,'VOLUMEN DE QUEJAS'!$A$5:$F$81,6,0)","v":0},{"$f":"VLOOKUP(A16,'COSTO ADMINISTRACIÓN PÚBLICA'!$A$6:$F$82,6,0)","v":8.8737597691438044},{"$f":"VLOOKUP(A16,'TIEMPO DE RESPUESTA'!$A$5:$D$81,4,0)","v":0},null,null,null,null,null,{"$f":"VLOOKUP(A16,'CANAL ATENCIÓN'!$A$5:$D$81,4,0)","v":10},null,null,"DGRCIC-002-01-06","Inscripción de nacimiento por informe de expósito",3,0,8.8737597691438044,0,10,21.873759769143803]
["DGRCIC-012-01-01","Registro de género",3,0,18.011215601520416,0,10,"NO",0,"NO",0,"NO",0,31.011215601520416,null,null,{"$f":"VLOOKUP(A17,'DEMANDA ANUAL'!$A$5:$D$81,4,0)","v":3},{"$f":"VLOOKUP(A17,'VOLUMEN DE QUEJAS'!$A$5:$F$81,6,0)","v":0},{"$f":"VLOOKUP(A17,'COSTO ADMINISTRACIÓN PÚBLICA'!$A$6:$F$82,6,0)","v":18.011215601520416},{"$f":"VLOOKUP(A17,'TIEMPO DE RESPUESTA'!$A$5:$D$81,4,0)","v":0},null,null,null,null,null,{"$f":"VLOOKUP(A17,'CANAL ATENCIÓN'!$A$5:$D$81,4,0)","v":10},null,null,"DGRCIC-012-01-01","Registro de género",3,0,18.011215601520416,0,10,31.011215601520416]
["DGRCIC-003-01-08","Solemnización de matrimonio fuera de sede de registro civil si uno o los dos contrayentes solteros tiene hijo/s menor/es de edad",3,0,12.396225845173925,0,6,"NO",0,"NO",0,"NO",0,21.396225845173923,null,null,{"$f":"VLOOKUP(A18,'DEMANDA ANUAL'!$A$5:$D$81,4,0)","v":3},{"$f":"VLOOKUP(A18,'VOLUMEN DE QUEJAS'!$A$5:$F$81,6,0)","v":0},{"$f":"VLOOKUP(A18,'COSTO ADMINISTRACIÓN PÚBLICA'!$A$6:$F$82,6,0)","v":12.396225845173925},{"$f":"VLOOKUP(A18,'TIEMPO DE RESPUESTA'!$A$5:$D$81,4,0)","v":0},null,null,null,null,null,{"$f":"VLOOKUP(A18,'CANAL ATENCIÓN'!$A$5:$D$81,4,0)","v":6},null,null,"DGRCIC-003-01-08","Solemnización de matrimonio fuera de sede de registro civil si uno o los dos contrayentes solteros tiene hijo/s menor/es de edad",3,0,12.396225845173925,0,6,21.396225845173923]
["DGRCIC-002-04-02","Registro de nacimiento por servicios relevantes",3,0,8.8737597691438044,0,10,"NO",0,"NO",0,"NO",0,21.873759769143803,null,null,{"$f":"VLOOKUP(A19,'DEMANDA ANUAL'!$A$5:$D$81,4,0)","v":3},{"$f":"VLOOKUP(A19,'VOLUMEN DE QUEJAS'!$A$5:$F$81,6,0)","v":0},{"$f":"VLOOKUP(A19,'COSTO ADMINISTRACIÓN PÚBLICA'!$A$6:$F$82,6,0)","v":8.8737597691438044},{"$f":"VLOOKUP(A19,'TIEMPO DE RESPUESTA'!$A$5:$D$81,4,0)","v":0},null,null,null,null,null,{"$f":"VLOOKUP(A19,'CANAL ATENCIÓN'!$A$5:$D$81,4,0)","v":10},null,null,"DGRCIC-002-04-02","Registro de nacimiento por servicios relevantes",3,0,8.8737597691438044,0,10,21.873759769143803]
["DGRCIC-003-01-16","Solemnización de matrimonio fuera de sede de registro civil si los contrayentes son solteros y no tuvieren hijos menores de edad",3,0,12.396225845173923,0,6,"NO",0,"NO",0,"NO",0,21.396225845173923,null,null,{"$f":"VLOOKUP(A20,'DEMANDA ANUAL'!$A$5:$D$81,4,0)","v":3},{"$f":"VLOOKUP(A20,'VOLUMEN DE QUEJAS'!$A$5:$F$81,6,0)","v":0},{"$f":"VLOOKUP(A20,'COSTO ADMINISTRACIÓN PÚBLICA'!$A$6:$F$82,6,0)","v":12.396225845173923},{"$f":"VLOOKUP(A20,'TIEMPO DE RESPUESTA'!$A$5:$D$81,4,0)","v":0},null,null,null,null,null,{"$f":"VLOOKUP(A20,'CANAL ATENCIÓN'!$A$5:$D$81,4,0)","v":6},null,null,"DGRCIC-003-01-16","Solemnización de matrimonio fuera de sede de registro civil si los contrayentes son solteros y no tuvieren hijos menores de edad",3,0,12.396225845173923,0,6,21.396225845173923]
["DGRCIC-005-02-02","Inscripción extraordinaria de defunción ocurrida en el exterior (en frontera)",3,0,11.731486128798533,0,6,"NO",0,"NO",0,"NO",0,20.731486128798533,null,null,{"$f":"VLOOKUP(A21,'DEMANDA ANUAL'!$A$5:$D$81,4,0)","v":3},{"$f":"VLOOKUP(A21,'VOLUMEN DE QUEJAS'!$A$5:$F$81,6,0)","v":0},{"$f":"VLOOKUP(A21,'COSTO ADMINISTRACIÓN PÚBLICA'!$A$6:$F$82,6,0)","v":11.731486128798533},{"$f":"VLOOKUP(A21,'TIEMPO DE RESPUESTA'!$A$5:$D$81,4,0)","v":0},null,null,null,null,null,{"$f":"VLOOKUP(A21,'CANAL ATENCIÓN'!$A$5:$D$81,4,0)","v":6},null,null,"DGRCIC-005-02-02","Inscripción extraordinaria de defunción ocurrida en el exterior (en frontera)",3,0,11.731486128798533,0,6,20.731486128798533]
["DGRCIC-001-04-01","Emisión de Cédula de Identidad Por Registro de Género",3,0,11.639731991366025,0,10,"NO",0,"NO",0,"NO",0,24.639731991366027,null,null,{"$f":"VLOOKUP(A22,'DEMANDA ANUAL'!$A$5:$D$81,4,0)","v":3},{"$f":"VLOOKUP(A22,'VOLUMEN DE QUEJAS'!$A$5:$F$81,6,0)","v":0},{"$f":"VLOOKUP(A22,'COSTO ADMINISTRACIÓN PÚBLICA'!$A$6:$F$82,6,0)","v":11.639731991366025},{"$f":"VLOOKUP(A22,'TIEMPO DE RESPUESTA'!$A$5:$D$81,4,0)","v":0},null,null,null,null,null,{"$f":"VLOOKUP(A22,'CANAL ATENCIÓN'!$A$5:$D$81,4,0)","v":10},null,null,"DGRCIC-001-04-01","Emisión de Cédula de Identidad Por Registro de Género",3,0,11.639731991366025,0,10,24.639731991366027]
["DGRCIC-005-02-03","Registro de defunción ocurrido en el exterior",3,0,11.731486128798533,0,6,"NO",0,"NO",0,"NO",0,20.731486128798533,null,null,{"$f":"VLOOKUP(A23,'DEMANDA ANUAL'!$A$5:$D$81,4,0)","v":3},{"$f":"VLOOKUP(A23,'VOLUMEN DE QUEJAS'!$A$5:$F$81,6,0)","v":0},{"$f":"VLOOKUP(A23,'COSTO ADMINISTRACIÓN PÚBLICA'!$A$6:$F$82,6,0)","v":11.731486128798533},{"$f":"VLOOKUP(A23,'TIEMPO DE RESPUESTA'!$A$5:$D$81,4,0)","v":0},null,null,null,null,null,{"$f":"VLOOKUP(A23,'CANAL ATENCIÓN'!$A$5:$D$81,4,0)","v":6},null,null,"DGRCIC-005-02-03","Registro de defunción ocurrido en el exterior",3,0,11.731486128798533,0,6,20.731486128798533]
["DGRCIC-002-02-01","Registro de nacimiento ocurrido en el exterior (reconocimiento de nacionalidad)",3,0,11.634958351020755,0,6,"NO",0,"NO",0,"NO",0,20.634958351020757,null,null,{"$f":"VLOOKUP(A24,'DEMANDA ANUAL'!$A$5:$D$81,4,0)","v":3},{"$f":"VLOOKUP(A24,'VOLUMEN DE QUEJAS'!$A$5:$F$81,6,0)","v":0},{"$f":"VLOOKUP(A24,'COSTO ADMINISTRACIÓN PÚBLICA'!$A$6:$F$82,6,0)","v":11.634958351020755},{"$f":"VLOOKUP(A24,'TIEMPO DE RESPUESTA'!$A$5:$D$81,4,0)","v":0},null,null,null,null,null,{"$f":"VLOOKUP(A24,'CANAL ATENCIÓN'!$A$5:$D$81,4,0)","v":6},null,null,"DGRCIC-002-02-01","Registro de nacimiento ocurrido en el exterior (reconocimiento de nacionalidad)",3,0,11.634958351020755,0,6,20.634958351020757]
["DGRCIC-003-02-01","Registro de matrimonio entre uno o dos ecuatorianos realizado en el exterior",3,0,11.843986128798534,0,6,"NO",0,"NO",0,"NO",0,20.843986128798534,null,null,{"$f":"VLOOKUP(A25,'DEMANDA ANUAL'!$A$5:$D$81,4,0)","v":3},{"$f":"VLOOKUP(A25,'VOLUMEN DE QUEJAS'!$A$5:$F$81,6,0)","v":0},{"$f":"VLOOKUP(A25,'COSTO ADMINISTRACIÓN PÚBLICA'!$A$6:$F$82,6,0)","v":11.843986128798534},{"$f":"VLOOKUP(A25,'TIEMPO DE RESPUESTA'!$A$5:$D$81,4,0)","v":0},null,null,null,null,null,{"$f":"VLOOKUP(A25,'CANAL ATENCIÓN'!$A$5:$D$81,4,0)","v":6},null,null,"DGRCIC-003-02-01","Registro de matrimonio entre uno o dos ecuatorianos realizado en el exterior",3,0,11.843986128798534,0,6,20.843986128798534]
["DGRCIC-002-07-01","Registro de nacimiento en Consulados",3,0,11.634958351020755,0,10,"NO",0,"NO",0,"NO",0,24.634958351020757,null,null,{"$f":"VLOOKUP(A26,'DEMANDA ANUAL'!$A$5:$D$81,4,0)","v":3},{"$f":"VLOOKUP(A26,'VOLUMEN DE QUEJAS'!$A$5:$F$81,6,0)","v":0},{"$f":"VLOOKUP(A26,'COSTO ADMINISTRACIÓN PÚBLICA'!$A$6:$F$82,6,0)","v":11.634958351020755},{"$f":"VLOOKUP(A26,'TIEMPO DE RESPUESTA'!$A$5:$D$81,4,0)","v":0},null,null,null,null,null,{"$f":"VLOOKUP(A26,'CANAL ATENCIÓN'!$A$5:$D$81,4,0)","v":10},null,null,"DGRCIC-002-07-01","Registro de nacimiento en Consulados",3,0,11.634958351020755,0,10,24.634958351020757]
["DGRCIC-005-05-04","Registro de defunción en Consulados",3,0,11.731486128798533,0,10,"NO",0,"NO",0,"NO",0,24.731486128798533,null,null,{"$f":"VLOOKUP(A27,'DEMANDA ANUAL'!$A$5:$D$81,4,0)","v":3},{"$f":"VLOOKUP(A27,'VOLUMEN DE QUEJAS'!$A$5:$F$81,6,0)","v":0},{"$f":"VLOOKUP(A27,'COSTO ADMINISTRACIÓN PÚBLICA'!$A$6:$F$82,6,0)","v":11.731486128798533},{"$f":"VLOOKUP(A27,'TIEMPO DE RESPUESTA'!$A$5:$D$81,4,0)","v":0},null,null,null,null,null,{"$f":"VLOOKUP(A27,'CANAL ATENCIÓN'!$A$5:$D$81,4,0)","v":10},null,null,"DGRCIC-005-05-04","Registro de defunción en Consulados",3,0,11.731486128798533,0,10,24.731486128798533]
["DGRCIC-005-02-01","Inscripción ordinaria de defunción ocurrida en el exterior (en frontera)",3,0,11.731486128798535,0,6,"NO",0,"NO",0,"NO",0,20.731486128798537,null,null,{"$f":"VLOOKUP(A28,'DEMANDA ANUAL'!$A$5:$D$81,4,0)","v":3},{"$f":"VLOOKUP(A28,'VOLUMEN DE QUEJAS'!$A$5:$F$81,6,0)","v":0},{"$f":"VLOOKUP(A28,'COSTO ADMINISTRACIÓN PÚBLICA'!$A$6:$F$82,6,0)","v":11.731486128798535},{"$f":"VLOOKUP(A28,'TIEMPO DE RESPUESTA'!$A$5:$D$81,4,0)","v":0},null,null,null,null,null,{"$f":"VLOOKUP(A28,'CANAL ATENCIÓN'!$A$5:$D$81,4,0)","v":6},null,null,"DGRCIC-005-02-01","Inscripción ordinaria de defunción ocurrida en el exterior (en frontera)",3,0,11.731486128798535,0,6,20.731486128798537]
["DGRCIC-003-05-01","Registro de matrimonio en Consulados",3,0,11.843986128798536,0,10,"NO",0,"NO",0,"NO",0,24.843986128798534,null,null,{"$f":"VLOOKUP(A29,'DEMANDA ANUAL'!$A$5:$D$81,4,0)","v":3},{"$f":"VLOOKUP(A29,'VOLUMEN DE QUEJAS'!$A$5:$F$81,6,0)","v":0},{"$f":"VLOOKUP(A29,'COSTO ADMINISTRACIÓN PÚBLICA'!$A$6:$F$82,6,0)","v":11.843986128798536},{"$f":"VLOOKUP(A29,'TIEMPO DE RESPUESTA'!$A$5:$D$81,4,0)","v":0},null,null,null,null,null,{"$f":"VLOOKUP(A29,'CANAL ATENCIÓN'!$A$5:$D$81,4,0)","v":10},null,null,"DGRCIC-003-05-01","Registro de matrimonio en Consulados",3,0,11.843986128798536,0,10,24.843986128798534]
["DGRCIC-006-04-07","Registro de separación de la sociedad de bienes en la unión de hecho",3,0,12.396225845173923,0,10,"NO",0,"NO",0,"NO",0,25.396225845173923,null,null,{"$f":"VLOOKUP(A30,'DEMANDA ANUAL'!$A$5:$D$81,4,0)","v":3},{"$f":"VLOOKUP(A30,'VOLUMEN DE QUEJAS'!$A$5:$F$81,6,0)","v":0},{"$f":"VLOOKUP(A30,'COSTO ADMINISTRACIÓN PÚBLICA'!$A$6:$F$82,6,0)","v":12.396225845173923},{"$f":"VLOOKUP(A30,'TIEMPO DE RESPUESTA'!$A$5:$D$81,4,0)","v":0},null,null,null,null,null,{"$f":"VLOOKUP(A30,'CANAL ATENCIÓN'!$A$5:$D$81,4,0)","v":10},null,null,"DGRCIC-006-04-07","Registro de separación de la sociedad de bienes en la unión de hecho",3,0,12.396225845173923,0,10,25.396225845173923]
["DGRCIC-003-01-18","Inscripción de matrimonio por orden judicial (Inscripción de sentencia)",3,0,12.396225845173923,0,10,"NO",0,"NO",0,"NO",0,25.396225845173923,null,null,{"$f":"VLOOKUP(A31,'DEMANDA ANUAL'!$A$5:$D$81,4,0)","v":3},{"$f":"VLOOKUP(A31,'VOLUMEN DE QUEJAS'!$A$5:$F$81,6,0)","v":0},{"$f":"VLOOKUP(A31,'COSTO ADMINISTRACIÓN PÚBLICA'!$A$6:$F$82,6,0)","v":12.396225845173923},{"$f":"VLOOKUP(A31,'TIEMPO DE RESPUESTA'!$A$5:$D$81,4,0)","v":0},null,null,null,null,null,{"$f":"VLOOKUP(A31,'CANAL ATENCIÓN'!$A$5:$D$81,4,0)","v":10},null,null,"DGRCIC-003-01-18","Inscripción de matrimonio por orden judicial (Inscripción de sentencia)",3,0,12.396225845173923,0,10,25.396225845173923]
["DGRCIC-001-02-01","Emisión de Cédula de Identidad Por Primera Vez Doble Nacionalidad",3,0,11.639731991366025,0,10,"NO",0,"NO",0,"NO",0,24.639731991366027,null,null,{"$f":"VLOOKUP(A32,'DEMANDA ANUAL'!$A$5:$D$81,4,0)","v":3},{"$f":"VLOOKUP(A32,'VOLUMEN DE QUEJAS'!$A$5:$F$81,6,0)","v":0},{"$f":"VLOOKUP(A32,'COSTO ADMINISTRACIÓN PÚBLICA'!$A$6:$F$82,6,0)","v":11.639731991366025},{"$f":"VLOOKUP(A32,'TIEMPO DE RESPUESTA'!$A$5:$D$81,4,0)","v":0},null,null,null,null,null,{"$f":"VLOOKUP(A32,'CANAL ATENCIÓN'!$A$5:$D$81,4,0)","v":10},null,null,"DGRCIC-001-02-01","Emisión de Cédula de Identidad Por Primera Vez Doble Nacionalidad",3,0,11.639731991366025,0,10,24.639731991366027]
["DGRCIC-001-02-02","Emisión de Cédula de Identidad Por Primera Vez Naturalización",3,0,11.639731991366025,0,10,"NO",0,"NO",0,"NO",0,24.639731991366027,null,null,{"$f":"VLOOKUP(A33,'DEMANDA ANUAL'!$A$5:$D$81,4,0)","v":3},{"$f":"VLOOKUP(A33,'VOLUMEN DE QUEJAS'!$A$5:$F$81,6,0)","v":0},{"$f":"VLOOKUP(A33,'COSTO ADMINISTRACIÓN PÚBLICA'!$A$6:$F$82,6,0)","v":11.639731991366025},{"$f":"VLOOKUP(A33,'TIEMPO DE RESPUESTA'!$A$5:$D$81,4,0)","v":0},null,null,null,null,null,{"$f":"VLOOKUP(A33,'CANAL ATENCIÓN'!$A$5:$D$81,4,0)","v":10},null,null,"DGRCIC-001-02-02","Emisión de Cédula de Identidad Por Primera Vez Naturalización",3,0,11.639731991366025,0,10,24.639731991366027]
["DGRCIC-005-01-06","Inscripción de defunción fetal",6,0,11.179246412423144,0,10,"NO",0,"NO",0,"NO",0,27.179246412423144,null,null,{"$f":"VLOOKUP(A34,'DEMANDA ANUAL'!$A$5:$D$81,4,0)","v":6},{"$f":"VLOOKUP(A34,'VOLUMEN DE QUEJAS'!$A$5:$F$81,6,0)","v":0},{"$f":"VLOOKUP(A34,'COSTO ADMINISTRACIÓN PÚBLICA'!$A$6:$F$82,6,0)","v":11.179246412423144},{"$f":"VLOOKUP(A34,'TIEMPO DE RESPUESTA'!$A$5:$D$81,4,0)","v":0},null,null,null,null,null,{"$f":"VLOOKUP(A34,'CANAL ATENCIÓN'!$A$5:$D$81,4,0)","v":10},null,null,"DGRCIC-005-01-06","Inscripción de defunción fetal",6,0,11.179246412423144,0,10,27.179246412423144]
["DGRCIC-006-01-01","Cambio de nombre Mayores de 18 años",6,0,13.940444994300094,0,10,"NO",0,"NO",0,"NO",0,29.940444994300094,null,null,{"$f":"VLOOKUP(A35,'DEMANDA ANUAL'!$A$5:$D$81,4,0)","v":6},{"$f":"VLOOKUP(A35,'VOLUMEN DE QUEJAS'!$A$5:$F$81,6,0)","v":0},{"$f":"VLOOKUP(A35,'COSTO ADMINISTRACIÓN PÚBLICA'!$A$6:$F$82,6,0)","v":13.940444994300094},{"$f":"VLOOKUP(A35,'TIEMPO DE RESPUESTA'!$A$5:$D$81,4,0)","v":0},null,null,null,null,null,{"$f":"VLOOKUP(A35,'CANAL ATENCIÓN'!$A$5:$D$81,4,0)","v":10},null,null,"DGRCIC-006-01-01","Cambio de nombre Mayores de 18 años",6,0,13.940444994300094,0,10,29.940444994300094]
["DGRCIC-001-02-06","Emisión de cédula de identidad por primera vez para extrajeros con protección internacional",6,0,11.639731991366025,0,10,"NO",0,"NO",0,"NO",0,27.639731991366027,null,null,{"$f":"VLOOKUP(A36,'DEMANDA ANUAL'!$A$5:$D$81,4,0)","v":6},{"$f":"VLOOKUP(A36,'VOLUMEN DE QUEJAS'!$A$5:$F$81,6,0)","v":0},{"$f":"VLOOKUP(A36,'COSTO ADMINISTRACIÓN PÚBLICA'!$A$6:$F$82,6,0)","v":11.639731991366025},{"$f":"VLOOKUP(A36,'TIEMPO DE RESPUESTA'!$A$5:$D$81,4,0)","v":0},null,null,null,null,null,{"$f":"VLOOKUP(A36,'CANAL ATENCIÓN'!$A$5:$D$81,4,0)","v":10},null,null,"DGRCIC-001-02-06","Emisión de cédula de identidad por primera vez para extrajeros con protección internacional",6,0,11.639731991366025,0,10,27.639731991366027]
["DGRCIC-002-01-05","Inscripción extraordinaria de nacimiento (mayor de 18 años) por orden judicial (inscripción de sentencia)",6,0,8.8737597691438044,0,10,"NO",0,"NO",0,"NO",0,24.873759769143803,null,null,{"$f":"VLOOKUP(A37,'DEMANDA ANUAL'!$A$5:$D$81,4,0)","v":6},{"$f":"VLOOKUP(A37,'VOLUMEN DE QUEJAS'!$A$5:$F$81,6,0)","v":0},{"$f":"VLOOKUP(A37,'COSTO ADMINISTRACIÓN PÚBLICA'!$A$6:$F$82,6,0)","v":8.8737597691438044},{"$f":"VLOOKUP(A37,'TIEMPO DE RESPUESTA'!$A$5:$D$81,4,0)","v":0},null,null,null,null,null,{"$f":"VLOOKUP(A37,'CANAL ATENCIÓN'!$A$5:$D$81,4,0)","v":10},null,null,"DGRCIC-002-01-05","Inscripción extraordinaria de nacimiento (mayor de 18 años) por orden judicial (inscripción de sentencia)",6,0,8.8737597691438044,0,10,24.873759769143803]
["DGRCIC-006-04-04","Registro de capitulaciones matrimoniales",6,0,11.774698067396145,0,10,"NO",0,"NO",0,"NO",0,27.774698067396145,null,null,{"$f":"VLOOKUP(A38,'DEMANDA ANUAL'!$A$5:$D$81,4,0)","v":6},{"$f":"VLOOKUP(A38,'VOLUMEN DE QUEJAS'!$A$5:$F$81,6,0)","v":0},{"$f":"VLOOKUP(A38,'COSTO ADMINISTRACIÓN PÚBLICA'!$A$6:$F$82,6,0)","v":11.774698067396145},{"$f":"VLOOKUP(A38,'TIEMPO DE RESPUESTA'!$A$5:$D$81,4,0)","v":0},null,null,null,null,null,{"$f":"VLOOKUP(A38,'CANAL ATENCIÓN'!$A$5:$D$81,4,0)","v":10},null,null,"DGRCIC-006-04-04","Registro de capitulaciones matrimoniales",6,0,11.774698067396145,0,10,27.774698067396145]
["DGRCIC-011-01-01","Registro de unión de hecho",6,4,12.395922298702924,0,10,"NO",0,"NO",0,"NO",0,32.395922298702928,null,null,{"$f":"VLOOKUP(A39,'DEMANDA ANUAL'!$A$5:$D$81,4,0)","v":6},{"$f":"VLOOKUP(A39,'VOLUMEN DE QUEJAS'!$A$5:$F$81,6,0)","v":4},{"$f":"VLOOKUP(A39,'COSTO ADMINISTRACIÓN PÚBLICA'!$A$6:$F$82,6,0)","v":12.395922298702924},{"$f":"VLOOKUP(A39,'TIEMPO DE RESPUESTA'!$A$5:$D$81,4,0)","v":0},null,null,null,null,null,{"$f":"VLOOKUP(A39,'CANAL ATENCIÓN'!$A$5:$D$81,4,0)","v":10},null,null,"DGRCIC-011-01-01","Registro de unión de hecho",6,4,12.395922298702924,0,10,32.395922298702928]
["DGRCIC-003-01-07","Solemnización de matrimonio en sede de registro civil si uno o ambos contrayentes son extranjeros con condición migratoria de residencia temporal",6,0,12.396225845173923,0,6,"NO",0,"NO",0,"NO",0,24.396225845173923,null,null,{"$f":"VLOOKUP(A40,'DEMANDA ANUAL'!$A$5:$D$81,4,0)","v":6},{"$f":"VLOOKUP(A40,'VOLUMEN DE QUEJAS'!$A$5:$F$81,6,0)","v":0},{"$f":"VLOOKUP(A40,'COSTO ADMINISTRACIÓN PÚBLICA'!$A$6:$F$82,6,0)","v":12.396225845173923},{"$f":"VLOOKUP(A40,'TIEMPO DE RESPUESTA'!$A$5:$D$81,4,0)","v":0},null,null,null,null,null,{"$f":"VLOOKUP(A40,'CANAL ATENCIÓN'!$A$5:$D$81,4,0)","v":6},null,null,"DGRCIC-003-01-07","Solemnización de matrimonio en sede de registro civil si uno o ambos contrayentes son extranjeros con condición migratoria de residencia temporal",6,0,12.396225845173923,0,6,24.396225845173923]
["DGRCIC-005-01-05","Inscripción de defunción por muerte presunta mediante orden judicial (Inscripción de sentencia)",6,0,11.179246412423144,0,10,"NO",0,"NO",0,"NO",0,27.179246412423144,null,null,{"$f":"VLOOKUP(A41,'DEMANDA ANUAL'!$A$5:$D$81,4,0)","v":6},{"$f":"VLOOKUP(A41,'VOLUMEN DE QUEJAS'!$A$5:$F$81,6,0)","v":0},{"$f":"VLOOKUP(A41,'COSTO ADMINISTRACIÓN PÚBLICA'!$A$6:$F$82,6,0)","v":11.179246412423144},{"$f":"VLOOKUP(A41,'TIEMPO DE RESPUESTA'!$A$5:$D$81,4,0)","v":0},null,null,null,null,null,{"$f":"VLOOKUP(A41,'CANAL ATENCIÓN'!$A$5:$D$81,4,0)","v":10},null,null,"DGRCIC-005-01-05","Inscripción de defunción por muerte presunta mediante orden judicial (Inscripción de sentencia)",6,0,11.179246412423144,0,10,27.179246412423144]
["DGRCIC-003-01-04","Solemnización de matrimonio en sede de registro civil si uno o los dos contrayentes son viudos y tienen hijos menores de edad",6,0,12.396225845173923,0,6,"NO",0,"NO",0,"NO",0,24.396225845173923,null,null,{"$f":"VLOOKUP(A42,'DEMANDA ANUAL'!$A$5:$D$81,4,0)","v":6},{"$f":"VLOOKUP(A42,'VOLUMEN DE QUEJAS'!$A$5:$F$81,6,0)","v":0},{"$f":"VLOOKUP(A42,'COSTO ADMINISTRACIÓN PÚBLICA'!$A$6:$F$82,6,0)","v":12.396225845173923},{"$f":"VLOOKUP(A42,'TIEMPO DE RESPUESTA'!$A$5:$D$81,4,0)","v":0},null,null,null,null,null,{"$f":"VLOOKUP(A42,'CANAL ATENCIÓN'!$A$5:$D$81,4,0)","v":6},null,null,"DGRCIC-003-01-04","Solemnización de matrimonio en sede de registro civil si uno o los dos contrayentes son viudos y tienen hijos menores de edad",6,0,12.396225845173923,0,6,24.396225845173923]
["DGRCIC-006-01-03","Posesión notoria de apellidos",6,0,14.052944994300095,0,10,"NO",0,"NO",0,"NO",0,30.052944994300095,null,null,{"$f":"VLOOKUP(A43,'DEMANDA ANUAL'!$A$5:$D$81,4,0)","v":6},{"$f":"VLOOKUP(A43,'VOLUMEN DE QUEJAS'!$A$5:$F$81,6,0)","v":0},{"$f":"VLOOKUP(A43,'COSTO ADMINISTRACIÓN PÚBLICA'!$A$6:$F$82,6,0)","v":14.052944994300095},{"$f":"VLOOKUP(A43,'TIEMPO DE RESPUESTA'!$A$5:$D$81,4,0)","v":0},null,null,null,null,null,{"$f":"VLOOKUP(A43,'CANAL ATENCIÓN'!$A$5:$D$81,4,0)","v":10},null,null,"DGRCIC-006-01-03","Posesión notoria de apellidos",6,0,14.052944994300095,0,10,30.052944994300095]
["DGRCIC-003-01-01","Solemnización de matrimonio en sede de registro civil si uno o los dos contrayentes solteros tiene hijo/s menor/es de edad",6,0,12.396225845173923,0,6,"NO",0,"NO",0,"NO",0,24.396225845173923,null,null,{"$f":"VLOOKUP(A44,'DEMANDA ANUAL'!$A$5:$D$81,4,0)","v":6},{"$f":"VLOOKUP(A44,'VOLUMEN DE QUEJAS'!$A$5:$F$81,6,0)","v":0},{"$f":"VLOOKUP(A44,'COSTO ADMINISTRACIÓN PÚBLICA'!$A$6:$F$82,6,0)","v":12.396225845173923},{"$f":"VLOOKUP(A44,'TIEMPO DE RESPUESTA'!$A$5:$D$81,4,0)","v":0},null,null,null,null,null,{"$f":"VLOOKUP(A44,'CANAL ATENCIÓN'!$A$5:$D$81,4,0)","v":6},null,null,"DGRCIC-003-01-01","Solemnización de matrimonio en sede de registro civil si uno o los dos contrayentes solteros tiene hijo/s menor/es de edad",6,0,12.396225845173923,0,6,24.396225845173923]
["DGRCIC-001-06-01","Emisión de duplicado de cédula de identidad",6,4,6.6695745439875145,0,0,"NO",0,"NO",0,"NO",0,16.669574543987515,null,null,{"$f":"VLOOKUP(A45,'DEMANDA ANUAL'!$A$5:$D$81,4,0)","v":6},{"$f":"VLOOKUP(A45,'VOLUMEN DE QUEJAS'!$A$5:$F$81,6,0)","v":4},{"$f":"VLOOKUP(A45,'COSTO ADMINISTRACIÓN PÚBLICA'!$A$6:$F$82,6,0)","v":6.6695745439875145},{"$f":"VLOOKUP(A45,'TIEMPO DE RESPUESTA'!$A$5:$D$81,4,0)","v":0},null,null,null,null,null,{"$f":"VLOOKUP(A45,'CANAL ATENCIÓN'!$A$5:$D$81,4,0)","v":0},null,null,"DGRCIC-001-06-01","Emisión de duplicado de cédula de identidad",6,4,6.6695745439875145,0,0,16.669574543987515]
["DGRCIC-005-01-09","Inscripción de defunción por orden judicial (Inscripción de sentencia)",6,0,11.179246412423144,0,10,"NO",0,"NO",0,"NO",0,27.179246412423144,null,null,{"$f":"VLOOKUP(A46,'DEMANDA ANUAL'!$A$5:$D$81,4,0)","v":6},{"$f":"VLOOKUP(A46,'VOLUMEN DE QUEJAS'!$A$5:$F$81,6,0)","v":0},{"$f":"VLOOKUP(A46,'COSTO ADMINISTRACIÓN PÚBLICA'!$A$6:$F$82,6,0)","v":11.179246412423144},{"$f":"VLOOKUP(A46,'TIEMPO DE RESPUESTA'!$A$5:$D$81,4,0)","v":0},null,null,null,null,null,{"$f":"VLOOKUP(A46,'CANAL ATENCIÓN'!$A$5:$D$81,4,0)","v":10},null,null,"DGRCIC-005-01-09","Inscripción de defunción por orden judicial (Inscripción de sentencia)",6,0,11.179246412423144,0,10,27.179246412423144]
["DGRCIC-006-01-04","Reconocimiento voluntario de hijo/a",6,0,8.4612597691438047,0,10,"NO",0,"NO",0,"NO",0,24.461259769143805,null,null,{"$f":"VLOOKUP(A47,'DEMANDA ANUAL'!$A$5:$D$81,4,0)","v":6},{"$f":"VLOOKUP(A47,'VOLUMEN DE QUEJAS'!$A$5:$F$81,6,0)","v":0},{"$f":"VLOOKUP(A47,'COSTO ADMINISTRACIÓN PÚBLICA'!$A$6:$F$82,6,0)","v":8.4612597691438047},{"$f":"VLOOKUP(A47,'TIEMPO DE RESPUESTA'!$A$5:$D$81,4,0)","v":0},null,null,null,null,null,{"$f":"VLOOKUP(A47,'CANAL ATENCIÓN'!$A$5:$D$81,4,0)","v":10},null,null,"DGRCIC-006-01-04","Reconocimiento voluntario de hijo/a",6,0,8.4612597691438047,0,10,24.461259769143805]
["DGRCIC-003-01-03","Solemnización de matrimonio en sede de registro civil si uno o los dos contrayentes son divorciados y tiene hijos menores de edad",6,10,12.396225845173923,0,6,"NO",0,"NO",0,"NO",0,34.396225845173923,null,null,{"$f":"VLOOKUP(A48,'DEMANDA ANUAL'!$A$5:$D$81,4,0)","v":6},{"$f":"VLOOKUP(A48,'VOLUMEN DE QUEJAS'!$A$5:$F$81,6,0)","v":10},{"$f":"VLOOKUP(A48,'COSTO ADMINISTRACIÓN PÚBLICA'!$A$6:$F$82,6,0)","v":12.396225845173923},{"$f":"VLOOKUP(A48,'TIEMPO DE RESPUESTA'!$A$5:$D$81,4,0)","v":0},null,null,null,null,null,{"$f":"VLOOKUP(A48,'CANAL ATENCIÓN'!$A$5:$D$81,4,0)","v":6},null,null,"DGRCIC-003-01-03","Solemnización de matrimonio en sede de registro civil si uno o los dos contrayentes son divorciados y tiene hijos menores de edad",6,10,12.396225845173923,0,6,34.396225845173923]
["DGRCIC-002-01-02","Inscripción ordinaria y extraordinaria de nacimiento sin atención médica",6,0,8.8737597691438044,0,10,"NO",0,"NO",0,"NO",0,24.873759769143803,null,null,{"$f":"VLOOKUP(A49,'DEMANDA ANUAL'!$A$5:$D$81,4,0)","v":6},{"$f":"VLOOKUP(A49,'VOLUMEN DE QUEJAS'!$A$5:$F$81,6,0)","v":0},{"$f":"VLOOKUP(A49,'COSTO ADMINISTRACIÓN PÚBLICA'!$A$6:$F$82,6,0)","v":8.8737597691438044},{"$f":"VLOOKUP(A49,'TIEMPO DE RESPUESTA'!$A$5:$D$81,4,0)","v":0},null,null,null,null,null,{"$f":"VLOOKUP(A49,'CANAL ATENCIÓN'!$A$5:$D$81,4,0)","v":10},null,null,"DGRCIC-002-01-02","Inscripción ordinaria y extraordinaria de nacimiento sin atención médica",6,0,8.8737597691438044,0,10,24.873759769143803]
["DGRCIC-005-01-04","Inscripción extraordinaria de defunción sin atención médica",6,4,11.179246412423142,0,10,"NO",0,"NO",0,"NO",0,31.17924641242314,null,null,{"$f":"VLOOKUP(A50,'DEMANDA ANUAL'!$A$5:$D$81,4,0)","v":6},{"$f":"VLOOKUP(A50,'VOLUMEN DE QUEJAS'!$A$5:$F$81,6,0)","v":4},{"$f":"VLOOKUP(A50,'COSTO ADMINISTRACIÓN PÚBLICA'!$A$6:$F$82,6,0)","v":11.179246412423142},{"$f":"VLOOKUP(A50,'TIEMPO DE RESPUESTA'!$A$5:$D$81,4,0)","v":0},null,null,null,null,null,{"$f":"VLOOKUP(A50,'CANAL ATENCIÓN'!$A$5:$D$81,4,0)","v":10},null,null,"DGRCIC-005-01-04","Inscripción extraordinaria de defunción sin atención médica",6,4,11.179246412423142,0,10,31.17924641242314]
["DGRCIC-006-04-05","Reconocimiento de Hijo/a por sentencia ejecutoriada o Acta Notarial",6,0,14.052944994300095,0,10,"NO",0,"NO",0,"NO",0,30.052944994300095,null,null,{"$f":"VLOOKUP(A51,'DEMANDA ANUAL'!$A$5:$D$81,4,0)","v":6},{"$f":"VLOOKUP(A51,'VOLUMEN DE QUEJAS'!$A$5:$F$81,6,0)","v":0},{"$f":"VLOOKUP(A51,'COSTO ADMINISTRACIÓN PÚBLICA'!$A$6:$F$82,6,0)","v":14.052944994300095},{"$f":"VLOOKUP(A51,'TIEMPO DE RESPUESTA'!$A$5:$D$81,4,0)","v":0},null,null,null,null,null,{"$f":"VLOOKUP(A51,'CANAL ATENCIÓN'!$A$5:$D$81,4,0)","v":10},null,null,"DGRCIC-006-04-05","Reconocimiento de Hijo/a por sentencia ejecutoriada o Acta Notarial",6,0,14.052944994300095,0,10,30.052944994300095]
["DGRCIC-005-01-08","Inscripción de defunción por desastres, conflictos armados y epidemias",6,0,0.50902777777777797,0,10,"NO",0,"NO",0,"NO",0,16.509027777777778,null,null,{"$f":"VLOOKUP(A52,'DEMANDA ANUAL'!$A$5:$D$81,4,0)","v":6},{"$f":"VLOOKUP(A52,'VOLUMEN DE QUEJAS'!$A$5:$F$81,6,0)","v":0},{"$f":"VLOOKUP(A52,'COSTO ADMINISTRACIÓN PÚBLICA'!$A$6:$F$82,6,0)","v":0.50902777777777797},{"$f":"VLOOKUP(A52,'TIEMPO DE RESPUESTA'!$A$5:$D$81,4,0)","v":0},null,null,null,null,null,{"$f":"VLOOKUP(A52,'CANAL ATENCIÓN'!$A$5:$D$81,4,0)","v":10},null,null,"DGRCIC-005-01-08","Inscripción de defunción por desastres, conflictos armados y epidemias",6,0,0.50902777777777797,0,10,16.509027777777778]
["DGRCIC-003-01-15","Solemnización de matrimonio en sede de registro civil si los contrayentes son solteros y no tienen hijos menores de edad",6,4,12.218561821660973,0,6,"NO",0,"NO",0,"NO",0,28.218561821660973,null,null,{"$f":"VLOOKUP(A53,'DEMANDA ANUAL'!$A$5:$D$81,4,0)","v":6},{"$f":"VLOOKUP(A53,'VOLUMEN DE QUEJAS'!$A$5:$F$81,6,0)","v":4},{"$f":"VLOOKUP(A53,'COSTO ADMINISTRACIÓN PÚBLICA'!$A$6:$F$82,6,0)","v":12.218561821660973},{"$f":"VLOOKUP(A53,'TIEMPO DE RESPUESTA'!$A$5:$D$81,4,0)","v":0},null,null,null,null,null,{"$f":"VLOOKUP(A53,'CANAL ATENCIÓN'!$A$5:$D$81,4,0)","v":6},null,null,"DGRCIC-003-01-15","Solemnización de matrimonio en sede de registro civil si los contrayentes son solteros y no tienen hijos menores de edad",6,4,12.218561821660973,0,6,28.218561821660973]
["DGRCIC-006-04-01","Rectificación a la información registral por sentencia ejecutoriada",6,0,14.052944994300095,0,10,"NO",0,"NO",0,"NO",0,30.052944994300095,null,null,{"$f":"VLOOKUP(A54,'DEMANDA ANUAL'!$A$5:$D$81,4,0)","v":6},{"$f":"VLOOKUP(A54,'VOLUMEN DE QUEJAS'!$A$5:$F$81,6,0)","v":0},{"$f":"VLOOKUP(A54,'COSTO ADMINISTRACIÓN PÚBLICA'!$A$6:$F$82,6,0)","v":14.052944994300095},{"$f":"VLOOKUP(A54,'TIEMPO DE RESPUESTA'!$A$5:$D$81,4,0)","v":0},null,null,null,null,null,{"$f":"VLOOKUP(A54,'CANAL ATENCIÓN'!$A$5:$D$81,4,0)","v":10},null,null,"DGRCIC-006-04-01","Rectificación a la información registral por sentencia ejecutoriada",6,0,14.052944994300095,0,10,30.052944994300095]
["DGRCIC-001-05-01","Emisión de Cédula de Identidad Por Primera Vez o Renovación Para Ecuatorianos a Través de Brigada Móvil",6,0,3.1784722222222226,0,6,"NO",0,"NO",0,"NO",0,15.178472222222222,null,null,{"$f":"VLOOKUP(A55,'DEMANDA ANUAL'!$A$5:$D$81,4,0)","v":6},{"$f":"VLOOKUP(A55,'VOLUMEN DE QUEJAS'!$A$5:$F$81,6,0)","v":0},{"$f":"VLOOKUP(A55,'COSTO ADMINISTRACIÓN PÚBLICA'!$A$6:$F$82,6,0)","v":3.1784722222222226},{"$f":"VLOOKUP(A55,'TIEMPO DE RESPUESTA'!$A$5:$D$81,4,0)","v":0},null,null,null,null,null,{"$f":"VLOOKUP(A55,'CANAL ATENCIÓN'!$A$5:$D$81,4,0)","v":6},null,null,"DGRCIC-001-05-01","Emisión de Cédula de Identidad Por Primera Vez o Renovación Para Ecuatorianos a Través de Brigada Móvil",6,0,3.1784722222222226,0,6,15.178472222222222]
["DGRCIC-002-06-01","Inscripción ordinaria y extraordinaria de nacimiento con atención médica en consulados",10,0,11.634958351020755,0,10,"NO",0,"NO",0,"NO",0,31.634958351020757,null,null,{"$f":"VLOOKUP(A56,'DEMANDA ANUAL'!$A$5:$D$81,4,0)","v":10},{"$f":"VLOOKUP(A56,'VOLUMEN DE QUEJAS'!$A$5:$F$81,6,0)","v":0},{"$f":"VLOOKUP(A56,'COSTO ADMINISTRACIÓN PÚBLICA'!$A$6:$F$82,6,0)","v":11.634958351020755},{"$f":"VLOOKUP(A56,'TIEMPO DE RESPUESTA'!$A$5:$D$81,4,0)","v":0},null,null,null,null,null,{"$f":"VLOOKUP(A56,'CANAL ATENCIÓN'!$A$5:$D$81,4,0)","v":10},null,null,"DGRCIC-002-06-01","Inscripción ordinaria y extraordinaria de nacimiento con atención médica en consulados",10,0,11.634958351020755,0,10,31.634958351020757]
["DGRCIC-005-05-03","Inscripción de defunción extraordinaria con atención médica",10,0,11.179246412423144,0,10,"NO",0,"NO",0,"NO",0,31.179246412423144,null,null,{"$f":"VLOOKUP(A57,'DEMANDA ANUAL'!$A$5:$D$81,4,0)","v":10},{"$f":"VLOOKUP(A57,'VOLUMEN DE QUEJAS'!$A$5:$F$81,6,0)","v":0},{"$f":"VLOOKUP(A57,'COSTO ADMINISTRACIÓN PÚBLICA'!$A$6:$F$82,6,0)","v":11.179246412423144},{"$f":"VLOOKUP(A57,'TIEMPO DE RESPUESTA'!$A$5:$D$81,4,0)","v":0},null,null,null,null,null,{"$f":"VLOOKUP(A57,'CANAL ATENCIÓN'!$A$5:$D$81,4,0)","v":10},null,null,"DGRCIC-005-05-03","Inscripción de defunción extraordinaria con atención médica",10,0,11.179246412423144,0,10,31.179246412423144]
["DGRCIC-005-01-01","Inscripción extraordinaria de defunción con atención médica",10,0,11.179246412423144,0,10,"NO",0,"NO",0,"NO",0,31.179246412423144,null,null,{"$f":"VLOOKUP(A58,'DEMANDA ANUAL'!$A$5:$D$81,4,0)","v":10},{"$f":"VLOOKUP(A58,'VOLUMEN DE QUEJAS'!$A$5:$F$81,6,0)","v":0},{"$f":"VLOOKUP(A58,'COSTO ADMINISTRACIÓN PÚBLICA'!$A$6:$F$82,6,0)","v":11.179246412423144},{"$f":"VLOOKUP(A58,'TIEMPO DE RESPUESTA'!$A$5:$D$81,4,0)","v":0},null,null,null,null,null,{"$f":"VLOOKUP(A58,'CANAL ATENCIÓN'!$A$5:$D$81,4,0)","v":10},null,null,"DGRCIC-005-01-01","Inscripción extraordinaria de defunción con atención médica",10,0,11.179246412423144,0,10,31.179246412423144]
["DGRCIC-010-01-03","Emisión de pasaporte ordinario por primera vez menores de 18 años, en caso de ausencia de uno o de los dos padres",10,0,17.467965618232959,0,6,"NO",0,"NO",0,"NO",0,33.467965618232959,null,null,{"$f":"VLOOKUP(A59,'DEMANDA ANUAL'!$A$5:$D$81,4,0)","v":10},{"$f":"VLOOKUP(A59,'VOLUMEN DE QUEJAS'!$A$5:$F$81,6,0)","v":0},{"$f":"VLOOKUP(A59,'COSTO ADMINISTRACIÓN PÚBLICA'!$A$6:$F$82,6,0)","v":17.467965618232959},{"$f":"VLOOKUP(A59,'TIEMPO DE RESPUESTA'!$A$5:$D$81,4,0)","v":0},null,null,null,null,null,{"$f":"VLOOKUP(A59,'CANAL ATENCIÓN'!$A$5:$D$81,4,0)","v":6},null,null,"DGRCIC-010-01-03","Emisión de pasaporte ordinario por primera vez menores de 18 años, en caso de ausencia de uno o de los dos padres",10,0,17.467965618232959,0,6,33.467965618232959]
["DGRCIC-010-01-08","Emisión de pasaporte ordinario por renovación para menores de 18 años por pérdida o robo",10,0,17.467965618232959,0,6,"NO",0,"NO",0,"NO",0,33.467965618232959,null,null,{"$f":"VLOOKUP(A60,'DEMANDA ANUAL'!$A$5:$D$81,4,0)","v":10},{"$f":"VLOOKUP(A60,'VOLUMEN DE QUEJAS'!$A$5:$F$81,6,0)","v":0},{"$f":"VLOOKUP(A60,'COSTO ADMINISTRACIÓN PÚBLICA'!$A$6:$F$82,6,0)","v":17.467965618232959},{"$f":"VLOOKUP(A60,'TIEMPO DE RESPUESTA'!$A$5:$D$81,4,0)","v":0},null,null,null,null,null,{"$f":"VLOOKUP(A60,'CANAL ATENCIÓN'!$A$5:$D$81,4,0)","v":6},null,null,"DGRCIC-010-01-08","Emisión de pasaporte ordinario por renovación para menores de 18 años por pérdida o robo",10,0,17.467965618232959,0,6,33.467965618232959]
["DGRCIC-009-01-02","Dispositivo Token",10,0,35.279847650720839,0,10,"NO",0,"NO",0,"NO",0,55.279847650720839,null,null,{"$f":"VLOOKUP(A61,'DEMANDA ANUAL'!$A$5:$D$81,4,0)","v":10},{"$f":"VLOOKUP(A61,'VOLUMEN DE QUEJAS'!$A$5:$F$81,6,0)","v":0},{"$f":"VLOOKUP(A61,'COSTO ADMINISTRACIÓN PÚBLICA'!$A$6:$F$82,6,0)","v":35.279847650720839},{"$f":"VLOOKUP(A61,'TIEMPO DE RESPUESTA'!$A$5:$D$81,4,0)","v":0},null,null,null,null,null,{"$f":"VLOOKUP(A61,'CANAL ATENCIÓN'!$A$5:$D$81,4,0)","v":10},null,null,"DGRCIC-009-01-02","Dispositivo Token",10,0,35.279847650720839,0,10,55.279847650720839]
["DGRCIC-001-02-04","Emisión de Cédula de Identidad Por Primera Vez o Renovación Para Extranjeros Con Residencia Temporal o Residencia Permanente",10,0,11.639731991366025,0,10,"NO",0,"NO",0,"NO",0,31.639731991366027,null,null,{"$f":"VLOOKUP(A62,'DEMANDA ANUAL'!$A$5:$D$81,4,0)","v":10},{"$f":"VLOOKUP(A62,'VOLUMEN DE QUEJAS'!$A$5:$F$81,6,0)","v":0},{"$f":"VLOOKUP(A62,'COSTO ADMINISTRACIÓN PÚBLICA'!$A$6:$F$82,6,0)","v":11.639731991366025},{"$f":"VLOOKUP(A62,'TIEMPO DE RESPUESTA'!$A$5:$D$81,4,0)","v":0},null,null,null,null,null,{"$f":"VLOOKUP(A62,'CANAL ATENCIÓN'!$A$5:$D$81,4,0)","v":10},null,null,"DGRCIC-001-02-04","Emisión de Cédula de Identidad Por Primera Vez o Renovación Para Extranjeros Con Residencia Temporal o Residencia Permanente",10,0,11.639731991366025,0,10,31.639731991366027]
["DGRCIC-005-01-03","Inscripción ordinaria de defunción sin atención médica",10,0,11.179246412423144,0,10,"NO",0,"NO",0,"NO",0,31.179246412423144,null,null,{"$f":"VLOOKUP(A63,'DEMANDA ANUAL'!$A$5:$D$81,4,0)","v":10},{"$f":"VLOOKUP(A63,'VOLUMEN DE QUEJAS'!$A$5:$F$81,6,0)","v":0},{"$f":"VLOOKUP(A63,'COSTO ADMINISTRACIÓN PÚBLICA'!$A$6:$F$82,6,0)","v":11.179246412423144},{"$f":"VLOOKUP(A63,'TIEMPO DE RESPUESTA'!$A$5:$D$81,4,0)","v":0},null,null,null,null,null,{"$f":"VLOOKUP(A63,'CANAL ATENCIÓN'!$A$5:$D$81,4,0)","v":10},null,null,"DGRCIC-005-01-03","Inscripción ordinaria de defunción sin atención médica",10,0,11.179246412423144,0,10,31.179246412423144]
["DGRCIC-013-01-01","Inscripción ordinaria y extraordinaria de Nacimiento y Defunción.",10,0,11.179246412423144,0,10,"NO",0,"NO",0,"NO",0,31.179246412423144,null,null,{"$f":"VLOOKUP(A64,'DEMANDA ANUAL'!$A$5:$D$81,4,0)","v":10},{"$f":"VLOOKUP(A64,'VOLUMEN DE QUEJAS'!$A$5:$F$81,6,0)","v":0},{"$f":"VLOOKUP(A64,'COSTO ADMINISTRACIÓN PÚBLICA'!$A$6:$F$82,6,0)","v":11.179246412423144},{"$f":"VLOOKUP(A64,'TIEMPO DE RESPUESTA'!$A$5:$D$81,4,0)","v":0},null,null,null,null,null,{"$f":"VLOOKUP(A64,'CANAL ATENCIÓN'!$A$5:$D$81,4,0)","v":10},null,null,"DGRCIC-013-01-01","Inscripción ordinaria y extraordinaria de Nacimiento y Defunción.",10,0,11.179246412423144,0,10,31.179246412423144]
["DGRCIC-009-01-01","Emisión de Certificado Digital de Firma Electrónica en Token",10,4,21.179847650720838,0,10,"NO",0,"NO",0,"NO",0,45.179847650720838,null,null,{"$f":"VLOOKUP(A65,'DEMANDA ANUAL'!$A$5:$D$81,4,0)","v":10},{"$f":"VLOOKUP(A65,'VOLUMEN DE QUEJAS'!$A$5:$F$81,6,0)","v":4},{"$f":"VLOOKUP(A65,'COSTO ADMINISTRACIÓN PÚBLICA'!$A$6:$F$82,6,0)","v":21.179847650720838},{"$f":"VLOOKUP(A65,'TIEMPO DE RESPUESTA'!$A$5:$D$81,4,0)","v":0},null,null,null,null,null,{"$f":"VLOOKUP(A65,'CANAL ATENCIÓN'!$A$5:$D$81,4,0)","v":10},null,null,"DGRCIC-009-01-01","Emisión de Certificado Digital de Firma Electrónica en Token",10,4,21.179847650720838,0,10,45.179847650720838]
["DGRCIC-005-05-01","Inscripción de defunción ordinaria con atención médica",10,4,11.179246412423144,0,10,"NO",0,"NO",0,"NO",0,35.17924641242314,null,null,{"$f":"VLOOKUP(A66,'DEMANDA ANUAL'!$A$5:$D$81,4,0)","v":10},{"$f":"VLOOKUP(A66,'VOLUMEN DE QUEJAS'!$A$5:$F$81,6,0)","v":4},{"$f":"VLOOKUP(A66,'COSTO ADMINISTRACIÓN PÚBLICA'!$A$6:$F$82,6,0)","v":11.179246412423144},{"$f":"VLOOKUP(A66,'TIEMPO DE RESPUESTA'!$A$5:$D$81,4,0)","v":0},null,null,null,null,null,{"$f":"VLOOKUP(A66,'CANAL ATENCIÓN'!$A$5:$D$81,4,0)","v":10},null,null,"DGRCIC-005-05-01","Inscripción de defunción ordinaria con atención médica",10,4,11.179246412423144,0,10,35.17924641242314]
["DGRCIC-005-01-02","Inscripción ordinaria de defunción con atención médica",10,4,11.179246412423144,0,6,"NO",0,"NO",0,"NO",0,31.179246412423144,null,null,{"$f":"VLOOKUP(A67,'DEMANDA ANUAL'!$A$5:$D$81,4,0)","v":10},{"$f":"VLOOKUP(A67,'VOLUMEN DE QUEJAS'!$A$5:$F$81,6,0)","v":4},{"$f":"VLOOKUP(A67,'COSTO ADMINISTRACIÓN PÚBLICA'!$A$6:$F$82,6,0)","v":11.179246412423144},{"$f":"VLOOKUP(A67,'TIEMPO DE RESPUESTA'!$A$5:$D$81,4,0)","v":0},null,null,null,null,null,{"$f":"VLOOKUP(A67,'CANAL ATENCIÓN'!$A$5:$D$81,4,0)","v":6},null,null,"DGRCIC-005-01-02","Inscripción ordinaria de defunción con atención médica",10,4,11.179246412423144,0,6,31.179246412423144]
["DGRCIC-006-01-05","Rectificación de datos registrales en Actas Registrales (Resolución Administrativa)",10,4,14.052944994300095,0,10,"NO",0,"NO",0,"NO",0,38.052944994300091,null,null,{"$f":"VLOOKUP(A68,'DEMANDA ANUAL'!$A$5:$D$81,4,0)","v":10},{"$f":"VLOOKUP(A68,'VOLUMEN DE QUEJAS'!$A$5:$F$81,6,0)","v":4},{"$f":"VLOOKUP(A68,'COSTO ADMINISTRACIÓN PÚBLICA'!$A$6:$F$82,6,0)","v":14.052944994300095},{"$f":"VLOOKUP(A68,'TIEMPO DE RESPUESTA'!$A$5:$D$81,4,0)","v":0},null,null,null,null,null,{"$f":"VLOOKUP(A68,'CANAL ATENCIÓN'!$A$5:$D$81,4,0)","v":10},null,null,"DGRCIC-006-01-05","Rectificación de datos registrales en Actas Registrales (Resolución Administrativa)",10,4,14.052944994300095,0,10,38.052944994300091]
["DGRCIC-010-01-07","Emisión de Pasaporte Ordinario por Pérdida o Robo",10,4,17.467965618232959,0,6,"NO",{"$f":"IF(H69=\"SI\",5,0)","v":0},"NO",{"$f":"IF(J69=\"SI\",10,0)","v":0},"NO",{"$f":"IF(L69=\"SI\",5,0)","v":0},{"$f":"SUM(C69:G69,I69,K69,M69)","v":37.467965618232959},null,null,{"$f":"VLOOKUP(A69,'DEMANDA ANUAL'!$A$5:$D$81,4,0)","v":10},{"$f":"VLOOKUP(A69,'VOLUMEN DE QUEJAS'!$A$5:$F$81,6,0)","v":4},{"$f":"VLOOKUP(A69,'COSTO ADMINISTRACIÓN PÚBLICA'!$A$6:$F$82,6,0)","v":17.467965618232959},{"$f":"VLOOKUP(A69,'TIEMPO DE RESPUESTA'!$A$5:$D$81,4,0)","v":0},null,null,null,null,null,{"$f":"VLOOKUP(A69,'CANAL ATENCIÓN'!$A$5:$D$81,4,0)","v":6},null,null,"DGRCIC-010-01-07","Emisión de Pasaporte Ordinario por Pérdida o Robo",10,4,17.467965618232959,0,6,37.467965618232959]
["DGRCIC-007-01-08","Emisión de Certificado de Identidad y Estado Civil en línea",10,4,0.18251705653021441,0,0,"NO",0,"NO",0,"NO",0,14.182517056530214,null,null,{"$f":"VLOOKUP(A70,'DEMANDA ANUAL'!$A$5:$D$81,4,0)","v":10},{"$f":"VLOOKUP(A70,'VOLUMEN DE QUEJAS'!$A$5:$F$81,6,0)","v":4},{"$f":"VLOOKUP(A70,'COSTO ADMINISTRACIÓN PÚBLICA'!$A$6:$F$82,6,0)","v":0.18251705653021441},{"$f":"VLOOKUP(A70,'TIEMPO DE RESPUESTA'!$A$5:$D$81,4,0)","v":0},null,null,null,null,null,{"$f":"VLOOKUP(A70,'CANAL ATENCIÓN'!$A$5:$D$81,4,0)","v":0},null,null,"DGRCIC-007-01-08","Emisión de Certificado de Identidad y Estado Civil en línea",10,4,0.18251705653021441,0,0,14.182517056530214]
["DGRCIC-009-01-03","Emisión de Certificado Digital de Firma Electrónica en Archivo",10,4,21.179847650720838,0,10,"NO",0,"NO",0,"NO",0,45.179847650720838,null,null,{"$f":"VLOOKUP(A71,'DEMANDA ANUAL'!$A$5:$D$81,4,0)","v":10},{"$f":"VLOOKUP(A71,'VOLUMEN DE QUEJAS'!$A$5:$F$81,6,0)","v":4},{"$f":"VLOOKUP(A71,'COSTO ADMINISTRACIÓN PÚBLICA'!$A$6:$F$82,6,0)","v":21.179847650720838},{"$f":"VLOOKUP(A71,'TIEMPO DE RESPUESTA'!$A$5:$D$81,4,0)","v":0},null,null,null,null,null,{"$f":"VLOOKUP(A71,'CANAL ATENCIÓN'!$A$5:$D$81,4,0)","v":10},null,null,"DGRCIC-009-01-03","Emisión de Certificado Digital de Firma Electrónica en Archivo",10,4,21.179847650720838,0,10,45.179847650720838]
["DGRCIC-010-01-01","Emisión de Pasaporte Ordinario Por Primera Vez",10,4,17.467965618232963,0,6,"NO",0,"NO",0,"NO",0,37.467965618232967,null,null,{"$f":"VLOOKUP(A72,'DEMANDA ANUAL'!$A$5:$D$81,4,0)","v":10},{"$f":"VLOOKUP(A72,'VOLUMEN DE QUEJAS'!$A$5:$F$81,6,0)","v":4},{"$f":"VLOOKUP(A72,'COSTO ADMINISTRACIÓN PÚBLICA'!$A$6:$F$82,6,0)","v":17.467965618232963},{"$f":"VLOOKUP(A72,'TIEMPO DE RESPUESTA'!$A$5:$D$81,4,0)","v":0},null,null,null,null,null,{"$f":"VLOOKUP(A72,'CANAL ATENCIÓN'!$A$5:$D$81,4,0)","v":6},null,null,"DGRCIC-010-01-01","Emisión de Pasaporte Ordinario Por Primera Vez",10,4,17.467965618232963,0,6,37.467965618232967]
["DGRCIC-010-01-04","Emisión de Pasaporte Ordinario por Renovación",10,10,17.467965618232963,0,6,"NO",0,"NO",0,"NO",0,43.467965618232967,null,null,{"$f":"VLOOKUP(A73,'DEMANDA ANUAL'!$A$5:$D$81,4,0)","v":10},{"$f":"VLOOKUP(A73,'VOLUMEN DE QUEJAS'!$A$5:$F$81,6,0)","v":10},{"$f":"VLOOKUP(A73,'COSTO ADMINISTRACIÓN PÚBLICA'!$A$6:$F$82,6,0)","v":17.467965618232963},{"$f":"VLOOKUP(A73,'TIEMPO DE RESPUESTA'!$A$5:$D$81,4,0)","v":0},null,null,null,null,null,{"$f":"VLOOKUP(A73,'CANAL ATENCIÓN'!$A$5:$D$81,4,0)","v":6},null,null,"DGRCIC-010-01-04","Emisión de Pasaporte Ordinario por Renovación",10,10,17.467965618232963,0,6,43.467965618232967]
["DGRCIC-007-02-02","Convalidación de Documentos Registrales",10,0,0.18251705653021441,0,10,"NO",0,"NO",0,"NO",0,20.182517056530216,null,null,{"$f":"VLOOKUP(A74,'DEMANDA ANUAL'!$A$5:$D$81,4,0)","v":10},{"$f":"VLOOKUP(A74,'VOLUMEN DE QUEJAS'!$A$5:$F$81,6,0)","v":0},{"$f":"VLOOKUP(A74,'COSTO ADMINISTRACIÓN PÚBLICA'!$A$6:$F$82,6,0)","v":0.18251705653021441},{"$f":"VLOOKUP(A74,'TIEMPO DE RESPUESTA'!$A$5:$D$81,4,0)","v":0},null,null,null,null,null,{"$f":"VLOOKUP(A74,'CANAL ATENCIÓN'!$A$5:$D$81,4,0)","v":10},null,null,"DGRCIC-007-02-02","Convalidación de Documentos Registrales",10,0,0.18251705653021441,0,10,20.182517056530216]
["DGRCIC-007-01-07","Emisión de Certificado de Datos Registrales: Nacimiento, Matrimonio y Unión de Hecho en Línea",10,4,0.62152777777777801,0,0,"NO",0,"NO",0,"NO",0,14.621527777777779,null,null,{"$f":"VLOOKUP(A75,'DEMANDA ANUAL'!$A$5:$D$81,4,0)","v":10},{"$f":"VLOOKUP(A75,'VOLUMEN DE QUEJAS'!$A$5:$F$81,6,0)","v":4},{"$f":"VLOOKUP(A75,'COSTO ADMINISTRACIÓN PÚBLICA'!$A$6:$F$82,6,0)","v":0.62152777777777801},{"$f":"VLOOKUP(A75,'TIEMPO DE RESPUESTA'!$A$5:$D$81,4,0)","v":0},null,null,null,null,null,{"$f":"VLOOKUP(A75,'CANAL ATENCIÓN'!$A$5:$D$81,4,0)","v":0},null,null,"DGRCIC-007-01-07","Emisión de Certificado de Datos Registrales: Nacimiento, Matrimonio y Unión de Hecho en Línea",10,4,0.62152777777777801,0,0,14.621527777777779]
["DGRCIC-007-01-04","Emisión de certificados de Identidad y Estado Civil",10,0,3.4911023217652919,0,10,"NO",0,"NO",0,"NO",0,23.49110232176529,null,null,{"$f":"VLOOKUP(A76,'DEMANDA ANUAL'!$A$5:$D$81,4,0)","v":10},{"$f":"VLOOKUP(A76,'VOLUMEN DE QUEJAS'!$A$5:$F$81,6,0)","v":0},{"$f":"VLOOKUP(A76,'COSTO ADMINISTRACIÓN PÚBLICA'!$A$6:$F$82,6,0)","v":3.4911023217652919},{"$f":"VLOOKUP(A76,'TIEMPO DE RESPUESTA'!$A$5:$D$81,4,0)","v":0},null,null,null,null,null,{"$f":"VLOOKUP(A76,'CANAL ATENCIÓN'!$A$5:$D$81,4,0)","v":10},null,null,"DGRCIC-007-01-04","Emisión de certificados de Identidad y Estado Civil",10,0,3.4911023217652919,0,10,23.49110232176529]
["DGRCIC-002-01-01","Inscripción ordinaria y extraordinaria de nacimiento con atención médica",10,4,8.8737597691438044,0,6,"NO",0,"NO",0,"NO",0,28.873759769143803,null,null,{"$f":"VLOOKUP(A77,'DEMANDA ANUAL'!$A$5:$D$81,4,0)","v":10},{"$f":"VLOOKUP(A77,'VOLUMEN DE QUEJAS'!$A$5:$F$81,6,0)","v":4},{"$f":"VLOOKUP(A77,'COSTO ADMINISTRACIÓN PÚBLICA'!$A$6:$F$82,6,0)","v":8.8737597691438044},{"$f":"VLOOKUP(A77,'TIEMPO DE RESPUESTA'!$A$5:$D$81,4,0)","v":0},null,null,null,null,null,{"$f":"VLOOKUP(A77,'CANAL ATENCIÓN'!$A$5:$D$81,4,0)","v":6},null,null,"DGRCIC-002-01-01","Inscripción ordinaria y extraordinaria de nacimiento con atención médica",10,4,8.8737597691438044,0,6,28.873759769143803]
["DGRCIC-007-01-06","Emisión de Copia del Acta Registral: Nacimiento, Matrimonio, Defunción, Unión de Hecho y Registro de Género / Cambio de Nombre",10,4,6.7613286814200206,0,10,"NO",0,"NO",0,"NO",0,30.761328681420022,null,null,{"$f":"VLOOKUP(A78,'DEMANDA ANUAL'!$A$5:$D$81,4,0)","v":10},{"$f":"VLOOKUP(A78,'VOLUMEN DE QUEJAS'!$A$5:$F$81,6,0)","v":4},{"$f":"VLOOKUP(A78,'COSTO ADMINISTRACIÓN PÚBLICA'!$A$6:$F$82,6,0)","v":6.7613286814200206},{"$f":"VLOOKUP(A78,'TIEMPO DE RESPUESTA'!$A$5:$D$81,4,0)","v":0},null,null,null,null,null,{"$f":"VLOOKUP(A78,'CANAL ATENCIÓN'!$A$5:$D$81,4,0)","v":10},null,null,"DGRCIC-007-01-06","Emisión de Copia del Acta Registral: Nacimiento, Matrimonio, Defunción, Unión de Hecho y Registro de Género / Cambio de Nombre",10,4,6.7613286814200206,0,10,30.761328681420022]
["DGRCIC-001-01-01","Emisión de Cédula de Identidad Por Primera Vez o Renovación Para Ecuatorianos",10,10,11.639731991366025,0,6,"NO",0,"NO",0,"NO",0,37.639731991366027,null,null,{"$f":"VLOOKUP(A79,'DEMANDA ANUAL'!$A$5:$D$81,4,0)","v":10},{"$f":"VLOOKUP(A79,'VOLUMEN DE QUEJAS'!$A$5:$F$81,6,0)","v":10},{"$f":"VLOOKUP(A79,'COSTO ADMINISTRACIÓN PÚBLICA'!$A$6:$F$82,6,0)","v":11.639731991366025},{"$f":"VLOOKUP(A79,'TIEMPO DE RESPUESTA'!$A$5:$D$81,4,0)","v":0},null,null,null,null,null,{"$f":"VLOOKUP(A79,'CANAL ATENCIÓN'!$A$5:$D$81,4,0)","v":6},null,null,"DGRCIC-001-01-01","Emisión de Cédula de Identidad Por Primera Vez o Renovación Para Ecuatorianos",10,10,11.639731991366025,0,6,37.639731991366027]
["DGRCIC-007-01-01","Emisión de Certificados de Datos Registrales: Nacimiento, Matrimonio, Defunción y Unión de Hecho",10,4,4.0001300995430702,0,10,"NO",0,"NO",0,"NO",0,28.000130099543071,null,null,{"$f":"VLOOKUP(A80,'DEMANDA ANUAL'!$A$5:$D$81,4,0)","v":10},{"$f":"VLOOKUP(A80,'VOLUMEN DE QUEJAS'!$A$5:$F$81,6,0)","v":4},{"$f":"VLOOKUP(A80,'COSTO ADMINISTRACIÓN PÚBLICA'!$A$6:$F$82,6,0)","v":4.0001300995430702},{"$f":"VLOOKUP(A80,'TIEMPO DE RESPUESTA'!$A$5:$D$81,4,0)","v":0},null,null,null,null,null,{"$f":"VLOOKUP(A80,'CANAL ATENCIÓN'!$A$5:$D$81,4,0)","v":10},null,null,"DGRCIC-007-01-01","Emisión de Certificados de Datos Registrales: Nacimiento, Matrimonio, Defunción y Unión de Hecho",10,4,4.0001300995430702,0,10,28.000130099543071]